Workbook

Sheet Notes
A1: WeeklyDailyPercentagePriceOscillator.xlsm; Traders Tip spreadsheet created for the December 2017 Issue
A2: Coded beginning 2017-December-04 by Ronald McAllister (rpmac_xltt@sprynet.com)
A4: This Workbook demonstrates an EXCEL version of the ideas presented
A5: by Vitali Apirine in an article titled "Weekly & Daily Percentage Price Oscillator"
A6: which originally appeared in the February 2018 issue of
A7: "Technical Analysis of Stocks and Commodities" magazine.
A9: CalculationsAndCharts construction Notes:
B10: This workbook is built upon the WeeklyDailyMACD.xlsm spreadsheet built for Mr. Apirine's December 2017 article.
B11: Doing so allows us to compare and contrast the indicators on the same set of charts.
B13: Various charts from the article can be approximated by downloading the appropriate symbol and selecting an appropriate data range.
B14: From there it is just a matter of working the chart clutter controls. (All of the symbols used in this article are available for double click loading on the "Follow" tab)
B15: Example:
B16: Fig 2 from the article can be approximated by downloading data for symbol ^RUT and setting the I would like to chart dates to 07/10/2014 and 06/30/2015.
C17: Then Click the "I Would Like to Chart These Dates" button.
A19: Development Notes:
C20: This workbook contains and uses VBA macros and may use VBA Class structures.
C21: Input Data
C22: The data in this workbook is sorted date descending (most recent date at the top). All formulas and
C23: VBA routines are built accordingly.
A25: This spreadsheet incorporates my first cut at retrieving historical data from the "New", and not necessarily "Improved", Yahoo Finance History Download interface.
B27: My sincere apologies to our Macintosh based readers: MSXML is not supported in your environment. So as it stands this version of the spreadsheet will not work for you.
B28: See "Why this approach does not work for Macintosh" below.
B29: I am investigating cURL as a non-Querytable based approach for the Macintosh environment.
A31: The new Yahoo Finance history download interface has changed rather radically. The biggest hurdle being a pseudo-security requirement of adding a
B32: crumb character string to any URL requesting any type of history download. That crumb must match up (by way of some sort of hash algorithm) with
B33: the Yahoo Finance cookie that must also be sent with any request to the new Yahoo History down load interface.
B35: A crumb value is returned, buried in the HTML for any of what I call the "entry level" Yahoo Finance web pages (no crumb security requirement for entry level pages).
B36: A crumb may come with other Yahoo Finance pages. A crumb may even accompany some of the secured pages as well. I have not checked.
B38: Entry level pages are the top level pages of the various Yahoo Finance dialogs and include: Quote Lookup, Stock Summary Quote, and any of the pages
B39: with links in the horizontal row with the "Summary" link on the quote summary page such as Options, Historical Data, and the rest.
B41: To date I have found no way to get at this crumb value using any native EXCEL capabilities.
B43: So this crumb requirement effectively shuts out any solution that attempts to exclusively use built-in facilities of EXCEL, which is to say a purely Querytables solution.
B45: The approach built for this Traders Tip spreadsheet uses a combination of MSXML and EXCEL QueryTable calls to Load the InputPriceData worksheet.
B47: First I call MSXML to get the HTML text for the Yahoo Summary Quote page using the requested symbol. From this HTML text I extract the full company name,
B48: the market it trades, the market status and time stamp, and finally the associated crumb string. There is a bunch of other useful bits buried in this HTML
B49: text that do not necessarily appear on the web page your browser presents. Perhaps some day I will go after and build a worksheet with these other bits.
B51: Next I add the freshly extracted crumb string to the URLs I use in three separate Querytable calls to retrieve Price history, Split history, and Dividend history respectively.
B53: From there VBA code proceeds as in the past to fill in the cell formulas and formatting that make the "prettied up" InputPriceData sheet.
A55: Why this approach works for Windows:
B56: First, MSXML shares the permanent Internet Explorer web cache where cookies are maintained. Both IE and MSXML automatically
B57: update this cache when a "set cookie" header accompanies a web response. And they both automatically search this shared cache for
B58: cookies and add any "appropriate" cookies to the headers of any web requests they send out.
B59: This cookie handling automation means that even if the response to our MSXML call for the Summary web page includes a new version of
B60: the Yahoo Finance cookie, the imbedded Crumb value will always match the cookie newly installed in the cache!
B62: Second, in the Windows environment the EXCEL Querytable mechanism leans heavily on bits from Internet Explorer. This means that cookie
B63: handling is also automated from the shared cache for Querytable calls. We can count on any appropriate cookies being added to any Querytable call.
B64: We only need to do our part by adding the corresponding Crumb value to complete the security for the Querytable to access Yahoo History downloads.
A66: Why this approach does not work for Macintosh:
B67: For what it is worth, the Macintosh version of the MS Office suite of products do in fact maintain a special, shared amongst themselves only, cookie cache.
B68: They automate cookie handling into and from this cache JUST for the Office products and any Querytable activity they might originate.
B70: This cache is not tied to, nor shared with, any browser that might be installed on the MAC. And I have not found anything with HTTP capabilities similar to
B71: MSXML that can work with that Office product cookie cache.
B73: When working in the MAC EXCEL environment, without that MSXML like capability against the office shared cache, l have no mechanism
B74: to obtain a crumb value that would be a valid match to the Yahoo Finance cookie that will be automatically attached to a Querytable call.
B75: This missing facility pretty much eliminates the use of Mac environment Querytables to access the new Yahoo Finance history download interface.
A77: One very low probability potential "Gottcha" for any Querytables approach.
B78: Yahoo Finance cookies typically have an assigned expiration that is a year out (to the second) from the time they are issued.
B79: Further, these cookies are unique. Yours will not match mine.
B81: If for testing purposes, instead of MSXML, you use a fresh instance of Winhttp (Fresh instance = empty cache = no cookie to automatically send)
B82: every time you call an entry level page, the Yahoo server says "What? Entry level page? With no inbound cookie? Get them a cookie!!"
B83: and will send you a new, unique cookie and will imbed the matching crumb value in the response text for each of these "no cookie attached" calls.
B85: The Gottcha: Lets say that the Yahoo Finance cookie presently in the IE cache has an expiration date and time that just happens
B86: to fall between our MSXML call to the summary page to fetch our crumb and our first (or second, or third) Querytable call.
B87: The Querytable call after the cookie expiration may fail with a cookie and crumb validation error.
B89: Querytable error reporting is atrocious. So we will not get any sort of helpful message here. Just a very generalized message like "failed to connect".
B91: The workaround is to simply go to the InputPriceData tab and click the download button.
B92: This second time through the retrieval process should not fail on a mismatch.
B93: After all, you now have a year before the new cookie that just got put into the cache expires!
A95: Calculation and Chart Worksheet Usage Comments:
C96: In General, Items in Bolded BLUE are items you may freely change to play what-if games.
C97: Be sure to have a backup copy of the spreadsheet before you alter anything else.
A99: Features carried forward from the June 2016 version of my T-Tips Template
A100: Added a pair of buttons near cell F12 that will allow the user to step the charting window forward or backward one bar for each click.
A101: I find this to be a good way to test my understanding of the author's ideas as I step through the evolution of the price behavior and the indicators.
B103: First: In the "Help! I would like to plot data" area.
B104: Added button to resolve #NA problems by locating the bar in the input data with a slightly more recent date than what the user actually requested.
B105: I find this particularly useful when I have a general idea of where I want to be date wise. Now I can pick a set of dates "out of the air".
B106: If either (or both) of my date specifications fall between dates that are available in the price history,
B107: this button will resolve them to the dates of the nearest, slightly more recent input bars.
B108: I can then refine my data interval search as necessary from there.
B109: Really great when working with Weekly or Monthly studies!
C110: 2016Jun11 - added logic to the "I would like to chart.." button to detect #N/A values and terminate
C111: gracefully with a message instead of blowing up in the charting logic.
B113: Second: In the "Price Chart Windowing Controls" area. (A11 and A12)
B114: When retrieving data for a new symbol or when changing from daily to weekly or monthly data, there was the possibility that the
B115: residual settings in A11 and A12 would fall outside of the number bars available on the input data tab after the new data retrieval.
B116: In certain combinations, this could create a serious error in the chart sizing logic and crash the spreadsheet.
B117: I have taken this opportunity to update the validity checking logic used in the chart sizing macros
B118: to adjust these values as necessary so that they fall within the boundaries of the newly retrieved input data.
A119: Features carried forward from the October 2015 Traders Tips Template
B120: Improved automation: changes to any of the following will automatically initiate calculations appropriate to reflect a change.
C121: Changing either of cells A11 (pan) or A12 (zoom) will automatically initiate the same chart sizing macros that the manual
C122: "Set Chart" button uses.

Sheet InputPriceData
A1: Russell 2000 (^RUT) -Chicago Options (Daily)
F2: Market State == > | G2: At close: | H2: 16:30:00 | I2: EST | IJ2: 241.79
A3: Request Online Yahoo History for:
A4: Symbol | B4: ^RUT | D4: Valid | I4: =OFFSET(I4,-2,0,1,1) -> EST
A5: From | B5: 1950-01-01 | D5: Data | AF5: Trailing 12 Div return (Cur Close)
A6: To | B6: =NOW() -> 2017-12-07T21:48:12.840 | D6: Types | E6: =VLOOKUP(B7,D7:E10,2,FALSE) -> d
A7: Data Type | B7: Daily | D7: Daily | E7: d
B8: dbtX2VDkalH | D8: Weekly | E8: w
A9: Available Data | D9: Monthly | E9: m
A10: Bar Count: | B10: 7625 | AF10: =OFFSET(AC15,1,0,1,1)/OFFSET(N15,1,0,1,1) -> 0
A11: From: | B11: =IF(B10<=0,"",OFFSET(B15,B10,IF(HistReqDataType="v",1,0),1,1)) -> 1987-09-10 | W11: Trailing 12 Month Dividend Returns
A12: To: | B12: =IF(B10<=0,"",IF(HistReqDataType="v",OFFSET(B15,2,1,1,1),OFFSET(B15,1,0,1,1))) -> 2017-12-07 | W12: Raw Close price on Dividend date | X12: Div Year and Month | Y12: Looking for year ago Div Year and Month | Z12: Year ago Div Date we found | AA12: row offset to year ago div Date | AB12: Same month flag | AC12: Trailing 12 Div Total | AD12: Trailing 12 Div return
Q13: Split History | S13: 0 | T13: Running | U13: Dividend History
B14: Raw Data Values | H14: Adjusted | I14: Price Adjust | J14: Vol Adjust | K14: Adjusted Values | P14: Last | Q14: Effective | R14: Shares | T14: Vol Adjust | V14: 0
A15: RelRow | B15: Date | C15: Open | D15: High | E15: Low | F15: Close | G15: Volume | H15: Close | I15: Factor | J15: Factor | K15: Open | L15: High | M15: Low | N15: Close | O15: Volume | P15: Trade | Q15: 43077 | R15: New | S15: Old | T15: 1 | U15: Date | V15: $ / Share
A16: 1 | B16: 2017-12-07 | C16: 1508.930054 | D16: 1523.959961 | E16: 1508.150024 | F16: 1520.469971 | G16: 32924000 | H16: 1520.469971 | I16: =IF(F16=0,1,H16/F16) -> 1 | J16: =INDEX(OFFSET($T$15,0,0,$S$13+1,1),MATCH(B16,OFFSET($Q$15,0,0,$S$13+1,1),-1)) -> 1 | K16: =ROUND($I16*C16,2) -> 1508.93 | L16: =ROUND($I16*D16,2) -> 1523.96 | M16: 1508.15 | N16: 1520.47 | O16: =G16*J16 -> 32924000
A17: 2 | B17: 2017-12-06 | C17: 1516.359985 | D17: 1516.540039 | E17: 1508.130005 | F17: 1508.880005 | G17: 32290000 | H17: 1508.880005 | I17: =IF(F17=0,1,H17/F17) -> 1 | J17: =INDEX(OFFSET($T$15,0,0,$S$13+1,1),MATCH(B17,OFFSET($Q$15,0,0,$S$13+1,1),-1)) -> 1 | K17: =ROUND($I17*C17,2) -> 1516.36 | L17: =ROUND($I17*D17,2) -> 1516.54 | M17: =ROUND($I17*E17,2) -> 1508.13 | N17: =ROUND($I17*F17,2) -> 1508.88 | O17: =G17*J17 -> 32290000
A18: 3 | B18: 2017-12-05 | C18: 1532.719971 | D18: 1534.01001 | E18: 1516.75 | F18: 1516.76001 | G18: 35390400 | H18: 1516.76001 | I18: 1 | J18: 1 | K18: 1532.72 | L18: 1534.01 | M18: 1516.75 | N18: 1516.76 | O18: 35390400
A19: 4 | B19: 2017-12-04 | C19: 1539.27002 | D19: 1559.609985 | E19: 1531.72998 | F19: 1532.410034 | G19: 40231500 | H19: 1532.410034 | I19: 1 | J19: 1 | K19: 1539.27 | L19: 1559.61 | M19: 1531.73 | N19: 1532.41 | O19: 40231500
A20: 5 | B20: 2017-12-01 | C20: 1544.099976 | D20: 1544.920044 | E20: 1498.780029 | F20: 1537.02002 | G20: 39423200 | H20: 1537.02002 | I20: 1 | J20: 1 | K20: 1544.1 | L20: 1544.92 | M20: 1498.78 | N20: 1537.02 | O20: 39423200
A21: 6 | B21: 2017-11-30 | C21: 1542.619995 | D21: 1551.689941 | E21: 1541.209961 | F21: 1544.140015 | G21: 49384900 | H21: 1544.140015 | I21: 1 | J21: 1 | K21: 1542.62 | L21: 1551.69 | M21: 1541.21 | N21: 1544.14 | O21: 49384900
A22: 7 | B22: 2017-11-29 | C22: 1536.819946 | D22: 1547.27002 | E22: 1536.819946 | F22: 1542.300049 | G22: 40782800 | H22: 1542.300049 | I22: 1 | J22: 1 | K22: 1536.82 | L22: 1547.27 | M22: 1536.82 | N22: 1542.3 | O22: 40782800
A23: 8 | B23: 2017-11-28 | C23: 1514.150024 | D23: 1536.630005 | E23: 1514.150024 | F23: 1536.430054 | G23: 34884200 | H23: 1536.430054 | I23: 1 | J23: 1 | K23: 1514.15 | L23: 1536.63 | M23: 1514.15 | N23: 1536.43 | O23: 34884200
A24: 9 | B24: 2017-11-27 | C24: 1519.170044 | D24: 1522.030029 | E24: 1513.189941 | F24: 1513.310059 | G24: 30068600 | H24: 1513.310059 | I24: 1 | J24: 1 | K24: 1519.17 | L24: 1522.03 | M24: 1513.19 | N24: 1513.31 | O24: 30068600
A25: 10 | B25: 2017-11-24 | C25: 1517.410034 | D25: 1521.380005 | E25: 1516.52002 | F25: 1519.160034 | G25: 13497800 | H25: 1519.160034 | I25: 1 | J25: 1 | K25: 1517.41 | L25: 1521.38 | M25: 1516.52 | N25: 1519.16 | O25: 13497800
A26: 11 | B26: 2017-11-22 | C26: 1518.97998 | D26: 1524.180054 | E26: 1516.76001 | F26: 1516.76001 | G26: 27629500 | H26: 1516.76001 | I26: 1 | J26: 1 | K26: 1518.98 | L26: 1524.18 | M26: 1516.76 | N26: 1516.76 | O26: 27629500
A27: 12 | B27: 2017-11-21 | C27: 1503.449951 | D27: 1519.530029 | E27: 1503.449951 | F27: 1518.890015 | G27: 33327200 | H27: 1518.890015 | I27: 1 | J27: 1 | K27: 1503.45 | L27: 1519.53 | M27: 1503.45 | N27: 1518.89 | O27: 33327200
A28: 13 | B28: 2017-11-20 | C28: 1492.930054 | D28: 1503.400024 | E28: 1492.930054 | F28: 1503.400024 | G28: 30035400 | H28: 1503.400024 | I28: 1 | J28: 1 | K28: 1492.93 | L28: 1503.4 | M28: 1492.93 | N28: 1503.4 | O28: 30035400
A29: 14 | B29: 2017-11-17 | C29: 1485.699951 | D29: 1496.859985 | E29: 1481.089966 | F29: 1492.819946 | G29: 33001600 | H29: 1492.819946 | I29: 1 | J29: 1 | K29: 1485.7 | L29: 1496.86 | M29: 1481.09 | N29: 1492.82 | O29: 33001600
A30: 15 | B30: 2017-11-16 | C30: 1464.969971 | D30: 1490.969971 | E30: 1464.969971 | F30: 1486.880005 | G30: 33127100 | H30: 1486.880005 | I30: 1 | J30: 1 | K30: 1464.97 | L30: 1490.97 | M30: 1464.97 | N30: 1486.88 | O30: 33127100
A31: 16 | B31: 2017-11-15 | C31: 1470.900024 | D31: 1470.900024 | E31: 1454.170044 | F31: 1464.089966 | G31: 35588900 | H31: 1464.089966 | I31: 1 | J31: 1 | K31: 1470.9 | L31: 1470.9 | M31: 1454.17 | N31: 1464.09 | O31: 35588900
A32: 17 | B32: 2017-11-14 | C32: 1474.27002 | D32: 1474.27002 | E32: 1465.380005 | F32: 1471.26001 | G32: 36417600 | H32: 1471.26001 | I32: 1 | J32: 1 | K32: 1474.27 | L32: 1474.27 | M32: 1465.38 | N32: 1471.26 | O32: 36417600
A33: 18 | B33: 2017-11-13 | C33: 1474.439941 | D33: 1476.680054 | E33: 1466.089966 | F33: 1475.069946 | G33: 34029300 | H33: 1475.069946 | I33: 1 | J33: 1 | K33: 1474.44 | L33: 1476.68 | M33: 1466.09 | N33: 1475.07 | O33: 34029300
A34: 19 | B34: 2017-11-10 | C34: 1474.920044 | D34: 1479.109985 | E34: 1473.140015 | F34: 1475.27002 | G34: 34869100 | H34: 1475.27002 | I34: 1 | J34: 1 | K34: 1474.92 | L34: 1479.11 | M34: 1473.14 | N34: 1475.27 | O34: 34869100
A35: 20 | B35: 2017-11-09 | C35: 1481.290039 | D35: 1481.619995 | E35: 1463.48999 | F35: 1475.02002 | G35: 38316100 | H35: 1475.02002 | I35: 1 | J35: 1 | K35: 1481.29 | L35: 1481.62 | M35: 1463.49 | N35: 1475.02 | O35: 38316100
A36: 21 | B36: 2017-11-08 | C36: 1477.949951 | D36: 1482.859985 | E36: 1469.339966 | F36: 1481.72998 | G36: 38993600 | H36: 1481.72998 | I36: 1 | J36: 1 | K36: 1477.95 | L36: 1482.86 | M36: 1469.34 | N36: 1481.73 | O36: 38993600
A37: 22 | B37: 2017-11-07 | C37: 1497.97998 | D37: 1498 | E37: 1476.719971 | F37: 1479.089966 | G37: 38096500 | H37: 1479.089966 | I37: 1 | J37: 1 | K37: 1497.98 | L37: 1498 | M37: 1476.72 | N37: 1479.09 | O37: 38096500
A38: 23 | B38: 2017-11-06 | C38: 1495.030029 | D38: 1501.48999 | E38: 1494.73999 | F38: 1497.959961 | G38: 35390800 | H38: 1497.959961 | I38: 1 | J38: 1 | K38: 1495.03 | L38: 1501.49 | M38: 1494.74 | N38: 1497.96 | O38: 35390800
A39: 24 | B39: 2017-11-03 | C39: 1496.319946 | D39: 1497.140015 | E39: 1490.660034 | F39: 1494.910034 | G39: 35677100 | H39: 1494.910034 | I39: 1 | J39: 1 | K39: 1496.32 | L39: 1497.14 | M39: 1490.66 | N39: 1494.91 | O39: 35677100
A40: 25 | B40: 2017-11-02 | C40: 1492.900024 | D40: 1499.939941 | E40: 1487.72998 | F40: 1496.550049 | G40: 40482700 | H40: 1496.550049 | I40: 1 | J40: 1 | K40: 1492.9 | L40: 1499.94 | M40: 1487.73 | N40: 1496.55 | O40: 40482700
A41: 26 | B41: 2017-11-01 | C41: 1504.540039 | D41: 1512.400024 | E41: 1485.130005 | F41: 1492.780029 | G41: 38131800 | H41: 1492.780029 | I41: 1 | J41: 1 | K41: 1504.54 | L41: 1512.4 | M41: 1485.13 | N41: 1492.78 | O41: 38131800
A42: 27 | B42: 2017-10-31 | C42: 1491.439941 | D42: 1506.780029 | E42: 1491.439941 | F42: 1502.530029 | G42: 38272300 | H42: 1502.530029 | I42: 1 | J42: 1 | K42: 1491.44 | L42: 1506.78 | M42: 1491.44 | N42: 1502.53 | O42: 38272300
A43: 28 | B43: 2017-10-30 | C43: 1507.47998 | D43: 1507.47998 | E43: 1484.819946 | F43: 1490.900024 | G43: 36588700 | H43: 1490.900024 | I43: 1 | J43: 1 | K43: 1507.48 | L43: 1507.48 | M43: 1484.82 | N43: 1490.9 | O43: 36588700
A44: 29 | B44: 2017-10-27 | C44: 1497.540039 | D44: 1508.319946 | E44: 1493.48999 | F44: 1508.319946 | G44: 38871100 | H44: 1508.319946 | I44: 1 | J44: 1 | K44: 1497.54 | L44: 1508.32 | M44: 1493.49 | N44: 1508.32 | O44: 38871100
A45: 30 | B45: 2017-10-26 | C45: 1494.109985 | D45: 1501.359985 | E45: 1494.109985 | F45: 1497.459961 | G45: 38690500 | H45: 1497.459961 | I45: 1 | J45: 1 | K45: 1494.11 | L45: 1501.36 | M45: 1494.11 | N45: 1497.46 | O45: 38690500
A46: 31 | B46: 2017-10-25 | C46: 1500.25 | D46: 1500.420044 | E46: 1482.530029 | F46: 1493.47998 | G46: 38745100 | H46: 1493.47998 | I46: 1 | J46: 1 | K46: 1500.25 | L46: 1500.42 | M46: 1482.53 | N46: 1493.48 | O46: 38745100
A47: 32 | B47: 2017-10-24 | C47: 1498.189941 | D47: 1505.569946 | E47: 1498.189941 | F47: 1500.420044 | G47: 34273300 | H47: 1500.420044 | I47: 1 | J47: 1 | K47: 1498.19 | L47: 1505.57 | M47: 1498.19 | N47: 1500.42 | O47: 34273300
A48: 33 | B48: 2017-10-23 | C48: 1509.670044 | D48: 1511.47998 | E48: 1497.339966 | F48: 1497.48999 | G48: 32117100 | H48: 1497.48999 | I48: 1 | J48: 1 | K48: 1509.67 | L48: 1511.48 | M48: 1497.34 | N48: 1497.49 | O48: 32117100
A49: 34 | B49: 2017-10-20 | C49: 1504.719971 | D49: 1512.75 | E49: 1504.719971 | F49: 1509.25 | G49: 33846500 | H49: 1509.25 | I49: 1 | J49: 1 | K49: 1504.72 | L49: 1512.75 | M49: 1504.72 | N49: 1509.25 | O49: 33846500
A50: 35 | B50: 2017-10-19 | C50: 1502.969971 | D50: 1505.140015 | E50: 1491.380005 | F50: 1502.040039 | G50: 29907100 | H50: 1502.040039 | I50: 1 | J50: 1 | K50: 1502.97 | L50: 1505.14 | M50: 1491.38 | N50: 1502.04 | O50: 29907100
A51: 36 | B51: 2017-10-18 | C51: 1497.97998 | D51: 1507.839966 | E51: 1497.97998 | F51: 1505.140015 | G51: 29980900 | H51: 1505.140015 | I51: 1 | J51: 1 | K51: 1497.98 | L51: 1507.84 | M51: 1497.98 | N51: 1505.14 | O51: 29980900
A52: 37 | B52: 2017-10-17 | C52: 1502.530029 | D52: 1505.800049 | E52: 1495.900024 | F52: 1497.5 | G52: 28893900 | H52: 1497.5 | I52: 1 | J52: 1 | K52: 1502.53 | L52: 1505.8 | M52: 1495.9 | N52: 1497.5 | O52: 28893900
A53: 38 | B53: 2017-10-16 | C53: 1502.969971 | D53: 1511.290039 | E53: 1499.640015 | F53: 1502.680054 | G53: 29160200 | H53: 1502.680054 | I53: 1 | J53: 1 | K53: 1502.97 | L53: 1511.29 | M53: 1499.64 | N53: 1502.68 | O53: 29160200
A54: 39 | B54: 2017-10-13 | C54: 1505.459961 | D54: 1508.219971 | E54: 1502.22998 | F54: 1502.660034 | G54: 31494400 | H54: 1502.660034 | I54: 1 | J54: 1 | K54: 1505.46 | L54: 1508.22 | M54: 1502.23 | N54: 1502.66 | O54: 31494400
A55: 40 | B55: 2017-10-12 | C55: 1506.459961 | D55: 1508.430054 | E55: 1501.140015 | F55: 1505.160034 | G55: 31515100 | H55: 1505.160034 | I55: 1 | J55: 1 | K55: 1506.46 | L55: 1508.43 | M55: 1501.14 | N55: 1505.16 | O55: 31515100
A56: 41 | B56: 2017-10-11 | C56: 1507.910034 | D56: 1510.619995 | E56: 1505.140015 | F56: 1506.920044 | G56: 29760900 | H56: 1506.920044 | I56: 1 | J56: 1 | K56: 1507.91 | L56: 1510.62 | M56: 1505.14 | N56: 1506.92 | O56: 29760900
A57: 42 | B57: 2017-10-10 | C57: 1504.109985 | D57: 1511.329956 | E57: 1503.920044 | F57: 1508.01001 | G57: 29605000 | H57: 1508.01001 | I57: 1 | J57: 1 | K57: 1504.11 | L57: 1511.33 | M57: 1503.92 | N57: 1508.01 | O57: 29605000
A58: 43 | B58: 2017-10-09 | C58: 1510.410034 | D58: 1513.300049 | E58: 1501.77002 | F58: 1503.560059 | G58: 24839700 | H58: 1503.560059 | I58: 1 | J58: 1 | K58: 1510.41 | L58: 1513.3 | M58: 1501.77 | N58: 1503.56 | O58: 24839700
A59: 44 | B59: 2017-10-06 | C59: 1511.410034 | D59: 1511.410034 | E59: 1506.410034 | F59: 1510.219971 | G59: 28845700 | H59: 1510.219971 | I59: 1 | J59: 1 | K59: 1511.41 | L59: 1511.41 | M59: 1506.41 | N59: 1510.22 | O59: 28845700
A60: 45 | B60: 2017-10-05 | C60: 1508.339966 | D60: 1514.939941 | E60: 1508.339966 | F60: 1512.089966 | G60: 30451200 | H60: 1512.089966 | I60: 1 | J60: 1 | K60: 1508.34 | L60: 1514.94 | M60: 1508.34 | N60: 1512.09 | O60: 30451200
A61: 46 | B61: 2017-10-04 | C61: 1512 | D61: 1514.77002 | E61: 1505.069946 | F61: 1507.76001 | G61: 30171200 | H61: 1507.76001 | I61: 1 | J61: 1 | K61: 1512 | L61: 1514.77 | M61: 1505.07 | N61: 1507.76 | O61: 30171200
A62: 47 | B62: 2017-10-03 | C62: 1509.939941 | D62: 1512.26001 | E62: 1503.52002 | F62: 1511.969971 | G62: 30688500 | H62: 1511.969971 | I62: 1 | J62: 1 | K62: 1509.94 | L62: 1512.26 | M62: 1503.52 | N62: 1511.97 | O62: 30688500
A63: 48 | B63: 2017-10-02 | C63: 1491.050049 | D63: 1509.47998 | E63: 1491.050049 | F63: 1509.469971 | G63: 31997300 | H63: 1509.469971 | I63: 1 | J63: 1 | K63: 1491.05 | L63: 1509.48 | M63: 1491.05 | N63: 1509.47 | O63: 31997300
A64: 49 | B64: 2017-09-29 | C64: 1488.800049 | D64: 1493.560059 | E64: 1488.800049 | F64: 1490.859985 | G64: 32119200 | H64: 1490.859985 | I64: 1 | J64: 1 | K64: 1488.8 | L64: 1493.56 | M64: 1488.8 | N64: 1490.86 | O64: 32119200
A65: 50 | B65: 2017-09-28 | C65: 1484.800049 | D65: 1489.349976 | E65: 1478.199951 | F65: 1488.790039 | G65: 31686200 | H65: 1488.790039 | I65: 1 | J65: 1 | K65: 1484.8 | L65: 1489.35 | M65: 1478.2 | N65: 1488.79 | O65: 31686200
A66: 51 | B66: 2017-09-27 | C66: 1457.27002 | D66: 1487.949951 | E66: 1457.27002 | F66: 1484.810059 | G66: 34560300 | H66: 1484.810059 | I66: 1 | J66: 1 | K66: 1457.27 | L66: 1487.95 | M66: 1457.27 | N66: 1484.81 | O66: 34560300
A67: 52 | B67: 2017-09-26 | C67: 1452.25 | D67: 1460.949951 | E67: 1452.25 | F67: 1456.859985 | G67: 30431100 | H67: 1456.859985 | I67: 1 | J67: 1 | K67: 1452.25 | L67: 1460.95 | M67: 1452.25 | N67: 1456.86 | O67: 30431100
A68: 53 | B68: 2017-09-25 | C68: 1450.630005 | D68: 1455.219971 | E68: 1445.02002 | F68: 1451.959961 | G68: 32978900 | H68: 1451.959961 | I68: 1 | J68: 1 | K68: 1450.63 | L68: 1455.22 | M68: 1445.02 | N68: 1451.96 | O68: 32978900
A69: 54 | B69: 2017-09-22 | C69: 1443.469971 | D69: 1451.51001 | E69: 1441.859985 | F69: 1450.780029 | G69: 28659600 | H69: 1450.780029 | I69: 1 | J69: 1 | K69: 1443.47 | L69: 1451.51 | M69: 1441.86 | N69: 1450.78 | O69: 28659600
A70: 55 | B70: 2017-09-21 | C70: 1445.199951 | D70: 1448.839966 | E70: 1441.689941 | F70: 1444.180054 | G70: 29308600 | H70: 1444.180054 | I70: 1 | J70: 1 | K70: 1445.2 | L70: 1448.84 | M70: 1441.69 | N70: 1444.18 | O70: 29308600
A71: 56 | B71: 2017-09-20 | C71: 1440.47998 | D71: 1446.47998 | E71: 1440 | F71: 1445.420044 | G71: 35300100 | H71: 1445.420044 | I71: 1 | J71: 1 | K71: 1440.48 | L71: 1446.48 | M71: 1440 | N71: 1445.42 | O71: 35300100
A72: 57 | B72: 2017-09-19 | C72: 1441.189941 | D72: 1442.579956 | E72: 1438.290039 | F72: 1440.400024 | G72: 32491000 | H72: 1440.400024 | I72: 1 | J72: 1 | K72: 1441.19 | L72: 1442.58 | M72: 1438.29 | N72: 1440.4 | O72: 32491000
A73: 58 | B73: 2017-09-18 | C73: 1431.75 | D73: 1444.27002 | E73: 1431.75 | F73: 1441.079956 | G73: 31943000 | H73: 1441.079956 | I73: 1 | J73: 1 | K73: 1431.75 | L73: 1444.27 | M73: 1431.75 | N73: 1441.08 | O73: 31943000
A74: 59 | B74: 2017-09-15 | C74: 1425.349976 | D74: 1431.98999 | E74: 1422.25 | F74: 1431.709961 | G74: 48531700 | H74: 1431.709961 | I74: 1 | J74: 1 | K74: 1425.35 | L74: 1431.99 | M74: 1422.25 | N74: 1431.71 | O74: 48531700
A75: 60 | B75: 2017-09-14 | C75: 1426.569946 | D75: 1427.920044 | E75: 1421.630005 | F75: 1425.02002 | G75: 34144600 | H75: 1425.02002 | I75: 1 | J75: 1 | K75: 1426.57 | L75: 1427.92 | M75: 1421.63 | N75: 1425.02 | O75: 34144600
A76: 61 | B76: 2017-09-13 | C76: 1423.300049 | D76: 1428.73999 | E76: 1421.880005 | F76: 1426.890015 | G76: 33680500 | H76: 1426.890015 | I76: 1 | J76: 1 | K76: 1423.3 | L76: 1428.74 | M76: 1421.88 | N76: 1426.89 | O76: 33680500
A77: 62 | B77: 2017-09-12 | C77: 1415.339966 | D77: 1423.930054 | E77: 1415.180054 | F77: 1423.459961 | G77: 32309200 | H77: 1423.459961 | I77: 1 | J77: 1 | K77: 1415.34 | L77: 1423.93 | M77: 1415.18 | N77: 1423.46 | O77: 32309200
A78: 63 | B78: 2017-09-11 | C78: 1400.560059 | D78: 1415.75 | E78: 1400.560059 | F78: 1414.829956 | G78: 32917600 | H78: 1414.829956 | I78: 1 | J78: 1 | K78: 1400.56 | L78: 1415.75 | M78: 1400.56 | N78: 1414.83 | O78: 32917600
A79: 64 | B79: 2017-09-08 | C79: 1398.189941 | D79: 1403.530029 | E79: 1394.430054 | F79: 1399.430054 | G79: 33024900 | H79: 1399.430054 | I79: 1 | J79: 1 | K79: 1398.19 | L79: 1403.53 | M79: 1394.43 | N79: 1399.43 | O79: 33024900
A80: 65 | B80: 2017-09-07 | C80: 1402.459961 | D80: 1404.310059 | E80: 1393.880005 | F80: 1398.670044 | G80: 33539300 | H80: 1398.670044 | I80: 1 | J80: 1 | K80: 1402.46 | L80: 1404.31 | M80: 1393.88 | N80: 1398.67 | O80: 33539300
A81: 66 | B81: 2017-09-06 | C81: 1400.01001 | D81: 1406.02002 | E81: 1399.27002 | F81: 1402.199951 | G81: 33744100 | H81: 1402.199951 | I81: =IF(F81=0,1,H81/F81) -> 1 | J81: =INDEX(OFFSET($T$15,0,0,$S$13+1,1),MATCH(B81,OFFSET($Q$15,0,0,$S$13+1,1),-1)) -> 1 | K81: =ROUND($I81*C81,2) -> 1400.01 | L81: =ROUND($I81*D81,2) -> 1406.02 | M81: =ROUND($I81*E81,2) -> 1399.27 | N81: =ROUND($I81*F81,2) -> 1402.2 | O81: =G81*J81 -> 33744100
A82: 67 | B82: 2017-09-05 | C82: 1413.300049 | D82: 1414.550049 | E82: 1394.51001 | F82: 1399.660034 | G82: 34902600 | H82: 1399.660034 | I82: 1 | J82: 1 | K82: 1413.3 | L82: 1414.55 | M82: 1394.51 | N82: 1399.66 | O82: 34902600
A83: 68 | B83: 2017-09-01 | C83: 1405.819946 | D83: 1413.869995 | E83: 1405.819946 | F83: 1413.569946 | G83: 27107300 | H83: 1413.569946 | I83: 1 | J83: 1 | K83: 1405.82 | L83: 1413.87 | M83: 1405.82 | N83: 1413.57 | O83: 27107300
A84: 69 | B84: 2017-08-31 | C84: 1392.040039 | D84: 1406.439941 | E84: 1392.040039 | F84: 1405.280029 | G84: 33481100 | H84: 1405.280029 | I84: 1 | J84: 1 | K84: 1392.04 | L84: 1406.44 | M84: 1392.04 | N84: 1405.28 | O84: 33481100
A85: 70 | B85: 2017-08-30 | C85: 1383.209961 | D85: 1392.77002 | E85: 1381.199951 | F85: 1391.319946 | G85: 26336600 | H85: 1391.319946 | I85: 1 | J85: 1 | K85: 1383.21 | L85: 1392.77 | M85: 1381.2 | N85: 1391.32 | O85: 26336600
A86: 71 | B86: 2017-08-29 | C86: 1381.310059 | D86: 1385.189941 | E86: 1371.800049 | F86: 1383.680054 | G86: 27375800 | H86: 1383.680054 | I86: 1 | J86: 1 | K86: 1381.31 | L86: 1385.19 | M86: 1371.8 | N86: 1383.68 | O86: 27375800
A87: 72 | B87: 2017-08-28 | C87: 1377.76001 | D87: 1382.530029 | E87: 1377.060059 | F87: 1382.22998 | G87: 26777000 | H87: 1382.22998 | I87: 1 | J87: 1 | K87: 1377.76 | L87: 1382.53 | M87: 1377.06 | N87: 1382.23 | O87: 26777000
A88: 73 | B88: 2017-08-25 | C88: 1374.380005 | D88: 1380.599976 | E88: 1373.530029 | F88: 1377.449951 | G88: 25887800 | H88: 1377.449951 | I88: 1 | J88: 1 | K88: 1374.38 | L88: 1380.6 | M88: 1373.53 | N88: 1377.45 | O88: 25887800
A89: 74 | B89: 2017-08-24 | C89: 1370.160034 | D89: 1377.050049 | E89: 1370.160034 | F89: 1373.880005 | G89: 28465900 | H89: 1373.880005 | I89: 1 | J89: 1 | K89: 1370.16 | L89: 1377.05 | M89: 1370.16 | N89: 1373.88 | O89: 28465900
A90: 75 | B90: 2017-08-23 | C90: 1370.680054 | D90: 1373.280029 | E90: 1363.170044 | F90: 1369.73999 | G90: 27852900 | H90: 1369.73999 | I90: 1 | J90: 1 | K90: 1370.68 | L90: 1373.28 | M90: 1363.17 | N90: 1369.74 | O90: 27852900
A91: 76 | B91: 2017-08-22 | C91: 1357.890015 | D91: 1372.329956 | E91: 1357.890015 | F91: 1371.540039 | G91: 27774900 | H91: 1371.540039 | I91: 1 | J91: 1 | K91: 1357.89 | L91: 1372.33 | M91: 1357.89 | N91: 1371.54 | O91: 27774900
A92: 77 | B92: 2017-08-21 | C92: 1357.73999 | D92: 1358.089966 | E92: 1351.199951 | F92: 1356.900024 | G92: 27881500 | H92: 1356.900024 | I92: 1 | J92: 1 | K92: 1357.74 | L92: 1358.09 | M92: 1351.2 | N92: 1356.9 | O92: 27881500
A93: 78 | B93: 2017-08-18 | C93: 1357.01001 | D93: 1362.339966 | E93: 1349.349976 | F93: 1357.790039 | G93: 34156800 | H93: 1357.790039 | I93: 1 | J93: 1 | K93: 1357.01 | L93: 1362.34 | M93: 1349.35 | N93: 1357.79 | O93: 34156800
A94: 79 | B94: 2017-08-17 | C94: 1383.069946 | D94: 1384.73999 | E94: 1358.800049 | F94: 1358.939941 | G94: 31426200 | H94: 1358.939941 | I94: 1 | J94: 1 | K94: 1383.07 | L94: 1384.74 | M94: 1358.8 | N94: 1358.94 | O94: 31426200
A95: 80 | B95: 2017-08-16 | C95: 1384.180054 | D95: 1391.680054 | E95: 1381.900024 | F95: 1383.530029 | G95: 29536500 | H95: 1383.530029 | I95: 1 | J95: 1 | K95: 1384.18 | L95: 1391.68 | M95: 1381.9 | N95: 1383.53 | O95: 29536500
A96: 81 | B96: 2017-08-15 | C96: 1394.699951 | D96: 1395.880005 | E96: 1382.949951 | F96: 1383.23999 | G96: 29131000 | H96: 1383.23999 | I96: 1 | J96: 1 | K96: 1394.7 | L96: 1395.88 | M96: 1382.95 | N96: 1383.24 | O96: 29131000
A97: 82 | B97: 2017-08-14 | C97: 1375.130005 | D97: 1394.530029 | E97: 1375.130005 | F97: 1394.310059 | G97: 28225500 | H97: 1394.310059 | I97: 1 | J97: 1 | K97: 1375.13 | L97: 1394.53 | M97: 1375.13 | N97: 1394.31 | O97: 28225500
A98: 83 | B98: 2017-08-11 | C98: 1372.26001 | D98: 1376.369995 | E98: 1368.329956 | F98: 1374.22998 | G98: 31599300 | H98: 1374.22998 | I98: 1 | J98: 1 | K98: 1372.26 | L98: 1376.37 | M98: 1368.33 | N98: 1374.23 | O98: 31599300
A99: 84 | B99: 2017-08-10 | C99: 1396.599976 | D99: 1396.599976 | E99: 1372.540039 | F99: 1372.540039 | G99: 36210700 | H99: 1372.540039 | I99: 1 | J99: 1 | K99: 1396.6 | L99: 1396.6 | M99: 1372.54 | N99: 1372.54 | O99: 36210700
A100: 85 | B100: 2017-08-09 | C100: 1409.780029 | D100: 1409.780029 | E100: 1393.23999 | F100: 1396.949951 | G100: 33080600 | H100: 1396.949951 | I100: 1 | J100: 1 | K100: 1409.78 | L100: 1409.78 | M100: 1393.24 | N100: 1396.95 | O100: 33080600
A101: 86 | B101: 2017-08-08 | C101: 1413.930054 | D101: 1426.290039 | E101: 1407.569946 | F101: 1410.150024 | G101: 33446400 | H101: 1410.150024 | I101: 1 | J101: 1 | K101: 1413.93 | L101: 1426.29 | M101: 1407.57 | N101: 1410.15 | O101: 33446400
A102: 87 | B102: 2017-08-07 | C102: 1412.400024 | D102: 1417.420044 | E102: 1408.619995 | F102: 1414.170044 | G102: 29317800 | H102: 1414.170044 | I102: 1 | J102: 1 | K102: 1412.4 | L102: 1417.42 | M102: 1408.62 | N102: 1414.17 | O102: 29317800
A103: 88 | B103: 2017-08-04 | C103: 1405.140015 | D103: 1413.040039 | E103: 1405.140015 | F103: 1412.319946 | G103: 32351400 | H103: 1412.319946 | I103: 1 | J103: 1 | K103: 1405.14 | L103: 1413.04 | M103: 1405.14 | N103: 1412.32 | O103: 32351400
A104: 89 | B104: 2017-08-03 | C104: 1413.089966 | D104: 1414.719971 | E104: 1402.390015 | F104: 1405.22998 | G104: 36450200 | H104: 1405.22998 | I104: 1 | J104: 1 | K104: 1413.09 | L104: 1414.72 | M104: 1402.39 | N104: 1405.23 | O104: 36450200
A105: 90 | B105: 2017-08-02 | C105: 1428.030029 | D105: 1428.030029 | E105: 1408.52002 | F105: 1412.900024 | G105: 34785800 | H105: 1412.900024 | I105: 1 | J105: 1 | K105: 1428.03 | L105: 1428.03 | M105: 1408.52 | N105: 1412.9 | O105: 34785800
A106: 91 | B106: 2017-08-01 | C106: 1426.030029 | D106: 1430.660034 | E106: 1420.819946 | F106: 1428.329956 | G106: 34608600 | H106: 1428.329956 | I106: 1 | J106: 1 | K106: 1426.03 | L106: 1430.66 | M106: 1420.82 | N106: 1428.33 | O106: 34608600
A107: 92 | B107: 2017-07-31 | C107: 1429.459961 | D107: 1432.459961 | E107: 1420.660034 | F107: 1425.140015 | G107: 34692100 | H107: 1425.140015 | I107: 1 | J107: 1 | K107: 1429.46 | L107: 1432.46 | M107: 1420.66 | N107: 1425.14 | O107: 34692100
A108: 93 | B108: 2017-07-28 | C108: 1432.589966 | D108: 1432.589966 | E108: 1425.800049 | F108: 1429.26001 | G108: 32947700 | H108: 1429.26001 | I108: 1 | J108: 1 | K108: 1432.59 | L108: 1432.59 | M108: 1425.8 | N108: 1429.26 | O108: 32947700
A109: 94 | B109: 2017-07-27 | C109: 1442.26001 | D109: 1446.630005 | E109: 1427.689941 | F109: 1433.619995 | G109: 39955200 | H109: 1433.619995 | I109: 1 | J109: 1 | K109: 1442.26 | L109: 1446.63 | M109: 1427.69 | N109: 1433.62 | O109: 39955200
A110: 95 | B110: 2017-07-26 | C110: 1450.579956 | D110: 1452.02002 | E110: 1441.25 | F110: 1442.280029 | G110: 35570200 | H110: 1442.280029 | I110: 1 | J110: 1 | K110: 1450.58 | L110: 1452.02 | M110: 1441.25 | N110: 1442.28 | O110: 35570200
A111: 96 | B111: 2017-07-25 | C111: 1438.859985 | D111: 1452.089966 | E111: 1438.859985 | F111: 1450.390015 | G111: 40080600 | H111: 1450.390015 | I111: 1 | J111: 1 | K111: 1438.86 | L111: 1452.09 | M111: 1438.86 | N111: 1450.39 | O111: 40080600
A112: 97 | B112: 2017-07-24 | C112: 1435.819946 | D112: 1438.599976 | E112: 1431.339966 | F112: 1438.050049 | G112: 30102400 | H112: 1438.050049 | I112: 1 | J112: 1 | K112: 1435.82 | L112: 1438.6 | M112: 1431.34 | N112: 1438.05 | O112: 30102400
A113: 98 | B113: 2017-07-21 | C113: 1443.369995 | D113: 1452.050049 | E113: 1433.829956 | F113: 1435.839966 | G113: 30595700 | H113: 1435.839966 | I113: 1 | J113: 1 | K113: 1443.37 | L113: 1452.05 | M113: 1433.83 | N113: 1435.84 | O113: 30595700
A114: 99 | B114: 2017-07-20 | C114: 1442.160034 | D114: 1445.060059 | E114: 1438.959961 | F114: 1442.349976 | G114: 31827800 | H114: 1442.349976 | I114: 1 | J114: 1 | K114: 1442.16 | L114: 1445.06 | M114: 1438.96 | N114: 1442.35 | O114: 31827800
A115: 100 | B115: 2017-07-19 | C115: 1428.280029 | D115: 1441.77002 | E115: 1428.280029 | F115: 1441.77002 | G115: 30597600 | H115: 1441.77002 | I115: 1 | J115: 1 | K115: 1428.28 | L115: 1441.77 | M115: 1428.28 | N115: 1441.77 | O115: 30597600
A116: 101 | B116: 2017-07-18 | C116: 1431.109985 | D116: 1431.109985 | E116: 1422.48999 | F116: 1427.609985 | G116: 29621300 | H116: 1427.609985 | I116: 1 | J116: 1 | K116: 1431.11 | L116: 1431.11 | M116: 1422.49 | N116: 1427.61 | O116: 29621300
A117: 102 | B117: 2017-07-17 | C117: 1428.780029 | D117: 1434.449951 | E117: 1425.969971 | F117: 1431.599976 | G117: 27931700 | H117: 1431.599976 | I117: 1 | J117: 1 | K117: 1428.78 | L117: 1434.45 | M117: 1425.97 | N117: 1431.6 | O117: 27931700
A118: 103 | B118: 2017-07-14 | C118: 1425.469971 | D118: 1432.969971 | E118: 1424.099976 | F118: 1428.819946 | G118: 27366400 | H118: 1428.819946 | I118: 1 | J118: 1 | K118: 1425.47 | L118: 1432.97 | M118: 1424.1 | N118: 1428.82 | O118: 27366400
A119: 104 | B119: 2017-07-13 | C119: 1424.530029 | D119: 1425.73999 | E119: 1416.27002 | F119: 1425.660034 | G119: 30676700 | H119: 1425.660034 | I119: 1 | J119: 1 | K119: 1424.53 | L119: 1425.74 | M119: 1416.27 | N119: 1425.66 | O119: 30676700
A120: 105 | B120: 2017-07-12 | C120: 1414.339966 | D120: 1431.339966 | E120: 1414.339966 | F120: 1424.319946 | G120: 31716200 | H120: 1424.319946 | I120: 1 | J120: 1 | K120: 1414.34 | L120: 1431.34 | M120: 1414.34 | N120: 1424.32 | O120: 31716200
A121: 106 | B121: 2017-07-11 | C121: 1408.609985 | D121: 1413.469971 | E121: 1402.630005 | F121: 1413.050049 | G121: 31067500 | H121: 1413.050049 | I121: 1 | J121: 1 | K121: 1408.61 | L121: 1413.47 | M121: 1402.63 | N121: 1413.05 | O121: 31067500
A122: 107 | B122: 2017-07-10 | C122: 1415.280029 | D122: 1418.050049 | E122: 1405.75 | F122: 1408.469971 | G122: 29991300 | H122: 1408.469971 | I122: 1 | J122: 1 | K122: 1415.28 | L122: 1418.05 | M122: 1405.75 | N122: 1408.47 | O122: 29991300
A123: 108 | B123: 2017-07-07 | C123: 1401.349976 | D123: 1416.680054 | E123: 1401.349976 | F123: 1415.839966 | G123: 29013300 | H123: 1415.839966 | I123: 1 | J123: 1 | K123: 1401.35 | L123: 1416.68 | M123: 1401.35 | N123: 1415.84 | O123: 29013300
A124: 109 | B124: 2017-07-06 | C124: 1418.859985 | D124: 1418.859985 | E124: 1398.829956 | F124: 1400.810059 | G124: 33645200 | H124: 1400.810059 | I124: 1 | J124: 1 | K124: 1418.86 | L124: 1418.86 | M124: 1398.83 | N124: 1400.81 | O124: 33645200
A125: 110 | B125: 2017-07-05 | C125: 1426.530029 | D125: 1426.530029 | E125: 1412.619995 | F125: 1420.150024 | G125: 33672200 | H125: 1420.150024 | I125: 1 | J125: 1 | K125: 1426.53 | L125: 1426.53 | M125: 1412.62 | N125: 1420.15 | O125: 33672200
A126: 111 | B126: 2017-07-03 | C126: 1416.469971 | D126: 1429.369995 | E126: 1416.469971 | F126: 1426.680054 | G126: 19021900 | H126: 1426.680054 | I126: 1 | J126: 1 | K126: 1416.47 | L126: 1429.37 | M126: 1416.47 | N126: 1426.68 | O126: 19021900
A127: 112 | B127: 2017-06-30 | C127: 1416.72998 | D127: 1420.98999 | E127: 1413.290039 | F127: 1415.359985 | G127: 33615900 | H127: 1415.359985 | I127: 1 | J127: 1 | K127: 1416.73 | L127: 1420.99 | M127: 1413.29 | N127: 1415.36 | O127: 33615900
A128: 113 | B128: 2017-06-29 | C128: 1425.48999 | D128: 1428.030029 | E128: 1403.02002 | F128: 1416.199951 | G128: 39002800 | H128: 1416.199951 | I128: 1 | J128: 1 | K128: 1425.49 | L128: 1428.03 | M128: 1403.02 | N128: 1416.2 | O128: 39002800
A129: 114 | B129: 2017-06-28 | C129: 1404.459961 | D129: 1426.329956 | E129: 1404.459961 | F129: 1425.27002 | G129: 35008000 | H129: 1425.27002 | I129: 1 | J129: 1 | K129: 1404.46 | L129: 1426.33 | M129: 1404.46 | N129: 1425.27 | O129: 35008000
A130: 115 | B130: 2017-06-27 | C130: 1416.349976 | D130: 1420.609985 | E130: 1403.380005 | F130: 1403.52002 | G130: 35639100 | H130: 1403.52002 | I130: 1 | J130: 1 | K130: 1416.35 | L130: 1420.61 | M130: 1403.38 | N130: 1403.52 | O130: 35639100
A131: 116 | B131: 2017-06-26 | C131: 1415.119995 | D131: 1420.77002 | E131: 1409.150024 | F131: 1416.640015 | G131: 32389700 | H131: 1416.640015 | I131: 1 | J131: 1 | K131: 1415.12 | L131: 1420.77 | M131: 1409.15 | N131: 1416.64 | O131: 32389700
A132: 117 | B132: 2017-06-23 | C132: 1404.780029 | D132: 1415.77002 | E132: 1402.77002 | F132: 1414.780029 | G132: 52783300 | H132: 1414.780029 | I132: 1 | J132: 1 | K132: 1404.78 | L132: 1415.77 | M132: 1402.77 | N132: 1414.78 | O132: 52783300
A133: 118 | B133: 2017-06-22 | C133: 1399.369995 | D133: 1408.339966 | E133: 1396.869995 | F133: 1404.540039 | G133: 34682100 | H133: 1404.540039 | I133: 1 | J133: 1 | K133: 1399.37 | L133: 1408.34 | M133: 1396.87 | N133: 1404.54 | O133: 34682100
A134: 119 | B134: 2017-06-21 | C134: 1403.329956 | D134: 1411.880005 | E134: 1398.459961 | F134: 1399.25 | G134: 35948200 | H134: 1399.25 | I134: 1 | J134: 1 | K134: 1403.33 | L134: 1411.88 | M134: 1398.46 | N134: 1399.25 | O134: 35948200
A135: 120 | B135: 2017-06-20 | C135: 1417.76001 | D135: 1417.76001 | E135: 1402.790039 | F135: 1402.969971 | G135: 34165100 | H135: 1402.969971 | I135: 1 | J135: 1 | K135: 1417.76 | L135: 1417.76 | M135: 1402.79 | N135: 1402.97 | O135: 34165100
A136: 121 | B136: 2017-06-19 | C136: 1407.069946 | D136: 1420.189941 | E136: 1407.069946 | F136: 1418.079956 | G136: 32647000 | H136: 1418.079956 | I136: 1 | J136: 1 | K136: 1407.07 | L136: 1420.19 | M136: 1407.07 | N136: 1418.08 | O136: 32647000
A137: 122 | B137: 2017-06-16 | C137: 1407.219971 | D137: 1407.219971 | E137: 1399.26001 | F137: 1406.72998 | G137: 52847200 | H137: 1406.72998 | I137: 1 | J137: 1 | K137: 1407.22 | L137: 1407.22 | M137: 1399.26 | N137: 1406.73 | O137: 52847200
A138: 123 | B138: 2017-06-15 | C138: 1415.469971 | D138: 1415.469971 | E138: 1402.52002 | F138: 1410.079956 | G138: 33530500 | H138: 1410.079956 | I138: 1 | J138: 1 | K138: 1415.47 | L138: 1415.47 | M138: 1402.52 | N138: 1410.08 | O138: 33530500
A139: 124 | B139: 2017-06-14 | C139: 1426.030029 | D139: 1426.130005 | E139: 1411.400024 | F139: 1417.569946 | G139: 35555900 | H139: 1417.569946 | I139: 1 | J139: 1 | K139: 1426.03 | L139: 1426.13 | M139: 1411.4 | N139: 1417.57 | O139: 35555900
A140: 125 | B140: 2017-06-13 | C140: 1420.060059 | D140: 1427.550049 | E140: 1420.060059 | F140: 1425.98999 | G140: 32755000 | H140: 1425.98999 | I140: 1 | J140: 1 | K140: 1420.06 | L140: 1427.55 | M140: 1420.06 | N140: 1425.99 | O140: 32755000
A141: 126 | B141: 2017-06-12 | C141: 1421.099976 | D141: 1426.099976 | E141: 1415.589966 | F141: 1419.209961 | G141: 40277500 | H141: 1419.209961 | I141: 1 | J141: 1 | K141: 1421.1 | L141: 1426.1 | M141: 1415.59 | N141: 1419.21 | O141: 40277500
A142: 127 | B142: 2017-06-09 | C142: 1416.150024 | D142: 1433.790039 | E142: 1413.609985 | F142: 1421.709961 | G142: 40273400 | H142: 1421.709961 | I142: 1 | J142: 1 | K142: 1416.15 | L142: 1433.79 | M142: 1413.61 | N142: 1421.71 | O142: 40273400
A143: 128 | B143: 2017-06-08 | C143: 1396.780029 | D143: 1419.319946 | E143: 1394.689941 | F143: 1415.609985 | G143: 37288600 | H143: 1415.609985 | I143: 1 | J143: 1 | K143: 1396.78 | L143: 1419.32 | M143: 1394.69 | N143: 1415.61 | O143: 37288600
A144: 129 | B144: 2017-06-07 | C144: 1395.530029 | D144: 1400.410034 | E144: 1392.199951 | F144: 1396.670044 | G144: 35723000 | H144: 1396.670044 | I144: 1 | J144: 1 | K144: 1395.53 | L144: 1400.41 | M144: 1392.2 | N144: 1396.67 | O144: 35723000
A145: 130 | B145: 2017-06-06 | C145: 1395.050049 | D145: 1401.790039 | E145: 1386.699951 | F145: 1394.900024 | G145: 33578400 | H145: 1394.900024 | I145: =IF(F145=0,1,H145/F145) -> 1 | J145: =INDEX(OFFSET($T$15,0,0,$S$13+1,1),MATCH(B145,OFFSET($Q$15,0,0,$S$13+1,1),-1)) -> 1 | K145: =ROUND($I145*C145,2) -> 1395.05 | L145: =ROUND($I145*D145,2) -> 1401.79 | M145: =ROUND($I145*E145,2) -> 1386.7 | N145: =ROUND($I145*F145,2) -> 1394.9 | O145: =G145*J145 -> 33578400
A146: 131 | B146: 2017-06-05 | C146: 1405.140015 | D146: 1405.140015 | E146: 1396.439941 | F146: 1396.449951 | G146: 29126000 | H146: 1396.449951 | I146: 1 | J146: 1 | K146: 1405.14 | L146: 1405.14 | M146: 1396.44 | N146: 1396.45 | O146: 29126000
A147: 132 | B147: 2017-06-02 | C147: 1396.079956 | D147: 1414.959961 | E147: 1396.040039 | F147: 1405.390015 | G147: 34616800 | H147: 1405.390015 | I147: 1 | J147: 1 | K147: 1396.08 | L147: 1414.96 | M147: 1396.04 | N147: 1405.39 | O147: 34616800
A148: 133 | B148: 2017-06-01 | C148: 1370.329956 | D148: 1396.199951 | E148: 1370.329956 | F148: 1396.060059 | G148: 38571400 | H148: 1396.060059 | I148: 1 | J148: 1 | K148: 1370.33 | L148: 1396.2 | M148: 1370.33 | N148: 1396.06 | O148: 38571400
A149: 134 | B149: 2017-05-31 | C149: 1372.199951 | D149: 1374.430054 | E149: 1354.849976 | F149: 1370.209961 | G149: 45161100 | H149: 1370.209961 | I149: 1 | J149: 1 | K149: 1372.2 | L149: 1374.43 | M149: 1354.85 | N149: 1370.21 | O149: 45161100
A150: 135 | B150: 2017-05-30 | C150: 1381.170044 | D150: 1381.170044 | E150: 1370.959961 | F150: 1371.189941 | G150: 32031600 | H150: 1371.189941 | I150: 1 | J150: 1 | K150: 1381.17 | L150: 1381.17 | M150: 1370.96 | N150: 1371.19 | O150: 32031600
A151: 136 | B151: 2017-05-26 | C151: 1383.140015 | D151: 1383.680054 | E151: 1376.150024 | F151: 1382.23999 | G151: 28050400 | H151: 1382.23999 | I151: 1 | J151: 1 | K151: 1383.14 | L151: 1383.68 | M151: 1376.15 | N151: 1382.24 | O151: 28050400
A152: 137 | B152: 2017-05-25 | C152: 1384.810059 | D152: 1391.420044 | E152: 1380.329956 | F152: 1383.390015 | G152: 35353900 | H152: 1383.390015 | I152: 1 | J152: 1 | K152: 1384.81 | L152: 1391.42 | M152: 1380.33 | N152: 1383.39 | O152: 35353900
A153: 138 | B153: 2017-05-24 | C153: 1381.160034 | D153: 1386.069946 | E153: 1376.550049 | F153: 1382.51001 | G153: 33899000 | H153: 1382.51001 | I153: 1 | J153: 1 | K153: 1381.16 | L153: 1386.07 | M153: 1376.55 | N153: 1382.51 | O153: 33899000
A154: 139 | B154: 2017-05-23 | C154: 1378.23999 | D154: 1383.079956 | E154: 1372.050049 | F154: 1380.97998 | G154: 32135700 | H154: 1380.97998 | I154: 1 | J154: 1 | K154: 1378.24 | L154: 1383.08 | M154: 1372.05 | N154: 1380.98 | O154: 32135700
A155: 140 | B155: 2017-05-22 | C155: 1367.880005 | D155: 1378.300049 | E155: 1367.880005 | F155: 1377.140015 | G155: 31728300 | H155: 1377.140015 | I155: 1 | J155: 1 | K155: 1367.88 | L155: 1378.3 | M155: 1367.88 | N155: 1377.14 | O155: 31728300
A156: 141 | B156: 2017-05-19 | C156: 1361.530029 | D156: 1374.420044 | E156: 1361.530029 | F156: 1367.329956 | G156: 38251600 | H156: 1367.329956 | I156: 1 | J156: 1 | K156: 1361.53 | L156: 1374.42 | M156: 1361.53 | N156: 1367.33 | O156: 38251600
A157: 142 | B157: 2017-05-18 | C157: 1354.930054 | D157: 1365.01001 | E157: 1351.01001 | F157: 1361.079956 | G157: 43194200 | H157: 1361.079956 | I157: 1 | J157: 1 | K157: 1354.93 | L157: 1365.01 | M157: 1351.01 | N157: 1361.08 | O157: 43194200
A158: 143 | B158: 2017-05-17 | C158: 1388.300049 | D158: 1388.300049 | E158: 1355.849976 | F158: 1355.890015 | G158: 41630000 | H158: 1355.890015 | I158: 1 | J158: 1 | K158: 1388.3 | L158: 1388.3 | M158: 1355.85 | N158: 1355.89 | O158: 41630000
A159: 144 | B159: 2017-05-16 | C159: 1394.569946 | D159: 1396.359985 | E159: 1384.819946 | F159: 1394.680054 | G159: 34207900 | H159: 1394.680054 | I159: 1 | J159: 1 | K159: 1394.57 | L159: 1396.36 | M159: 1384.82 | N159: 1394.68 | O159: 34207900
A160: 145 | B160: 2017-05-15 | C160: 1383.27002 | D160: 1398.98999 | E160: 1383.27002 | F160: 1393.920044 | G160: 34736000 | H160: 1393.920044 | I160: 1 | J160: 1 | K160: 1383.27 | L160: 1398.99 | M160: 1383.27 | N160: 1393.92 | O160: 34736000
A161: 146 | B161: 2017-05-12 | C161: 1389.390015 | D161: 1389.390015 | E161: 1380.02002 | F161: 1382.77002 | G161: 33056300 | H161: 1382.77002 | I161: 1 | J161: 1 | K161: 1389.39 | L161: 1389.39 | M161: 1380.02 | N161: 1382.77 | O161: 33056300
A162: 147 | B162: 2017-05-11 | C162: 1399.199951 | D162: 1399.199951 | E162: 1379.150024 | F162: 1390.199951 | G162: 37274200 | H162: 1390.199951 | I162: 1 | J162: 1 | K162: 1399.2 | L162: 1399.2 | M162: 1379.15 | N162: 1390.2 | O162: 37274200
A163: 148 | B163: 2017-05-10 | C163: 1392.030029 | D163: 1400.810059 | E163: 1390.439941 | F163: 1399.589966 | G163: 36435300 | H163: 1399.589966 | I163: 1 | J163: 1 | K163: 1392.03 | L163: 1400.81 | M163: 1390.44 | N163: 1399.59 | O163: 36435300
A164: 149 | B164: 2017-05-09 | C164: 1392.310059 | D164: 1395.47998 | E164: 1386.72998 | F164: 1391.859985 | G164: 36535900 | H164: 1391.859985 | I164: 1 | J164: 1 | K164: 1392.31 | L164: 1395.48 | M164: 1386.73 | N164: 1391.86 | O164: 36535900
A165: 150 | B165: 2017-05-08 | C165: 1396.400024 | D165: 1397.430054 | E165: 1386.420044 | F165: 1391.640015 | G165: 34294400 | H165: 1391.640015 | I165: 1 | J165: 1 | K165: 1396.4 | L165: 1397.43 | M165: 1386.42 | N165: 1391.64 | O165: 34294400
A166: 151 | B166: 2017-05-05 | C166: 1389.209961 | D166: 1397.209961 | E166: 1385.199951 | F166: 1397 | G166: 35401400 | H166: 1397 | I166: 1 | J166: 1 | K166: 1389.21 | L166: 1397.21 | M166: 1385.2 | N166: 1397 | O166: 35401400
A167: 152 | B167: 2017-05-04 | C167: 1391.170044 | D167: 1394.160034 | E167: 1380.48999 | F167: 1388.849976 | G167: 43625400 | H167: 1388.849976 | I167: 1 | J167: 1 | K167: 1391.17 | L167: 1394.16 | M167: 1380.49 | N167: 1388.85 | O167: 43625400
A168: 153 | B168: 2017-05-03 | C168: 1399.130005 | D168: 1399.130005 | E168: 1386.319946 | F168: 1390.920044 | G168: 38939900 | H168: 1390.920044 | I168: 1 | J168: 1 | K168: 1399.13 | L168: 1399.13 | M168: 1386.32 | N168: 1390.92 | O168: 38939900
A169: 154 | B169: 2017-05-02 | C169: 1407.540039 | D169: 1409.050049 | E169: 1395.630005 | F169: 1399.359985 | G169: 38136800 | H169: 1399.359985 | I169: 1 | J169: 1 | K169: 1407.54 | L169: 1409.05 | M169: 1395.63 | N169: 1399.36 | O169: 38136800
A170: 155 | B170: 2017-05-01 | C170: 1401.01001 | D170: 1411.040039 | E170: 1397.079956 | F170: 1407.359985 | G170: 31992400 | H170: 1407.359985 | I170: 1 | J170: 1 | K170: 1401.01 | L170: 1411.04 | M170: 1397.08 | N170: 1407.36 | O170: 31992400
A171: 156 | B171: 2017-04-28 | C171: 1417.75 | D171: 1419.209961 | E171: 1399.75 | F171: 1400.430054 | G171: 37182700 | H171: 1400.430054 | I171: 1 | J171: 1 | K171: 1417.75 | L171: 1419.21 | M171: 1399.75 | N171: 1400.43 | O171: 37182700
A172: 157 | B172: 2017-04-27 | C172: 1419.569946 | D172: 1423.52002 | E172: 1413.680054 | F172: 1417.130005 | G172: 40984600 | H172: 1417.130005 | I172: 1 | J172: 1 | K172: 1419.57 | L172: 1423.52 | M172: 1413.68 | N172: 1417.13 | O172: 40984600
A173: 158 | B173: 2017-04-26 | C173: 1411.050049 | D173: 1425.699951 | E173: 1409.829956 | F173: 1419.430054 | G173: 41059200 | H173: 1419.430054 | I173: 1 | J173: 1 | K173: 1411.05 | L173: 1425.7 | M173: 1409.83 | N173: 1419.43 | O173: 41059200
A174: 159 | B174: 2017-04-25 | C174: 1400.099976 | D174: 1415.550049 | E174: 1400.099976 | F174: 1411.079956 | G174: 39952400 | H174: 1411.079956 | I174: 1 | J174: 1 | K174: 1400.1 | L174: 1415.55 | M174: 1400.1 | N174: 1411.08 | O174: 39952400
A175: 160 | B175: 2017-04-24 | C175: 1380.530029 | D175: 1399.959961 | E175: 1380.530029 | F175: 1397.939941 | G175: 36906500 | H175: 1397.939941 | I175: 1 | J175: 1 | K175: 1380.53 | L175: 1399.96 | M175: 1380.53 | N175: 1397.94 | O175: 36906500
A176: 161 | B176: 2017-04-21 | C176: 1381.5 | D176: 1383.130005 | E176: 1376.369995 | F176: 1379.849976 | G176: 35033600 | H176: 1379.849976 | I176: 1 | J176: 1 | K176: 1381.5 | L176: 1383.13 | M176: 1376.37 | N176: 1379.85 | O176: 35033600
A177: 162 | B177: 2017-04-20 | C177: 1368.390015 | D177: 1384.579956 | E177: 1368.390015 | F177: 1384.150024 | G177: 36474200 | H177: 1384.150024 | I177: 1 | J177: 1 | K177: 1368.39 | L177: 1384.58 | M177: 1368.39 | N177: 1384.15 | O177: 36474200
A178: 163 | B178: 2017-04-19 | C178: 1362.319946 | D178: 1376.689941 | E178: 1362.319946 | F178: 1367.130005 | G178: 35199000 | H178: 1367.130005 | I178: 1 | J178: 1 | K178: 1362.32 | L178: 1376.69 | M178: 1362.32 | N178: 1367.13 | O178: 35199000
A179: 164 | B179: 2017-04-18 | C179: 1359.890015 | D179: 1362.48999 | E179: 1351.420044 | F179: 1361.890015 | G179: 32698400 | H179: 1361.890015 | I179: 1 | J179: 1 | K179: 1359.89 | L179: 1362.49 | M179: 1351.42 | N179: 1361.89 | O179: 32698400
A180: 165 | B180: 2017-04-17 | C180: 1345.359985 | D180: 1361.25 | E180: 1345.359985 | F180: 1361.180054 | G180: 28247100 | H180: 1361.180054 | I180: 1 | J180: 1 | K180: 1345.36 | L180: 1361.25 | M180: 1345.36 | N180: 1361.18 | O180: 28247100
A181: 166 | B181: 2017-04-13 | C181: 1358.609985 | D181: 1361.319946 | E181: 1345.23999 | F181: 1345.23999 | G181: 31438900 | H181: 1345.23999 | I181: 1 | J181: 1 | K181: 1358.61 | L181: 1361.32 | M181: 1345.24 | N181: 1345.24 | O181: 31438900
A182: 167 | B182: 2017-04-12 | C182: 1376.859985 | D182: 1376.859985 | E182: 1358.150024 | F182: 1359.199951 | G182: 31969500 | H182: 1359.199951 | I182: 1 | J182: 1 | K182: 1376.86 | L182: 1376.86 | M182: 1358.15 | N182: 1359.2 | O182: 31969500
A183: 168 | B183: 2017-04-11 | C183: 1366.469971 | D183: 1377.22998 | E183: 1360.540039 | F183: 1376.949951 | G183: 31174200 | H183: 1376.949951 | I183: 1 | J183: 1 | K183: 1366.47 | L183: 1377.23 | M183: 1360.54 | N183: 1376.95 | O183: 31174200
A184: 169 | B184: 2017-04-10 | C184: 1364.76001 | D184: 1376.560059 | E184: 1361.540039 | F184: 1367.089966 | G184: 27854100 | H184: 1367.089966 | I184: 1 | J184: 1 | K184: 1364.76 | L184: 1376.56 | M184: 1361.54 | N184: 1367.09 | O184: 27854100
A185: 170 | B185: 2017-04-07 | C185: 1363.839966 | D185: 1367.5 | E185: 1358.01001 | F185: 1364.560059 | G185: 30531500 | H185: 1364.560059 | I185: 1 | J185: 1 | K185: 1363.84 | L185: 1367.5 | M185: 1358.01 | N185: 1364.56 | O185: 30531500
A186: 171 | B186: 2017-04-06 | C186: 1351.959961 | D186: 1364.52002 | E186: 1349.339966 | F186: 1364.430054 | G186: 32019200 | H186: 1364.430054 | I186: 1 | J186: 1 | K186: 1351.96 | L186: 1364.52 | M186: 1349.34 | N186: 1364.43 | O186: 32019200
A187: 172 | B187: 2017-04-05 | C187: 1369.790039 | D187: 1381.339966 | E187: 1350.959961 | F187: 1352.140015 | G187: 37705200 | H187: 1352.140015 | I187: 1 | J187: 1 | K187: 1369.79 | L187: 1381.34 | M187: 1350.96 | N187: 1352.14 | O187: 37705200
A188: 173 | B188: 2017-04-04 | C188: 1368.579956 | D188: 1374.050049 | E188: 1363.300049 | F188: 1368.180054 | G188: 32062400 | H188: 1368.180054 | I188: 1 | J188: 1 | K188: 1368.58 | L188: 1374.05 | M188: 1363.3 | N188: 1368.18 | O188: 32062400
A189: 174 | B189: 2017-04-03 | C189: 1386.430054 | D189: 1388.73999 | E189: 1366.530029 | F189: 1369.670044 | G189: 34164000 | H189: 1369.670044 | I189: 1 | J189: 1 | K189: 1386.43 | L189: 1388.74 | M189: 1366.53 | N189: 1369.67 | O189: 34164000
A190: 175 | B190: 2017-03-31 | C190: 1382.199951 | D190: 1389.949951 | E190: 1380.119995 | F190: 1385.920044 | G190: 33541100 | H190: 1385.920044 | I190: 1 | J190: 1 | K190: 1382.2 | L190: 1389.95 | M190: 1380.12 | N190: 1385.92 | O190: 33541100
A191: 176 | B191: 2017-03-30 | C191: 1371.98999 | D191: 1382.930054 | E191: 1371.98999 | F191: 1382.349976 | G191: 31584200 | H191: 1382.349976 | I191: 1 | J191: 1 | K191: 1371.99 | L191: 1382.93 | M191: 1371.99 | N191: 1382.35 | O191: 31584200
A192: 177 | B192: 2017-03-29 | C192: 1366.680054 | D192: 1373.130005 | E192: 1363.349976 | F192: 1371.640015 | G192: 31069400 | H192: 1371.640015 | I192: 1 | J192: 1 | K192: 1366.68 | L192: 1373.13 | M192: 1363.35 | N192: 1371.64 | O192: 31069400
A193: 178 | B193: 2017-03-28 | C193: 1356.699951 | D193: 1367.939941 | E193: 1352.530029 | F193: 1367.26001 | G193: 33677800 | H193: 1367.26001 | I193: 1 | J193: 1 | K193: 1356.7 | L193: 1367.94 | M193: 1352.53 | N193: 1367.26 | O193: 33677800
A194: 179 | B194: 2017-03-27 | C194: 1352.699951 | D194: 1359.329956 | E194: 1335.040039 | F194: 1357.319946 | G194: 32402300 | H194: 1357.319946 | I194: 1 | J194: 1 | K194: 1352.7 | L194: 1359.33 | M194: 1335.04 | N194: 1357.32 | O194: 32402300
A195: 180 | B195: 2017-03-24 | C195: 1354.52002 | D195: 1362.790039 | E195: 1349.180054 | F195: 1354.640015 | G195: 29751300 | H195: 1354.640015 | I195: 1 | J195: 1 | K195: 1354.52 | L195: 1362.79 | M195: 1349.18 | N195: 1354.64 | O195: 29751300
A196: 181 | B196: 2017-03-23 | C196: 1345.420044 | D196: 1361.219971 | E196: 1343.290039 | F196: 1353.430054 | G196: 32606000 | H196: 1353.430054 | I196: 1 | J196: 1 | K196: 1345.42 | L196: 1361.22 | M196: 1343.29 | N196: 1353.43 | O196: 32606000
A197: 182 | B197: 2017-03-22 | C197: 1346.209961 | D197: 1348.640015 | E197: 1335.219971 | F197: 1345.599976 | G197: 35727300 | H197: 1345.599976 | I197: 1 | J197: 1 | K197: 1346.21 | L197: 1348.64 | M197: 1335.22 | N197: 1345.6 | O197: 35727300
A198: 183 | B198: 2017-03-21 | C198: 1385.530029 | D198: 1390.199951 | E198: 1346.030029 | F198: 1346.550049 | G198: 42655900 | H198: 1346.550049 | I198: 1 | J198: 1 | K198: 1385.53 | L198: 1390.2 | M198: 1346.03 | N198: 1346.55 | O198: 42655900
A199: 184 | B199: 2017-03-20 | C199: 1391.459961 | D199: 1391.47998 | E199: 1381.119995 | F199: 1384.099976 | G199: 30549300 | H199: 1384.099976 | I199: 1 | J199: 1 | K199: 1391.46 | L199: 1391.48 | M199: 1381.12 | N199: 1384.1 | O199: 30549300
A200: 185 | B200: 2017-03-17 | C200: 1385.27002 | D200: 1393.180054 | E200: 1380.689941 | F200: 1391.52002 | G200: 51780400 | H200: 1391.52002 | I200: 1 | J200: 1 | K200: 1385.27 | L200: 1393.18 | M200: 1380.69 | N200: 1391.52 | O200: 51780400
... 4300 more rows

Sheet CalculationsAndCharts
A1: Weekly & Daily Percentage Price Oscillator
A2: =InputPriceData!A1 -> Russell 2000 (^RUT) -Chicago Options (Daily) | R2: Chart Clutter Controls
R3: Price Chart
A4: User Charting Controls | E4: Click to Shift Chart One Bar: | R4: TRUE
A5: Data Control | R5: TRUE
A6: =InputPriceData!$B$10 -> 7625 | B6: Available Input Data Rows | E6: Earliest: | F6: =OFFSET(InputPriceData!B15,CalculationsAndCharts!A6,0,1,1) -> 1987-09-10 | R6: TRUE
B7: Use Close Adjusted: | C7: TRUE | E7: Latest: | F7: =OFFSET(InputPriceData!B15,1,0,1,1) -> 2017-12-07 | R7: TRUE
A8: =MIN(A6-A11,LOOKUP(2,1/(C:C<>0),ROW(A:A))-32) -> 2800 | B8: Logically Available for Calc / Plot | E8: $ Change: | F8: =G33-G34 -> 7.2
A10: Price Chart Windowing Controls | F10: Y-axis Range
A11: 616 | B11: Input Data Offset (Pan) | E11: Max High+ | F11: =CEILING(MAX(MAX(OFFSET($E$33,0,0,$A$12,1)))+2*F14,0.1) -> 1321.6
A12: 246 | B12: Data Points to Plot (Zoom) | E12: Min Low- | F12: =FLOOR(MIN(MIN(OFFSET($F$33,0,0,$A$12,1)))-2*F14,0.1) -> 1014.8 | R12: PPO Chart
B13: First: | C13: =OFFSET(B32,A12,0,1,1) -> 2014-07-10 | E13: White space %: | F13: 0.05 | R13: TRUE
B14: ="Last: " & IF(OFFSET(InputPriceData!P15,1+A11,0,1,1)="","",TEXT(OFFSET(InputPriceData!P15,1+A11,0,1,1),"H:MM AM/PM")) -> Last: | C14: =B33 -> 2015-06-30 | E14: Allowance: | F14: =FLOOR((CEILING(MAX(MAX(OFFSET($E$33,0,0,$A$12,1))),1)-FLOOR(MIN(MIN(OFFSET($F$33,0,0,$A$12,1))),1))*F13,0.01) -> 12.8 | R14: TRUE
A15: User Controls | C15: EMA Coefficients | R15: TRUE
A16: MACD Controls | C16: EMA Coefficients
B17: Bar Length | C17: Alpha | D17: 1 - Alpha
A18: Daily | B18: 12 | C18: =2/(B18+1) -> 0.1538461538 | D18: =1-C18 -> 0.8461538462 | R18: MACD CHART
B19: 26 | C19: =2/(B19+1) -> 0.07407407407 | D19: =1-C19 -> 0.9259259259 | R19: TRUE
A20: Weekly | B20: 60 | C20: 0.03278688525 | D20: 0.9672131148 | R20: TRUE
B21: 130 | C21: 0.01526717557 | D21: 0.9847328244 | R21: TRUE
A23: Help! I would like to plot data
A24: From | B24: 2014-07-10 | C24: =OFFSET(InputPriceData!$A$15,MATCH(B24,OFFSET(InputPriceData!B15,1,0,InputPriceData!$B$10,1),0),0,1,1)-C25 -> 246 | E24: 1
A25: To | B25: 2015-06-30 | C25: =OFFSET(InputPriceData!$A$15,MATCH(B25,OFFSET(InputPriceData!$B$15,1,0,InputPriceData!$B$10,1),0),0,1,1)-1 -> 616 | E25: =$A$12-$E$24+1 -> 246
H28: @ Cursor => | I28: =OFFSET(A32,$E$25,0,1,1)&"(RR)" -> 246(RR) | J28: =OFFSET($B$32,E25,0,1,1) -> 2014-07-10 | K28: =TEXT(OFFSET(D32,$E$25,0,1,1),"#,##0.00")&"(o)" -> 1,158.59(o) | L28: =TEXT(OFFSET(E32,$E$25,0,1,1),"#,##0.00")&"(h)" -> 1,168.22(h) | M28: =TEXT(OFFSET(F32,$E$25,0,1,1),"#,##0.00")&"(l)" -> 1,151.12(l) | N28: =TEXT(OFFSET(G32,$E$25,0,1,1),"#,##0.00")&"(c)" -> 1,161.86(c) | V28: Clutter Controll Work Area for the Charts
E29: Cursor ==> | V29: Price Chart EMAs | Z29: W&D MACD Charting Series | AC29: W&D PPO Charting Series | AT29: Chart cursors
AT30: Work area
A31: Rel Row | H31: MACD Daily | J31: ="MACD (" & $B$18 & ", "&$B$19 & ")" -> MACD (12, 26) | K31: Weekly MACD | M31: ="W-MACD (" & $B$20& ", "&$B$21 & ")" -> W-MACD (60, 130) | N31: ="RD-MACD (" & $B$20& ", "& $B$21& ", "& $B$18& ", "&$B$19 & ")" -> RD-MACD (60, 130, 12, 26) | R31: ="W-PPO (" & $B$20& ", "&$B$21 & ")" -> W-PPO (60, 130) | S31: ="D-PPO (" & $B$18 & ", "&$B$19 & ")" -> D-PPO (12, 26) | T31: ="R&D-PPO (" & $B$20& ", "& $B$21& ", "& $B$18& ", "&$B$19 & ")" -> R&D-PPO (60, 130, 12, 26) | V31: =H32 -> EMA(12) | W31: =I32 -> EMA(26) | X31: =K32 -> EMA(60) | Y31: =L32 -> EMA(130) | Z31: ="Daily(" & $B$18 & ", "&$B$19 & ")" -> Daily(12, 26) | AA31: ="Weekly(" & $B$20& ", "&$B$21 & ")" -> Weekly(60, 130) | AB31: ="Relative Daily(" & $B$20& ", "& $B$21& ", "& $B$18& ", "&$B$19 & ")" -> Relative Daily(60, 130, 12, 26) | AC31: ="Daily(" & $B$18 & ", "&$B$19 & ")" -> Daily(12, 26) | AD31: ="Weekly(" & $B$20& ", "&$B$21 & ")" -> Weekly(60, 130) | AE31: ="Relative Daily(" & $B$20& ", "& $B$21& ", "& $B$18& ", "&$B$19 & ")" -> Relative Daily(60, 130, 12, 26) | AO31: Used To Color Vol Bars
B32: Date | C32: Volume | D32: Open | E32: High | F32: Low | G32: Close | H32: ="EMA(" & B18 & ")" -> EMA(12) | I32: ="EMA(" & B19 & ")" -> EMA(26) | K32: ="EMA(" & B20 & ")" -> EMA(60) | L32: ="EMA(" & B21 & ")" -> EMA(130) | O32: Zero Line | AO32: Up Vol | AP32: Dn Vol | AT32: Volume Cursor | AV32: =MAX(OFFSET(C33,0,0,A12,1)) -> 64655300 | AW32: MACD Chart Cursor | AY32: Price Chart Cursor | BA32: PPO Chart Cursor
A33: 1 | B33: =OFFSET(InputPriceData!B$15,CalculationsAndCharts!$A33+$A$11,0,1,1) -> 2015-06-30 | C33: =OFFSET(InputPriceData!G$15,CalculationsAndCharts!$A33+$A$11,IF($C$7,8,0),1,1) -> 40785400 | D33: =OFFSET(InputPriceData!C$15,CalculationsAndCharts!$A33+$A$11,IF($C$7,8,0),1,1) -> 1255.51 | E33: =OFFSET(InputPriceData!D$15,CalculationsAndCharts!$A33+$A$11,IF($C$7,8,0),1,1) -> 1256.87 | F33: =OFFSET(InputPriceData!E$15,CalculationsAndCharts!$A33+$A$11,IF($C$7,8,0),1,1) -> 1248.81 | G33: =OFFSET(InputPriceData!F$15,CalculationsAndCharts!$A33+$A$11,IF($C$7,8,0),1,1) -> 1253.95 | H33: =IF($A33>$A$8,NA(),IF($A33=$A$8,$G33,$G33*$C$18+H34*$D$18)) -> 1270.310422 | I33: =IF($A33>$A$8,NA(),IF($A33=$A$8,$G33,$G33*$C$19+I34*$D$19)) -> 1266.045726 | J33: =H33-I33 -> 4.264695876 | K33: =IF($A33>$A$8,NA(),IF($A33=$A$8,$G33,$G33*$C$20+K34*$D$20)) -> 1255.570252 | L33: =IF($A33>$A$8,NA(),IF($A33=$A$8,$G33,$G33*$C$21+L34*$D$21)) -> 1234.032258 | M33: =K33-L33 -> 21.53799345 | N33: =J33+M33 -> 25.80268933 | O33: 0 | R33: =(K33-L33)/L33*100 -> 1.745334719 | S33: =(H33-I33)/L33*100 -> 0.3455903074 | T33: =R33+S33 -> 2.090925026 | V33: =IF($R$4,H33,NA()) -> 1270.310422 | W33: =IF($R$5,I33,NA()) -> 1266.045726 | X33: =IF($R$6,K33,NA()) -> 1255.570252 | Y33: =IF($R$7,L33,NA()) -> 1234.032258 | Z33: =IF($R$19,J33,NA()) -> 4.264695876 | AA33: =IF($R$20,M33,NA()) -> 21.53799345 | AB33: =IF($R$21,N33,NA()) -> 25.80268933 | AC33: =IF($R$13,S33,NA()) -> 0.3455903074 | AD33: =IF($R$14,R33,NA()) -> 1.745334719 | AE33: =IF($R$15,T33,NA()) -> 2.090925026 | AO33: =IF(G33>=D33,C33,NA()) ->  | AP33: =IF(G33<D33,C33,NA()) -> 40785400 | AT33: =$E$25 -> 246 | AV33: 0 | AW33: =$E$25 -> 246 | AX33: -33 | AY33: =$E$25 -> 246 | AZ33: 1014.45825 | BA33: =$E$25 -> 246 | BB33: -2.83
A34: 2 | B34: =OFFSET(InputPriceData!B$15,CalculationsAndCharts!$A34+$A$11,0,1,1) -> 2015-06-29 | C34: =OFFSET(InputPriceData!G$15,CalculationsAndCharts!$A34+$A$11,IF($C$7,8,0),1,1) -> 36789600 | D34: =OFFSET(InputPriceData!C$15,CalculationsAndCharts!$A34+$A$11,IF($C$7,8,0),1,1) -> 1269.36 | E34: =OFFSET(InputPriceData!D$15,CalculationsAndCharts!$A34+$A$11,IF($C$7,8,0),1,1) -> 1273.95 | F34: =OFFSET(InputPriceData!E$15,CalculationsAndCharts!$A34+$A$11,IF($C$7,8,0),1,1) -> 1246.6 | G34: =OFFSET(InputPriceData!F$15,CalculationsAndCharts!$A34+$A$11,IF($C$7,8,0),1,1) -> 1246.75 | H34: =IF($A34>$A$8,NA(),IF(A34=$A$8,G34,G34*$C$18+H35*$D$18)) -> 1273.285044 | I34: =IF($A34>$A$8,NA(),IF($A34=$A$8,$G34,$G34*$C$19+I35*$D$19)) -> 1267.013384 | J34: =H34-I34 -> 6.271659986 | K34: =IF($A34>$A$8,NA(),IF($A34=$A$8,$G34,$G34*$C$20+K35*$D$20)) -> 1255.625176 | L34: =IF($A34>$A$8,NA(),IF($A34=$A$8,$G34,$G34*$C$21+L35*$D$21)) -> 1233.723456 | M34: =K34-L34 -> 21.90171944 | N34: =J34+M34 -> 28.17337942 | O34: 0 | R34: 1.775253549 | S34: 0.508352172 | T34: =R34+S34 -> 2.283605721 | V34: =IF($R$4,H34,NA()) -> 1273.285044 | W34: =IF($R$5,I34,NA()) -> 1267.013384 | X34: =IF($R$6,K34,NA()) -> 1255.625176 | Y34: =IF($R$7,L34,NA()) -> 1233.723456 | Z34: 6.271659986 | AA34: 21.90171944 | AB34: 28.17337942 | AC34: 0.508352172 | AD34: 1.775253549 | AE34: 2.283605721 | AP34: 36789600 | AT34: =$E$25 -> 246 | AV34: =1.2*AV32 -> 77586360 | AW34: =$E$25 -> 246 | AX34: 38 | AY34: =$E$25 -> 246 | AZ34: 1328.4 | BA34: =$E$25 -> 246 | BB34: 3.1
A35: 3 | B35: =OFFSET(InputPriceData!B$15,CalculationsAndCharts!$A35+$A$11,0,1,1) -> 2015-06-26 | C35: =OFFSET(InputPriceData!G$15,CalculationsAndCharts!$A35+$A$11,IF($C$7,8,0),1,1) -> 50254700 | D35: =OFFSET(InputPriceData!C$15,CalculationsAndCharts!$A35+$A$11,IF($C$7,8,0),1,1) -> 1285.23 | E35: =OFFSET(InputPriceData!D$15,CalculationsAndCharts!$A35+$A$11,IF($C$7,8,0),1,1) -> 1287.1 | F35: =OFFSET(InputPriceData!E$15,CalculationsAndCharts!$A35+$A$11,IF($C$7,8,0),1,1) -> 1274.03 | G35: =OFFSET(InputPriceData!F$15,CalculationsAndCharts!$A35+$A$11,IF($C$7,8,0),1,1) -> 1279.8 | H35: 1278.109598 | I35: 1268.634455 | J35: 9.475142761 | K35: 1255.926029 | L35: 1233.521494 | M35: 22.40453477 | N35: 31.87967753 | O35: 0 | R35: 1.816306799 | S35: 0.7681376291 | T35: 2.584444428 | V35: 1278.109598 | W35: 1268.634455 | X35: 1255.926029 | Y35: 1233.521494 | Z35: 9.475142761 | AA35: 22.40453477 | AB35: 31.87967753 | AC35: 0.7681376291 | AD35: 1.816306799 | AE35: 2.584444428 | AP35: 50254700
A36: 4 | B36: =OFFSET(InputPriceData!B$15,CalculationsAndCharts!$A36+$A$11,0,1,1) -> 2015-06-25 | C36: =OFFSET(InputPriceData!G$15,CalculationsAndCharts!$A36+$A$11,IF($C$7,8,0),1,1) -> 32146100 | D36: =OFFSET(InputPriceData!C$15,CalculationsAndCharts!$A36+$A$11,IF($C$7,8,0),1,1) -> 1286.97 | E36: =OFFSET(InputPriceData!D$15,CalculationsAndCharts!$A36+$A$11,IF($C$7,8,0),1,1) -> 1287.46 | F36: =OFFSET(InputPriceData!E$15,CalculationsAndCharts!$A36+$A$11,IF($C$7,8,0),1,1) -> 1278.57 | G36: =OFFSET(InputPriceData!F$15,CalculationsAndCharts!$A36+$A$11,IF($C$7,8,0),1,1) -> 1283.28 | H36: 1277.802252 | I36: 1267.741212 | J36: 10.06104052 | K36: 1255.116742 | L36: 1232.803998 | M36: 22.31274383 | N36: 32.37378435 | O36: 0 | R36: 1.809918192 | S36: 0.8161103088 | T36: 2.626028501 | V36: 1277.802252 | W36: 1267.741212 | X36: 1255.116742 | Y36: 1232.803998 | Z36: 10.06104052 | AA36: 22.31274383 | AB36: 32.37378435 | AC36: 0.8161103088 | AD36: 1.809918192 | AE36: 2.626028501 | AP36: 32146100
A37: 5 | B37: =OFFSET(InputPriceData!B$15,CalculationsAndCharts!$A37+$A$11,0,1,1) -> 2015-06-24 | C37: =OFFSET(InputPriceData!G$15,CalculationsAndCharts!$A37+$A$11,IF($C$7,8,0),1,1) -> 31024800 | D37: =OFFSET(InputPriceData!C$15,CalculationsAndCharts!$A37+$A$11,IF($C$7,8,0),1,1) -> 1293.81 | E37: =OFFSET(InputPriceData!D$15,CalculationsAndCharts!$A37+$A$11,IF($C$7,8,0),1,1) -> 1295.03 | F37: =OFFSET(InputPriceData!E$15,CalculationsAndCharts!$A37+$A$11,IF($C$7,8,0),1,1) -> 1283.2 | G37: =OFFSET(InputPriceData!F$15,CalculationsAndCharts!$A37+$A$11,IF($C$7,8,0),1,1) -> 1283.92 | H37: 1276.806298 | I37: 1266.498109 | J37: 10.30818943 | K37: 1254.162055 | L37: 1232.021424 | M37: 22.14063079 | N37: 32.44882021 | O37: 0 | R37: 1.797097871 | S37: 0.8366891371 | T37: 2.633787008 | V37: 1276.806298 | W37: 1266.498109 | X37: 1254.162055 | Y37: 1232.021424 | Z37: 10.30818943 | AA37: 22.14063079 | AB37: 32.44882021 | AC37: 0.8366891371 | AD37: 1.797097871 | AE37: 2.633787008 | AP37: 31024800
A38: 6 | B38: =OFFSET(InputPriceData!B$15,CalculationsAndCharts!$A38+$A$11,0,1,1) -> 2015-06-23 | C38: =OFFSET(InputPriceData!G$15,CalculationsAndCharts!$A38+$A$11,IF($C$7,8,0),1,1) -> 30911900 | D38: =OFFSET(InputPriceData!C$15,CalculationsAndCharts!$A38+$A$11,IF($C$7,8,0),1,1) -> 1294.37 | E38: =OFFSET(InputPriceData!D$15,CalculationsAndCharts!$A38+$A$11,IF($C$7,8,0),1,1) -> 1296 | F38: =OFFSET(InputPriceData!E$15,CalculationsAndCharts!$A38+$A$11,IF($C$7,8,0),1,1) -> 1289.59 | G38: =OFFSET(InputPriceData!F$15,CalculationsAndCharts!$A38+$A$11,IF($C$7,8,0),1,1) -> 1295.8 | H38: 1275.512898 | I38: 1265.104357 | J38: 10.40854037 | K38: 1253.153311 | L38: 1231.216795 | M38: 21.93651598 | N38: 32.34505634 | O38: 0 | R38: 1.781694017 | S38: 0.8453864834 | T38: 2.6270805 | V38: 1275.512898 | W38: 1265.104357 | X38: 1253.153311 | Y38: 1231.216795 | Z38: 10.40854037 | AA38: 21.93651598 | AB38: 32.34505634 | AC38: 0.8453864834 | AD38: 1.781694017 | AE38: 2.6270805 | AO38: 30911900
A39: 7 | B39: =OFFSET(InputPriceData!B$15,CalculationsAndCharts!$A39+$A$11,0,1,1) -> 2015-06-22 | C39: =OFFSET(InputPriceData!G$15,CalculationsAndCharts!$A39+$A$11,IF($C$7,8,0),1,1) -> 30300200 | D39: =OFFSET(InputPriceData!C$15,CalculationsAndCharts!$A39+$A$11,IF($C$7,8,0),1,1) -> 1290.56 | E39: =OFFSET(InputPriceData!D$15,CalculationsAndCharts!$A39+$A$11,IF($C$7,8,0),1,1) -> 1293.31 | F39: =OFFSET(InputPriceData!E$15,CalculationsAndCharts!$A39+$A$11,IF($C$7,8,0),1,1) -> 1288.49 | G39: =OFFSET(InputPriceData!F$15,CalculationsAndCharts!$A39+$A$11,IF($C$7,8,0),1,1) -> 1292.39 | H39: 1271.824333 | I39: 1262.648706 | J39: 9.175627713 | K39: 1251.707661 | L39: 1230.215505 | M39: 21.49215551 | N39: 30.66778322 | O39: 0 | R39: 1.747023624 | S39: 0.7458553134 | T39: 2.492878938 | V39: 1271.824333 | W39: 1262.648706 | X39: 1251.707661 | Y39: 1230.215505 | Z39: 9.175627713 | AA39: 21.49215551 | AB39: 30.66778322 | AC39: 0.7458553134 | AD39: 1.747023624 | AE39: 2.492878938 | AO39: 30300200
A40: 8 | B40: =OFFSET(InputPriceData!B$15,CalculationsAndCharts!$A40+$A$11,0,1,1) -> 2015-06-19 | C40: =OFFSET(InputPriceData!G$15,CalculationsAndCharts!$A40+$A$11,IF($C$7,8,0),1,1) -> 44498100 | D40: =OFFSET(InputPriceData!C$15,CalculationsAndCharts!$A40+$A$11,IF($C$7,8,0),1,1) -> 1285.47 | E40: =OFFSET(InputPriceData!D$15,CalculationsAndCharts!$A40+$A$11,IF($C$7,8,0),1,1) -> 1286.58 | F40: =OFFSET(InputPriceData!E$15,CalculationsAndCharts!$A40+$A$11,IF($C$7,8,0),1,1) -> 1281.66 | G40: =OFFSET(InputPriceData!F$15,CalculationsAndCharts!$A40+$A$11,IF($C$7,8,0),1,1) -> 1284.66 | H40: 1268.085121 | I40: 1260.269402 | J40: 7.815719157 | K40: 1250.328598 | L40: 1229.25156 | M40: 21.07703882 | N40: 28.89275797 | O40: 0 | R40: 1.71462372 | S40: 0.6358112052 | T40: 2.350434925 | V40: 1268.085121 | W40: 1260.269402 | X40: 1250.328598 | Y40: 1229.25156 | Z40: 7.815719157 | AA40: 21.07703882 | AB40: 28.89275797 | AC40: 0.6358112052 | AD40: 1.71462372 | AE40: 2.350434925 | AP40: 44498100
A41: 9 | B41: =OFFSET(InputPriceData!B$15,CalculationsAndCharts!$A41+$A$11,0,1,1) -> 2015-06-18 | C41: =OFFSET(InputPriceData!G$15,CalculationsAndCharts!$A41+$A$11,IF($C$7,8,0),1,1) -> 34990000 | D41: =OFFSET(InputPriceData!C$15,CalculationsAndCharts!$A41+$A$11,IF($C$7,8,0),1,1) -> 1271.95 | E41: =OFFSET(InputPriceData!D$15,CalculationsAndCharts!$A41+$A$11,IF($C$7,8,0),1,1) -> 1287.06 | F41: =OFFSET(InputPriceData!E$15,CalculationsAndCharts!$A41+$A$11,IF($C$7,8,0),1,1) -> 1271.95 | G41: =OFFSET(InputPriceData!F$15,CalculationsAndCharts!$A41+$A$11,IF($C$7,8,0),1,1) -> 1284.68 | H41: 1265.071507 | I41: 1258.318154 | J41: 6.753352685 | K41: 1249.164822 | L41: 1228.392514 | M41: 20.77230808 | N41: 27.52566076 | O41: 0 | R41: 1.691015522 | S41: 0.5497715598 | T41: 2.240787081 | V41: 1265.071507 | W41: 1258.318154 | X41: 1249.164822 | Y41: 1228.392514 | Z41: 6.753352685 | AA41: 20.77230808 | AB41: 27.52566076 | AC41: 0.5497715598 | AD41: 1.691015522 | AE41: 2.240787081 | AO41: 34990000
A42: 10 | B42: =OFFSET(InputPriceData!B$15,CalculationsAndCharts!$A42+$A$11,0,1,1) -> 2015-06-17 | C42: =OFFSET(InputPriceData!G$15,CalculationsAndCharts!$A42+$A$11,IF($C$7,8,0),1,1) -> 32222400 | D42: =OFFSET(InputPriceData!C$15,CalculationsAndCharts!$A42+$A$11,IF($C$7,8,0),1,1) -> 1273.36 | E42: =OFFSET(InputPriceData!D$15,CalculationsAndCharts!$A42+$A$11,IF($C$7,8,0),1,1) -> 1274.4 | F42: =OFFSET(InputPriceData!E$15,CalculationsAndCharts!$A42+$A$11,IF($C$7,8,0),1,1) -> 1266.63 | G42: =OFFSET(InputPriceData!F$15,CalculationsAndCharts!$A42+$A$11,IF($C$7,8,0),1,1) -> 1268.33 | H42: 1261.506327 | I42: 1256.209207 | J42: 5.297119803 | K42: 1247.960918 | L42: 1227.51984 | M42: 20.44107795 | N42: 25.73819775 | O42: 0 | R42: 1.665234018 | S42: 0.43153028 | T42: 2.096764298 | V42: 1261.506327 | W42: 1256.209207 | X42: 1247.960918 | Y42: 1227.51984 | Z42: 5.297119803 | AA42: 20.44107795 | AB42: 25.73819775 | AC42: 0.43153028 | AD42: 1.665234018 | AE42: 2.096764298 | AP42: 32222400
A43: 11 | B43: =OFFSET(InputPriceData!B$15,CalculationsAndCharts!$A43+$A$11,0,1,1) -> 2015-06-16 | C43: =OFFSET(InputPriceData!G$15,CalculationsAndCharts!$A43+$A$11,IF($C$7,8,0),1,1) -> 29199000 | D43: =OFFSET(InputPriceData!C$15,CalculationsAndCharts!$A43+$A$11,IF($C$7,8,0),1,1) -> 1259.02 | E43: =OFFSET(InputPriceData!D$15,CalculationsAndCharts!$A43+$A$11,IF($C$7,8,0),1,1) -> 1271.46 | F43: =OFFSET(InputPriceData!E$15,CalculationsAndCharts!$A43+$A$11,IF($C$7,8,0),1,1) -> 1258.93 | G43: =OFFSET(InputPriceData!F$15,CalculationsAndCharts!$A43+$A$11,IF($C$7,8,0),1,1) -> 1269.53 | H43: =IF($A43>$A$8,NA(),IF(A43=$A$8,G43,G43*$C$18+H44*$D$18)) -> 1260.265659 | I43: =IF($A43>$A$8,NA(),IF($A43=$A$8,$G43,$G43*$C$19+I44*$D$19)) -> 1255.239543 | J43: =H43-I43 -> 5.026115364 | K43: 1247.27044 | L43: 1226.887124 | M43: 20.38331625 | N43: 25.40943161 | O43: 0 | R43: 1.661384804 | S43: 0.4096640403 | T43: 2.071048845 | V43: 1260.265659 | W43: 1255.239543 | X43: 1247.27044 | Y43: 1226.887124 | Z43: 5.026115364 | AA43: 20.38331625 | AB43: 25.40943161 | AC43: 0.4096640403 | AD43: 1.661384804 | AE43: 2.071048845 | AO43: 29199000
A44: 12 | B44: =OFFSET(InputPriceData!B$15,CalculationsAndCharts!$A44+$A$11,0,1,1) -> 2015-06-15 | C44: =OFFSET(InputPriceData!G$15,CalculationsAndCharts!$A44+$A$11,IF($C$7,8,0),1,1) -> 30615700 | D44: =OFFSET(InputPriceData!C$15,CalculationsAndCharts!$A44+$A$11,IF($C$7,8,0),1,1) -> 1259.38 | E44: =OFFSET(InputPriceData!D$15,CalculationsAndCharts!$A44+$A$11,IF($C$7,8,0),1,1) -> 1262.86 | F44: =OFFSET(InputPriceData!E$15,CalculationsAndCharts!$A44+$A$11,IF($C$7,8,0),1,1) -> 1247.52 | G44: =OFFSET(InputPriceData!F$15,CalculationsAndCharts!$A44+$A$11,IF($C$7,8,0),1,1) -> 1261.04 | H44: 1258.581233 | I44: 1254.096307 | J44: 4.484926201 | K44: 1246.515879 | L44: 1226.225994 | M44: 20.28988476 | N44: 24.77481097 | O44: 0 | R44: 1.654661119 | S44: 0.3657503773 | T44: 2.020411497 | V44: 1258.581233 | W44: 1254.096307 | X44: 1246.515879 | Y44: 1226.225994 | Z44: 4.484926201 | AA44: 20.28988476 | AB44: 24.77481097 | AC44: 0.3657503773 | AD44: 1.654661119 | AE44: 2.020411497 | AO44: 30615700
A45: 13 | B45: =OFFSET(InputPriceData!B$15,CalculationsAndCharts!$A45+$A$11,0,1,1) -> 2015-06-12 | C45: =OFFSET(InputPriceData!G$15,CalculationsAndCharts!$A45+$A$11,IF($C$7,8,0),1,1) -> 27194000 | D45: =OFFSET(InputPriceData!C$15,CalculationsAndCharts!$A45+$A$11,IF($C$7,8,0),1,1) -> 1265.56 | E45: =OFFSET(InputPriceData!D$15,CalculationsAndCharts!$A45+$A$11,IF($C$7,8,0),1,1) -> 1266.78 | F45: =OFFSET(InputPriceData!E$15,CalculationsAndCharts!$A45+$A$11,IF($C$7,8,0),1,1) -> 1262.22 | G45: =OFFSET(InputPriceData!F$15,CalculationsAndCharts!$A45+$A$11,IF($C$7,8,0),1,1) -> 1265.02 | H45: 1258.134184 | I45: 1253.540811 | J45: 4.593373108 | K45: 1246.023536 | L45: 1225.686242 | M45: 20.33729371 | N45: 24.93066682 | O45: 0 | R45: 1.659257729 | S45: 0.374759294 | T45: 2.034017023 | V45: 1258.134184 | W45: 1253.540811 | X45: 1246.023536 | Y45: 1225.686242 | Z45: 4.593373108 | AA45: 20.33729371 | AB45: 24.93066682 | AC45: 0.374759294 | AD45: 1.659257729 | AE45: 2.034017023 | AP45: 27194000
A46: 14 | B46: =OFFSET(InputPriceData!B$15,CalculationsAndCharts!$A46+$A$11,0,1,1) -> 2015-06-11 | C46: =OFFSET(InputPriceData!G$15,CalculationsAndCharts!$A46+$A$11,IF($C$7,8,0),1,1) -> 31286000 | D46: =OFFSET(InputPriceData!C$15,CalculationsAndCharts!$A46+$A$11,IF($C$7,8,0),1,1) -> 1268.68 | E46: =OFFSET(InputPriceData!D$15,CalculationsAndCharts!$A46+$A$11,IF($C$7,8,0),1,1) -> 1270.79 | F46: =OFFSET(InputPriceData!E$15,CalculationsAndCharts!$A46+$A$11,IF($C$7,8,0),1,1) -> 1266.05 | G46: =OFFSET(InputPriceData!F$15,CalculationsAndCharts!$A46+$A$11,IF($C$7,8,0),1,1) -> 1268.92 | H46: 1256.882218 | I46: 1252.622476 | J46: 4.259741733 | K46: 1245.379588 | L46: 1225.076417 | M46: 20.30317148 | N46: 24.56291321 | O46: 0 | R46: 1.65729837 | S46: 0.3477123284 | T46: 2.005010698 | V46: 1256.882218 | W46: 1252.622476 | X46: 1245.379588 | Y46: 1225.076417 | Z46: 4.259741733 | AA46: 20.30317148 | AB46: 24.56291321 | AC46: 0.3477123284 | AD46: 1.65729837 | AE46: 2.005010698 | AO46: 31286000
A47: 15 | B47: =OFFSET(InputPriceData!B$15,CalculationsAndCharts!$A47+$A$11,0,1,1) -> 2015-06-10 | C47: =OFFSET(InputPriceData!G$15,CalculationsAndCharts!$A47+$A$11,IF($C$7,8,0),1,1) -> 34143200 | D47: =OFFSET(InputPriceData!C$15,CalculationsAndCharts!$A47+$A$11,IF($C$7,8,0),1,1) -> 1254.47 | E47: =OFFSET(InputPriceData!D$15,CalculationsAndCharts!$A47+$A$11,IF($C$7,8,0),1,1) -> 1269.77 | F47: =OFFSET(InputPriceData!E$15,CalculationsAndCharts!$A47+$A$11,IF($C$7,8,0),1,1) -> 1254.47 | G47: =OFFSET(InputPriceData!F$15,CalculationsAndCharts!$A47+$A$11,IF($C$7,8,0),1,1) -> 1266.93 | H47: 1254.69353 | I47: 1251.318674 | J47: 3.374855988 | K47: 1244.581608 | L47: 1224.396671 | M47: 20.18493689 | N47: 23.55979288 | O47: 0 | R47: 1.648561889 | S47: 0.2756342015 | T47: 1.924196091 | V47: 1254.69353 | W47: 1251.318674 | X47: 1244.581608 | Y47: 1224.396671 | Z47: 3.374855988 | AA47: 20.18493689 | AB47: 23.55979288 | AC47: 0.2756342015 | AD47: 1.648561889 | AE47: 1.924196091 | AO47: 34143200
A48: 16 | B48: =OFFSET(InputPriceData!B$15,CalculationsAndCharts!$A48+$A$11,0,1,1) -> 2015-06-09 | C48: =OFFSET(InputPriceData!G$15,CalculationsAndCharts!$A48+$A$11,IF($C$7,8,0),1,1) -> 30345800 | D48: =OFFSET(InputPriceData!C$15,CalculationsAndCharts!$A48+$A$11,IF($C$7,8,0),1,1) -> 1253.5 | E48: =OFFSET(InputPriceData!D$15,CalculationsAndCharts!$A48+$A$11,IF($C$7,8,0),1,1) -> 1254.44 | F48: =OFFSET(InputPriceData!E$15,CalculationsAndCharts!$A48+$A$11,IF($C$7,8,0),1,1) -> 1242.36 | G48: =OFFSET(InputPriceData!F$15,CalculationsAndCharts!$A48+$A$11,IF($C$7,8,0),1,1) -> 1249.66 | H48: 1252.468718 | I48: 1250.069768 | J48: 2.398949369 | K48: 1243.824035 | L48: 1223.73724 | M48: 20.08679574 | N48: 22.48574511 | O48: 0 | R48: 1.641430455 | S48: 0.196034679 | T48: 1.837465134 | V48: 1252.468718 | W48: 1250.069768 | X48: 1243.824035 | Y48: 1223.73724 | Z48: 2.398949369 | AA48: 20.08679574 | AB48: 22.48574511 | AC48: 0.196034679 | AD48: 1.641430455 | AE48: 1.837465134 | AP48: 30345800
A49: 17 | B49: =OFFSET(InputPriceData!B$15,CalculationsAndCharts!$A49+$A$11,0,1,1) -> 2015-06-08 | C49: =OFFSET(InputPriceData!G$15,CalculationsAndCharts!$A49+$A$11,IF($C$7,8,0),1,1) -> 29171500 | D49: =OFFSET(InputPriceData!C$15,CalculationsAndCharts!$A49+$A$11,IF($C$7,8,0),1,1) -> 1259.67 | E49: =OFFSET(InputPriceData!D$15,CalculationsAndCharts!$A49+$A$11,IF($C$7,8,0),1,1) -> 1261.18 | F49: =OFFSET(InputPriceData!E$15,CalculationsAndCharts!$A49+$A$11,IF($C$7,8,0),1,1) -> 1252.73 | G49: =OFFSET(InputPriceData!F$15,CalculationsAndCharts!$A49+$A$11,IF($C$7,8,0),1,1) -> 1253.7 | H49: 1252.979394 | I49: 1250.10255 | J49: 2.876843839 | K49: 1243.626206 | L49: 1223.335336 | M49: 20.29086969 | N49: 23.16771353 | O49: 0 | R49: 1.658651483 | S49: 0.2351639614 | T49: 1.893815444 | V49: 1252.979394 | W49: 1250.10255 | X49: 1243.626206 | Y49: 1223.335336 | Z49: 2.876843839 | AA49: 20.29086969 | AB49: 23.16771353 | AC49: 0.2351639614 | AD49: 1.658651483 | AE49: 1.893815444 | AP49: 29171500
A50: 18 | B50: =OFFSET(InputPriceData!B$15,CalculationsAndCharts!$A50+$A$11,0,1,1) -> 2015-06-05 | C50: =OFFSET(InputPriceData!G$15,CalculationsAndCharts!$A50+$A$11,IF($C$7,8,0),1,1) -> 32436900 | D50: =OFFSET(InputPriceData!C$15,CalculationsAndCharts!$A50+$A$11,IF($C$7,8,0),1,1) -> 1250.4 | E50: =OFFSET(InputPriceData!D$15,CalculationsAndCharts!$A50+$A$11,IF($C$7,8,0),1,1) -> 1261.07 | F50: =OFFSET(InputPriceData!E$15,CalculationsAndCharts!$A50+$A$11,IF($C$7,8,0),1,1) -> 1242.74 | G50: =OFFSET(InputPriceData!F$15,CalculationsAndCharts!$A50+$A$11,IF($C$7,8,0),1,1) -> 1261.01 | H50: 1252.848374 | I50: 1249.814754 | J50: 3.033620507 | K50: 1243.284722 | L50: 1222.864566 | M50: 20.42015513 | N50: 23.45377564 | O50: 0 | R50: 1.669862362 | S50: 0.2480749373 | T50: 1.917937299 | V50: 1252.848374 | W50: 1249.814754 | X50: 1243.284722 | Y50: 1222.864566 | Z50: 3.033620507 | AA50: 20.42015513 | AB50: 23.45377564 | AC50: 0.2480749373 | AD50: 1.669862362 | AE50: 1.917937299 | AO50: 32436900
A51: 19 | B51: =OFFSET(InputPriceData!B$15,CalculationsAndCharts!$A51+$A$11,0,1,1) -> 2015-06-04 | C51: =OFFSET(InputPriceData!G$15,CalculationsAndCharts!$A51+$A$11,IF($C$7,8,0),1,1) -> 32000500 | D51: =OFFSET(InputPriceData!C$15,CalculationsAndCharts!$A51+$A$11,IF($C$7,8,0),1,1) -> 1258.54 | E51: =OFFSET(InputPriceData!D$15,CalculationsAndCharts!$A51+$A$11,IF($C$7,8,0),1,1) -> 1261.21 | F51: =OFFSET(InputPriceData!E$15,CalculationsAndCharts!$A51+$A$11,IF($C$7,8,0),1,1) -> 1248.43 | G51: =OFFSET(InputPriceData!F$15,CalculationsAndCharts!$A51+$A$11,IF($C$7,8,0),1,1) -> 1251.29 | H51: 1251.364442 | I51: 1248.919134 | J51: 2.445308246 | K51: 1242.683865 | L51: 1222.273164 | M51: 20.41070031 | N51: 22.85600856 | O51: 0 | R51: 1.669896788 | S51: 0.2000623361 | T51: 1.869959124 | V51: 1251.364442 | W51: 1248.919134 | X51: 1242.683865 | Y51: 1222.273164 | Z51: 2.445308246 | AA51: 20.41070031 | AB51: 22.85600856 | AC51: 0.2000623361 | AD51: 1.669896788 | AE51: 1.869959124 | AP51: 32000500
A52: 20 | B52: =OFFSET(InputPriceData!B$15,CalculationsAndCharts!$A52+$A$11,0,1,1) -> 2015-06-03 | C52: =OFFSET(InputPriceData!G$15,CalculationsAndCharts!$A52+$A$11,IF($C$7,8,0),1,1) -> 30999800 | D52: =OFFSET(InputPriceData!C$15,CalculationsAndCharts!$A52+$A$11,IF($C$7,8,0),1,1) -> 1254.98 | E52: =OFFSET(InputPriceData!D$15,CalculationsAndCharts!$A52+$A$11,IF($C$7,8,0),1,1) -> 1264.94 | F52: =OFFSET(InputPriceData!E$15,CalculationsAndCharts!$A52+$A$11,IF($C$7,8,0),1,1) -> 1252.79 | G52: =OFFSET(InputPriceData!F$15,CalculationsAndCharts!$A52+$A$11,IF($C$7,8,0),1,1) -> 1264.58 | H52: 1251.377977 | I52: 1248.729465 | J52: 2.648512477 | K52: 1242.392131 | L52: 1221.823291 | M52: 20.56884033 | N52: 23.21735281 | O52: 0 | R52: 1.683454595 | S52: 0.2167672278 | T52: 1.900221822 | V52: 1251.377977 | W52: 1248.729465 | X52: 1242.392131 | Y52: 1221.823291 | Z52: 2.648512477 | AA52: 20.56884033 | AB52: 23.21735281 | AC52: 0.2167672278 | AD52: 1.683454595 | AE52: 1.900221822 | AO52: 30999800
A53: 21 | B53: =OFFSET(InputPriceData!B$15,CalculationsAndCharts!$A53+$A$11,0,1,1) -> 2015-06-02 | C53: =OFFSET(InputPriceData!G$15,CalculationsAndCharts!$A53+$A$11,IF($C$7,8,0),1,1) -> 30493500 | D53: =OFFSET(InputPriceData!C$15,CalculationsAndCharts!$A53+$A$11,IF($C$7,8,0),1,1) -> 1245.59 | E53: =OFFSET(InputPriceData!D$15,CalculationsAndCharts!$A53+$A$11,IF($C$7,8,0),1,1) -> 1258.46 | F53: =OFFSET(InputPriceData!E$15,CalculationsAndCharts!$A53+$A$11,IF($C$7,8,0),1,1) -> 1243.3 | G53: =OFFSET(InputPriceData!F$15,CalculationsAndCharts!$A53+$A$11,IF($C$7,8,0),1,1) -> 1251.8 | H53: 1248.977609 | I53: 1247.461422 | J53: 1.516187514 | K53: 1241.64 | L53: 1221.160396 | M53: 20.4796039 | N53: 21.99579142 | O53: 0 | R53: 1.67706093 | S53: 0.1241595714 | T53: 1.801220502 | V53: 1248.977609 | W53: 1247.461422 | X53: 1241.64 | Y53: 1221.160396 | Z53: 1.516187514 | AA53: 20.4796039 | AB53: 21.99579142 | AC53: 0.1241595714 | AD53: 1.67706093 | AE53: 1.801220502 | AO53: 30493500
A54: 22 | B54: =OFFSET(InputPriceData!B$15,CalculationsAndCharts!$A54+$A$11,0,1,1) -> 2015-06-01 | C54: =OFFSET(InputPriceData!G$15,CalculationsAndCharts!$A54+$A$11,IF($C$7,8,0),1,1) -> 30117100 | D54: =OFFSET(InputPriceData!C$15,CalculationsAndCharts!$A54+$A$11,IF($C$7,8,0),1,1) -> 1252.02 | E54: =OFFSET(InputPriceData!D$15,CalculationsAndCharts!$A54+$A$11,IF($C$7,8,0),1,1) -> 1254.56 | F54: =OFFSET(InputPriceData!E$15,CalculationsAndCharts!$A54+$A$11,IF($C$7,8,0),1,1) -> 1238.65 | G54: =OFFSET(InputPriceData!F$15,CalculationsAndCharts!$A54+$A$11,IF($C$7,8,0),1,1) -> 1249.62 | H54: 1248.464447 | I54: 1247.114336 | J54: 1.350111833 | K54: 1241.295593 | L54: 1220.685364 | M54: 20.61022974 | N54: 21.96034158 | O54: 0 | R54: 1.688414587 | S54: 0.1106027707 | T54: 1.799017358 | V54: 1248.464447 | W54: 1247.114336 | X54: 1241.295593 | Y54: 1220.685364 | Z54: 1.350111833 | AA54: 20.61022974 | AB54: 21.96034158 | AC54: 0.1106027707 | AD54: 1.688414587 | AE54: 1.799017358 | AP54: 30117100
A55: 23 | B55: =OFFSET(InputPriceData!B$15,CalculationsAndCharts!$A55+$A$11,0,1,1) -> 2015-05-29 | C55: =OFFSET(InputPriceData!G$15,CalculationsAndCharts!$A55+$A$11,IF($C$7,8,0),1,1) -> 39273900 | D55: =OFFSET(InputPriceData!C$15,CalculationsAndCharts!$A55+$A$11,IF($C$7,8,0),1,1) -> 1251.58 | E55: =OFFSET(InputPriceData!D$15,CalculationsAndCharts!$A55+$A$11,IF($C$7,8,0),1,1) -> 1252.64 | F55: =OFFSET(InputPriceData!E$15,CalculationsAndCharts!$A55+$A$11,IF($C$7,8,0),1,1) -> 1241.15 | G55: =OFFSET(InputPriceData!F$15,CalculationsAndCharts!$A55+$A$11,IF($C$7,8,0),1,1) -> 1246.53 | H55: 1248.254347 | I55: 1246.913882 | J55: 1.34046452 | K55: 1241.01341 | L55: 1220.236765 | M55: 20.77664548 | N55: 22.11711 | O55: 0 | R55: 1.702673291 | S55: 0.1098528219 | T55: 1.812526113 | V55: 1248.254347 | W55: 1246.913882 | X55: 1241.01341 | Y55: 1220.236765 | Z55: 1.34046452 | AA55: 20.77664548 | AB55: 22.11711 | AC55: 0.1098528219 | AD55: 1.702673291 | AE55: 1.812526113 | AP55: 39273900
A56: 24 | B56: =OFFSET(InputPriceData!B$15,CalculationsAndCharts!$A56+$A$11,0,1,1) -> 2015-05-28 | C56: =OFFSET(InputPriceData!G$15,CalculationsAndCharts!$A56+$A$11,IF($C$7,8,0),1,1) -> 29803500 | D56: =OFFSET(InputPriceData!C$15,CalculationsAndCharts!$A56+$A$11,IF($C$7,8,0),1,1) -> 1251.78 | E56: =OFFSET(InputPriceData!D$15,CalculationsAndCharts!$A56+$A$11,IF($C$7,8,0),1,1) -> 1253.2 | F56: =OFFSET(InputPriceData!E$15,CalculationsAndCharts!$A56+$A$11,IF($C$7,8,0),1,1) -> 1246.07 | G56: =OFFSET(InputPriceData!F$15,CalculationsAndCharts!$A56+$A$11,IF($C$7,8,0),1,1) -> 1253.1 | H56: 1248.567865 | I56: 1246.944593 | J56: 1.623271557 | K56: 1240.826407 | L56: 1219.829118 | M56: 20.9972895 | N56: 22.62056105 | O56: 0 | R56: 1.721330406 | S56: 0.1330736849 | T56: 1.85440409 | V56: 1248.567865 | W56: 1246.944593 | X56: 1240.826407 | Y56: 1219.829118 | Z56: 1.623271557 | AA56: 20.9972895 | AB56: 22.62056105 | AC56: 0.1330736849 | AD56: 1.721330406 | AE56: 1.85440409 | AO56: 29803500
A57: 25 | B57: =OFFSET(InputPriceData!B$15,CalculationsAndCharts!$A57+$A$11,0,1,1) -> 2015-05-27 | C57: =OFFSET(InputPriceData!G$15,CalculationsAndCharts!$A57+$A$11,IF($C$7,8,0),1,1) -> 31279600 | D57: =OFFSET(InputPriceData!C$15,CalculationsAndCharts!$A57+$A$11,IF($C$7,8,0),1,1) -> 1241.01 | E57: =OFFSET(InputPriceData!D$15,CalculationsAndCharts!$A57+$A$11,IF($C$7,8,0),1,1) -> 1255.05 | F57: =OFFSET(InputPriceData!E$15,CalculationsAndCharts!$A57+$A$11,IF($C$7,8,0),1,1) -> 1237.61 | G57: =OFFSET(InputPriceData!F$15,CalculationsAndCharts!$A57+$A$11,IF($C$7,8,0),1,1) -> 1254.36 | H57: 1247.74384 | I57: 1246.452161 | J57: 1.291679497 | K57: 1240.410353 | L57: 1219.31329 | M57: 21.09706313 | N57: 22.38874263 | O57: 0 | R57: 1.730241383 | S57: 0.105934997 | T57: 1.83617638 | V57: 1247.74384 | W57: 1246.452161 | X57: 1240.410353 | Y57: 1219.31329 | Z57: 1.291679497 | AA57: 21.09706313 | AB57: 22.38874263 | AC57: 0.105934997 | AD57: 1.730241383 | AE57: 1.83617638 | AO57: 31279600
A58: 26 | B58: =OFFSET(InputPriceData!B$15,CalculationsAndCharts!$A58+$A$11,0,1,1) -> 2015-05-26 | C58: =OFFSET(InputPriceData!G$15,CalculationsAndCharts!$A58+$A$11,IF($C$7,8,0),1,1) -> 33421300 | D58: =OFFSET(InputPriceData!C$15,CalculationsAndCharts!$A58+$A$11,IF($C$7,8,0),1,1) -> 1248.11 | E58: =OFFSET(InputPriceData!D$15,CalculationsAndCharts!$A58+$A$11,IF($C$7,8,0),1,1) -> 1248.11 | F58: =OFFSET(InputPriceData!E$15,CalculationsAndCharts!$A58+$A$11,IF($C$7,8,0),1,1) -> 1233.72 | G58: =OFFSET(InputPriceData!F$15,CalculationsAndCharts!$A58+$A$11,IF($C$7,8,0),1,1) -> 1238.76 | H58: 1246.540902 | I58: 1245.819533 | J58: 0.7213684746 | K58: 1239.937484 | L58: 1218.76993 | M58: 21.16755359 | N58: 21.88892207 | O58: 0 | R58: 1.736796509 | S58: 0.05918824027 | T58: 1.795984749 | V58: 1246.540902 | W58: 1245.819533 | X58: 1239.937484 | Y58: 1218.76993 | Z58: 0.7213684746 | AA58: 21.16755359 | AB58: 21.88892207 | AC58: 0.05918824027 | AD58: 1.736796509 | AE58: 1.795984749 | AP58: 33421300
A59: 27 | B59: =OFFSET(InputPriceData!B$15,CalculationsAndCharts!$A59+$A$11,0,1,1) -> 2015-05-22 | C59: =OFFSET(InputPriceData!G$15,CalculationsAndCharts!$A59+$A$11,IF($C$7,8,0),1,1) -> 25718600 | D59: =OFFSET(InputPriceData!C$15,CalculationsAndCharts!$A59+$A$11,IF($C$7,8,0),1,1) -> 1255.49 | E59: =OFFSET(InputPriceData!D$15,CalculationsAndCharts!$A59+$A$11,IF($C$7,8,0),1,1) -> 1258.73 | F59: =OFFSET(InputPriceData!E$15,CalculationsAndCharts!$A59+$A$11,IF($C$7,8,0),1,1) -> 1248.37 | G59: =OFFSET(InputPriceData!F$15,CalculationsAndCharts!$A59+$A$11,IF($C$7,8,0),1,1) -> 1252.22 | H59: 1247.955611 | I59: 1246.384296 | J59: 1.571315229 | K59: 1239.977398 | L59: 1218.460007 | M59: 21.51739186 | N59: 23.08870709 | O59: 0 | R59: 1.765949784 | S59: 0.128959114 | T59: 1.894908898 | V59: 1247.955611 | W59: 1246.384296 | X59: 1239.977398 | Y59: 1218.460007 | Z59: 1.571315229 | AA59: 21.51739186 | AB59: 23.08870709 | AC59: 0.128959114 | AD59: 1.765949784 | AE59: 1.894908898 | AP59: 25718600
A60: 28 | B60: =OFFSET(InputPriceData!B$15,CalculationsAndCharts!$A60+$A$11,0,1,1) -> 2015-05-21 | C60: =OFFSET(InputPriceData!G$15,CalculationsAndCharts!$A60+$A$11,IF($C$7,8,0),1,1) -> 30704600 | D60: =OFFSET(InputPriceData!C$15,CalculationsAndCharts!$A60+$A$11,IF($C$7,8,0),1,1) -> 1257.5 | E60: =OFFSET(InputPriceData!D$15,CalculationsAndCharts!$A60+$A$11,IF($C$7,8,0),1,1) -> 1261.02 | F60: =OFFSET(InputPriceData!E$15,CalculationsAndCharts!$A60+$A$11,IF($C$7,8,0),1,1) -> 1252.99 | G60: =OFFSET(InputPriceData!F$15,CalculationsAndCharts!$A60+$A$11,IF($C$7,8,0),1,1) -> 1256.74 | H60: 1247.180268 | I60: 1245.91744 | J60: 1.262828137 | K60: 1239.562395 | L60: 1217.936596 | M60: 21.62579917 | N60: 22.8886273 | O60: 0 | R60: 1.775609604 | S60: 0.1036858685 | T60: 1.879295473 | V60: 1247.180268 | W60: 1245.91744 | X60: 1239.562395 | Y60: 1217.936596 | Z60: 1.262828137 | AA60: 21.62579917 | AB60: 22.8886273 | AC60: 0.1036858685 | AD60: 1.775609604 | AE60: 1.879295473 | AP60: 30704600
A61: 29 | B61: =OFFSET(InputPriceData!B$15,CalculationsAndCharts!$A61+$A$11,0,1,1) -> 2015-05-20 | C61: =OFFSET(InputPriceData!G$15,CalculationsAndCharts!$A61+$A$11,IF($C$7,8,0),1,1) -> 30258800 | D61: =OFFSET(InputPriceData!C$15,CalculationsAndCharts!$A61+$A$11,IF($C$7,8,0),1,1) -> 1257.33 | E61: =OFFSET(InputPriceData!D$15,CalculationsAndCharts!$A61+$A$11,IF($C$7,8,0),1,1) -> 1260.83 | F61: =OFFSET(InputPriceData!E$15,CalculationsAndCharts!$A61+$A$11,IF($C$7,8,0),1,1) -> 1252.36 | G61: =OFFSET(InputPriceData!F$15,CalculationsAndCharts!$A61+$A$11,IF($C$7,8,0),1,1) -> 1257.74 | H61: 1245.442135 | I61: 1245.051635 | J61: 0.39049984 | K61: 1238.980103 | L61: 1217.334993 | M61: 21.64511064 | N61: 22.03561048 | O61: 0 | R61: 1.778073477 | S61: 0.03207825639 | T61: 1.810151734 | V61: 1245.442135 | W61: 1245.051635 | X61: 1238.980103 | Y61: 1217.334993 | Z61: 0.39049984 | AA61: 21.64511064 | AB61: 22.03561048 | AC61: 0.03207825639 | AD61: 1.778073477 | AE61: 1.810151734 | AO61: 30258800
A62: 30 | B62: =OFFSET(InputPriceData!B$15,CalculationsAndCharts!$A62+$A$11,0,1,1) -> 2015-05-19 | C62: =OFFSET(InputPriceData!G$15,CalculationsAndCharts!$A62+$A$11,IF($C$7,8,0),1,1) -> 32960300 | D62: =OFFSET(InputPriceData!C$15,CalculationsAndCharts!$A62+$A$11,IF($C$7,8,0),1,1) -> 1257.86 | E62: =OFFSET(InputPriceData!D$15,CalculationsAndCharts!$A62+$A$11,IF($C$7,8,0),1,1) -> 1258.58 | F62: =OFFSET(InputPriceData!E$15,CalculationsAndCharts!$A62+$A$11,IF($C$7,8,0),1,1) -> 1251.82 | G62: =OFFSET(InputPriceData!F$15,CalculationsAndCharts!$A62+$A$11,IF($C$7,8,0),1,1) -> 1255.66 | H62: 1243.206159 | I62: 1244.036566 | J62: -0.8304064569 | K62: 1238.344175 | L62: 1216.708558 | M62: 21.63561616 | N62: 20.8052097 | O62: 0 | R62: 1.778208595 | S62: -0.06825023554 | T62: 1.709958359 | V62: 1243.206159 | W62: 1244.036566 | X62: 1238.344175 | Y62: 1216.708558 | Z62: -0.8304064569 | AA62: 21.63561616 | AB62: 20.8052097 | AC62: -0.06825023554 | AD62: 1.778208595 | AE62: 1.709958359 | AP62: 32960300
A63: 31 | B63: =OFFSET(InputPriceData!B$15,CalculationsAndCharts!$A63+$A$11,0,1,1) -> 2015-05-18 | C63: =OFFSET(InputPriceData!G$15,CalculationsAndCharts!$A63+$A$11,IF($C$7,8,0),1,1) -> 28881900 | D63: =OFFSET(InputPriceData!C$15,CalculationsAndCharts!$A63+$A$11,IF($C$7,8,0),1,1) -> 1242.08 | E63: =OFFSET(InputPriceData!D$15,CalculationsAndCharts!$A63+$A$11,IF($C$7,8,0),1,1) -> 1258 | F63: =OFFSET(InputPriceData!E$15,CalculationsAndCharts!$A63+$A$11,IF($C$7,8,0),1,1) -> 1240.84 | G63: =OFFSET(InputPriceData!F$15,CalculationsAndCharts!$A63+$A$11,IF($C$7,8,0),1,1) -> 1257.52 | H63: 1240.941825 | I63: 1243.106691 | J63: -2.1648664 | K63: 1237.757197 | L63: 1216.10466 | M63: 21.65253734 | N63: 19.48767094 | O63: 0 | R63: 1.78048305 | S63: -0.1780164546 | T63: 1.602466595 | V63: 1240.941825 | W63: 1243.106691 | X63: 1237.757197 | Y63: 1216.10466 | Z63: -2.1648664 | AA63: 21.65253734 | AB63: 19.48767094 | AC63: -0.1780164546 | AD63: 1.78048305 | AE63: 1.602466595 | AO63: 28881900
A64: 32 | B64: =OFFSET(InputPriceData!B$15,CalculationsAndCharts!$A64+$A$11,0,1,1) -> 2015-05-15 | C64: =OFFSET(InputPriceData!G$15,CalculationsAndCharts!$A64+$A$11,IF($C$7,8,0),1,1) -> 30920800 | D64: =OFFSET(InputPriceData!C$15,CalculationsAndCharts!$A64+$A$11,IF($C$7,8,0),1,1) -> 1245.42 | E64: =OFFSET(InputPriceData!D$15,CalculationsAndCharts!$A64+$A$11,IF($C$7,8,0),1,1) -> 1245.9 | F64: =OFFSET(InputPriceData!E$15,CalculationsAndCharts!$A64+$A$11,IF($C$7,8,0),1,1) -> 1238.99 | G64: =OFFSET(InputPriceData!F$15,CalculationsAndCharts!$A64+$A$11,IF($C$7,8,0),1,1) -> 1243.95 | H64: 1237.927611 | I64: 1241.953626 | J64: -4.026015398 | K64: 1237.087272 | L64: 1215.462562 | M64: 21.62471012 | N64: 17.59869473 | O64: 0 | R64: 1.7791342 | S64: -0.3312331885 | T64: 1.447901011 | V64: 1237.927611 | W64: 1241.953626 | X64: 1237.087272 | Y64: 1215.462562 | Z64: -4.026015398 | AA64: 21.62471012 | AB64: 17.59869473 | AC64: -0.3312331885 | AD64: 1.7791342 | AE64: 1.447901011 | AP64: 30920800
A65: 33 | B65: =OFFSET(InputPriceData!B$15,CalculationsAndCharts!$A65+$A$11,0,1,1) -> 2015-05-14 | C65: =OFFSET(InputPriceData!G$15,CalculationsAndCharts!$A65+$A$11,IF($C$7,8,0),1,1) -> 32257400 | D65: =OFFSET(InputPriceData!C$15,CalculationsAndCharts!$A65+$A$11,IF($C$7,8,0),1,1) -> 1236.81 | E65: =OFFSET(InputPriceData!D$15,CalculationsAndCharts!$A65+$A$11,IF($C$7,8,0),1,1) -> 1245.12 | F65: =OFFSET(InputPriceData!E$15,CalculationsAndCharts!$A65+$A$11,IF($C$7,8,0),1,1) -> 1232.53 | G65: =OFFSET(InputPriceData!F$15,CalculationsAndCharts!$A65+$A$11,IF($C$7,8,0),1,1) -> 1245.11 | H65: 1236.832631 | I65: 1241.793916 | J65: -4.96128535 | K65: 1236.854637 | L65: 1215.020896 | M65: 21.83374098 | N65: 16.87245563 | O65: 0 | R65: 1.796984813 | S65: -0.4083292202 | T65: 1.388655593 | V65: 1236.832631 | W65: 1241.793916 | X65: 1236.854637 | Y65: 1215.020896 | Z65: -4.96128535 | AA65: 21.83374098 | AB65: 16.87245563 | AC65: -0.4083292202 | AD65: 1.796984813 | AE65: 1.388655593 | AO65: 32257400
A66: 34 | B66: =OFFSET(InputPriceData!B$15,CalculationsAndCharts!$A66+$A$11,0,1,1) -> 2015-05-13 | C66: =OFFSET(InputPriceData!G$15,CalculationsAndCharts!$A66+$A$11,IF($C$7,8,0),1,1) -> 33742600 | D66: =OFFSET(InputPriceData!C$15,CalculationsAndCharts!$A66+$A$11,IF($C$7,8,0),1,1) -> 1235.74 | E66: =OFFSET(InputPriceData!D$15,CalculationsAndCharts!$A66+$A$11,IF($C$7,8,0),1,1) -> 1237.88 | F66: =OFFSET(InputPriceData!E$15,CalculationsAndCharts!$A66+$A$11,IF($C$7,8,0),1,1) -> 1228.49 | G66: =OFFSET(InputPriceData!F$15,CalculationsAndCharts!$A66+$A$11,IF($C$7,8,0),1,1) -> 1232.28 | H66: 1235.327655 | I66: 1241.52863 | J66: -6.200974847 | K66: 1236.574794 | L66: 1214.554398 | M66: 22.02039591 | N66: 15.81942106 | O66: 0 | R66: 1.813043198 | S66: -0.5105555466 | T66: 1.302487652 | V66: 1235.327655 | W66: 1241.52863 | X66: 1236.574794 | Y66: 1214.554398 | Z66: -6.200974847 | AA66: 22.02039591 | AB66: 15.81942106 | AC66: -0.5105555466 | AD66: 1.813043198 | AE66: 1.302487652 | AP66: 33742600
A67: 35 | B67: =OFFSET(InputPriceData!B$15,CalculationsAndCharts!$A67+$A$11,0,1,1) -> 2015-05-12 | C67: =OFFSET(InputPriceData!G$15,CalculationsAndCharts!$A67+$A$11,IF($C$7,8,0),1,1) -> 31395200 | D67: =OFFSET(InputPriceData!C$15,CalculationsAndCharts!$A67+$A$11,IF($C$7,8,0),1,1) -> 1230.57 | E67: =OFFSET(InputPriceData!D$15,CalculationsAndCharts!$A67+$A$11,IF($C$7,8,0),1,1) -> 1236.14 | F67: =OFFSET(InputPriceData!E$15,CalculationsAndCharts!$A67+$A$11,IF($C$7,8,0),1,1) -> 1218.37 | G67: =OFFSET(InputPriceData!F$15,CalculationsAndCharts!$A67+$A$11,IF($C$7,8,0),1,1) -> 1233.13 | H67: 1235.881774 | I67: 1242.26852 | J67: -6.386746171 | K67: 1236.720381 | L67: 1214.279583 | M67: 22.44079768 | N67: 16.05405151 | O67: 0 | R67: 1.848075023 | S67: -0.5259699876 | T67: 1.322105036 | V67: 1235.881774 | W67: 1242.26852 | X67: 1236.720381 | Y67: 1214.279583 | Z67: -6.386746171 | AA67: 22.44079768 | AB67: 16.05405151 | AC67: -0.5259699876 | AD67: 1.848075023 | AE67: 1.322105036 | AO67: 31395200
A68: 36 | B68: =OFFSET(InputPriceData!B$15,CalculationsAndCharts!$A68+$A$11,0,1,1) -> 2015-05-11 | C68: =OFFSET(InputPriceData!G$15,CalculationsAndCharts!$A68+$A$11,IF($C$7,8,0),1,1) -> 29926700 | D68: =OFFSET(InputPriceData!C$15,CalculationsAndCharts!$A68+$A$11,IF($C$7,8,0),1,1) -> 1234.59 | E68: =OFFSET(InputPriceData!D$15,CalculationsAndCharts!$A68+$A$11,IF($C$7,8,0),1,1) -> 1243.56 | F68: =OFFSET(InputPriceData!E$15,CalculationsAndCharts!$A68+$A$11,IF($C$7,8,0),1,1) -> 1234.51 | G68: =OFFSET(InputPriceData!F$15,CalculationsAndCharts!$A68+$A$11,IF($C$7,8,0),1,1) -> 1235.83 | H68: 1236.382096 | I68: 1242.999602 | J68: -6.617505262 | K68: 1236.842088 | L68: 1213.987328 | M68: 22.85476003 | N68: 16.23725476 | O68: 0 | R68: 1.882619323 | S68: -0.54510497 | T68: 1.337514353 | V68: 1236.382096 | W68: 1242.999602 | X68: 1236.842088 | Y68: 1213.987328 | Z68: -6.617505262 | AA68: 22.85476003 | AB68: 16.23725476 | AC68: -0.54510497 | AD68: 1.882619323 | AE68: 1.337514353 | AO68: 29926700
A69: 37 | B69: =OFFSET(InputPriceData!B$15,CalculationsAndCharts!$A69+$A$11,0,1,1) -> 2015-05-08 | C69: =OFFSET(InputPriceData!G$15,CalculationsAndCharts!$A69+$A$11,IF($C$7,8,0),1,1) -> 33994400 | D69: =OFFSET(InputPriceData!C$15,CalculationsAndCharts!$A69+$A$11,IF($C$7,8,0),1,1) -> 1234.82 | E69: =OFFSET(InputPriceData!D$15,CalculationsAndCharts!$A69+$A$11,IF($C$7,8,0),1,1) -> 1239.38 | F69: =OFFSET(InputPriceData!E$15,CalculationsAndCharts!$A69+$A$11,IF($C$7,8,0),1,1) -> 1232.59 | G69: =OFFSET(InputPriceData!F$15,CalculationsAndCharts!$A69+$A$11,IF($C$7,8,0),1,1) -> 1234.93 | H69: 1236.482477 | I69: 1243.57317 | J69: -7.090692243 | K69: 1236.876396 | L69: 1213.648682 | M69: 23.22771418 | N69: 16.13702193 | O69: 0 | R69: 1.913874626 | S69: -0.5842458651 | T69: 1.329628761 | V69: 1236.482477 | W69: 1243.57317 | X69: 1236.876396 | Y69: 1213.648682 | Z69: -7.090692243 | AA69: 23.22771418 | AB69: 16.13702193 | AC69: -0.5842458651 | AD69: 1.913874626 | AE69: 1.329628761 | AO69: 33994400
A70: 38 | B70: =OFFSET(InputPriceData!B$15,CalculationsAndCharts!$A70+$A$11,0,1,1) -> 2015-05-07 | C70: =OFFSET(InputPriceData!G$15,CalculationsAndCharts!$A70+$A$11,IF($C$7,8,0),1,1) -> 36766400 | D70: =OFFSET(InputPriceData!C$15,CalculationsAndCharts!$A70+$A$11,IF($C$7,8,0),1,1) -> 1218.95 | E70: =OFFSET(InputPriceData!D$15,CalculationsAndCharts!$A70+$A$11,IF($C$7,8,0),1,1) -> 1228.82 | F70: =OFFSET(InputPriceData!E$15,CalculationsAndCharts!$A70+$A$11,IF($C$7,8,0),1,1) -> 1215.43 | G70: =OFFSET(InputPriceData!F$15,CalculationsAndCharts!$A70+$A$11,IF($C$7,8,0),1,1) -> 1225.54 | H70: 1236.764746 | I70: 1244.264623 | J70: -7.499877194 | K70: 1236.942376 | L70: 1213.318739 | M70: 23.62363663 | N70: 16.12375943 | O70: 0 | R70: 1.947026438 | S70: -0.6181291816 | T70: 1.328897256 | V70: 1236.764746 | W70: 1244.264623 | X70: 1236.942376 | Y70: 1213.318739 | Z70: -7.499877194 | AA70: 23.62363663 | AB70: 16.12375943 | AC70: -0.6181291816 | AD70: 1.947026438 | AE70: 1.328897256 | AO70: 36766400
A71: 39 | B71: =OFFSET(InputPriceData!B$15,CalculationsAndCharts!$A71+$A$11,0,1,1) -> 2015-05-06 | C71: =OFFSET(InputPriceData!G$15,CalculationsAndCharts!$A71+$A$11,IF($C$7,8,0),1,1) -> 37922100 | D71: =OFFSET(InputPriceData!C$15,CalculationsAndCharts!$A71+$A$11,IF($C$7,8,0),1,1) -> 1221.53 | E71: =OFFSET(InputPriceData!D$15,CalculationsAndCharts!$A71+$A$11,IF($C$7,8,0),1,1) -> 1222.9 | F71: =OFFSET(InputPriceData!E$15,CalculationsAndCharts!$A71+$A$11,IF($C$7,8,0),1,1) -> 1211.13 | G71: =OFFSET(InputPriceData!F$15,CalculationsAndCharts!$A71+$A$11,IF($C$7,8,0),1,1) -> 1219.36 | H71: 1238.805609 | I71: 1245.762593 | J71: -6.956984135 | K71: 1237.328897 | L71: 1213.129262 | M71: 24.19963476 | N71: 17.24265062 | O71: 0 | R71: 1.9948109 | S71: -0.5734742662 | T71: 1.421336634 | V71: 1238.805609 | W71: 1245.762593 | X71: 1237.328897 | Y71: 1213.129262 | Z71: -6.956984135 | AA71: 24.19963476 | AB71: 17.24265062 | AC71: -0.5734742662 | AD71: 1.9948109 | AE71: 1.421336634 | AP71: 37922100
A72: 40 | B72: =OFFSET(InputPriceData!B$15,CalculationsAndCharts!$A72+$A$11,0,1,1) -> 2015-05-05 | C72: =OFFSET(InputPriceData!G$15,CalculationsAndCharts!$A72+$A$11,IF($C$7,8,0),1,1) -> 37939500 | D72: =OFFSET(InputPriceData!C$15,CalculationsAndCharts!$A72+$A$11,IF($C$7,8,0),1,1) -> 1231.77 | E72: =OFFSET(InputPriceData!D$15,CalculationsAndCharts!$A72+$A$11,IF($C$7,8,0),1,1) -> 1234.04 | F72: =OFFSET(InputPriceData!E$15,CalculationsAndCharts!$A72+$A$11,IF($C$7,8,0),1,1) -> 1211.78 | G72: =OFFSET(InputPriceData!F$15,CalculationsAndCharts!$A72+$A$11,IF($C$7,8,0),1,1) -> 1215.42 | H72: 1242.341174 | I72: 1247.874801 | J72: -5.533626317 | K72: 1237.938012 | L72: 1213.032662 | M72: 24.9053505 | N72: 19.37172418 | O72: 0 | R72: 2.05314756 | S72: -0.4561811476 | T72: 1.596966412 | V72: 1242.341174 | W72: 1247.874801 | X72: 1237.938012 | Y72: 1213.032662 | Z72: -5.533626317 | AA72: 24.9053505 | AB72: 19.37172418 | AC72: -0.4561811476 | AD72: 2.05314756 | AE72: 1.596966412 | AP72: 37939500
A73: 41 | B73: =OFFSET(InputPriceData!B$15,CalculationsAndCharts!$A73+$A$11,0,1,1) -> 2015-05-04 | C73: =OFFSET(InputPriceData!G$15,CalculationsAndCharts!$A73+$A$11,IF($C$7,8,0),1,1) -> 30915800 | D73: =OFFSET(InputPriceData!C$15,CalculationsAndCharts!$A73+$A$11,IF($C$7,8,0),1,1) -> 1230.3 | E73: =OFFSET(InputPriceData!D$15,CalculationsAndCharts!$A73+$A$11,IF($C$7,8,0),1,1) -> 1240.63 | F73: =OFFSET(InputPriceData!E$15,CalculationsAndCharts!$A73+$A$11,IF($C$7,8,0),1,1) -> 1230.1 | G73: =OFFSET(InputPriceData!F$15,CalculationsAndCharts!$A73+$A$11,IF($C$7,8,0),1,1) -> 1233.22 | H73: 1247.235933 | I73: 1250.471185 | J73: -3.23525141 | K73: 1238.701335 | L73: 1212.995649 | M73: 25.70568594 | N73: 22.47043453 | O73: 0 | R73: 2.119190285 | S73: -0.2667158297 | T73: 1.852474455 | V73: 1247.235933 | W73: 1250.471185 | X73: 1238.701335 | Y73: 1212.995649 | Z73: -3.23525141 | AA73: 25.70568594 | AB73: 22.47043453 | AC73: -0.2667158297 | AD73: 2.119190285 | AE73: 1.852474455 | AO73: 30915800
A74: 42 | B74: =OFFSET(InputPriceData!B$15,CalculationsAndCharts!$A74+$A$11,0,1,1) -> 2015-05-01 | C74: =OFFSET(InputPriceData!G$15,CalculationsAndCharts!$A74+$A$11,IF($C$7,8,0),1,1) -> 33793900 | D74: =OFFSET(InputPriceData!C$15,CalculationsAndCharts!$A74+$A$11,IF($C$7,8,0),1,1) -> 1223.05 | E74: =OFFSET(InputPriceData!D$15,CalculationsAndCharts!$A74+$A$11,IF($C$7,8,0),1,1) -> 1229.47 | F74: =OFFSET(InputPriceData!E$15,CalculationsAndCharts!$A74+$A$11,IF($C$7,8,0),1,1) -> 1218.59 | G74: =OFFSET(InputPriceData!F$15,CalculationsAndCharts!$A74+$A$11,IF($C$7,8,0),1,1) -> 1228.11 | H74: 1249.784285 | I74: 1251.851279 | J74: -2.066994689 | K74: 1238.887143 | L74: 1212.682093 | M74: 26.20504973 | N74: 24.13805504 | O74: 0 | R74: 2.160916689 | S74: -0.1704481909 | T74: 1.990468498 | V74: 1249.784285 | W74: 1251.851279 | X74: 1238.887143 | Y74: 1212.682093 | Z74: -2.066994689 | AA74: 26.20504973 | AB74: 24.13805504 | AC74: -0.1704481909 | AD74: 2.160916689 | AE74: 1.990468498 | AO74: 33793900
A75: 43 | B75: =OFFSET(InputPriceData!B$15,CalculationsAndCharts!$A75+$A$11,0,1,1) -> 2015-04-30 | C75: =OFFSET(InputPriceData!G$15,CalculationsAndCharts!$A75+$A$11,IF($C$7,8,0),1,1) -> 45096800 | D75: =OFFSET(InputPriceData!C$15,CalculationsAndCharts!$A75+$A$11,IF($C$7,8,0),1,1) -> 1241.4 | E75: =OFFSET(InputPriceData!D$15,CalculationsAndCharts!$A75+$A$11,IF($C$7,8,0),1,1) -> 1242.77 | F75: =OFFSET(InputPriceData!E$15,CalculationsAndCharts!$A75+$A$11,IF($C$7,8,0),1,1) -> 1216.1 | G75: =OFFSET(InputPriceData!F$15,CalculationsAndCharts!$A75+$A$11,IF($C$7,8,0),1,1) -> 1220.13 | H75: 1253.725064 | I75: 1253.750582 | J75: -0.02551800685 | K75: 1239.25247 | L75: 1212.442901 | M75: 26.80956896 | N75: 26.78405095 | O75: 0 | R75: 2.211202602 | S75: -0.002104676999 | T75: 2.209097925 | V75: 1253.725064 | W75: 1253.750582 | X75: 1239.25247 | Y75: 1212.442901 | Z75: -0.02551800685 | AA75: 26.80956896 | AB75: 26.78405095 | AC75: -0.002104676999 | AD75: 2.211202602 | AE75: 2.209097925 | AP75: 45096800
A76: 44 | B76: =OFFSET(InputPriceData!B$15,CalculationsAndCharts!$A76+$A$11,0,1,1) -> 2015-04-29 | C76: =OFFSET(InputPriceData!G$15,CalculationsAndCharts!$A76+$A$11,IF($C$7,8,0),1,1) -> 40749700 | D76: =OFFSET(InputPriceData!C$15,CalculationsAndCharts!$A76+$A$11,IF($C$7,8,0),1,1) -> 1254.5 | E76: =OFFSET(InputPriceData!D$15,CalculationsAndCharts!$A76+$A$11,IF($C$7,8,0),1,1) -> 1255.81 | F76: =OFFSET(InputPriceData!E$15,CalculationsAndCharts!$A76+$A$11,IF($C$7,8,0),1,1) -> 1245.47 | G76: =OFFSET(InputPriceData!F$15,CalculationsAndCharts!$A76+$A$11,IF($C$7,8,0),1,1) -> 1246.95 | H76: 1259.833257 | I76: 1256.440228 | J76: 3.393028857 | K76: 1239.900689 | L76: 1212.323721 | M76: 27.5769681 | N76: 30.96999696 | O76: 0 | R76: 2.274719832 | S76: 0.2798781215 | T76: 2.554597954 | V76: 1259.833257 | W76: 1256.440228 | X76: 1239.900689 | Y76: 1212.323721 | Z76: 3.393028857 | AA76: 27.5769681 | AB76: 30.96999696 | AC76: 0.2798781215 | AD76: 2.274719832 | AE76: 2.554597954 | AP76: 40749700
A77: 45 | B77: =OFFSET(InputPriceData!B$15,CalculationsAndCharts!$A77+$A$11,0,1,1) -> 2015-04-28 | C77: =OFFSET(InputPriceData!G$15,CalculationsAndCharts!$A77+$A$11,IF($C$7,8,0),1,1) -> 35462700 | D77: =OFFSET(InputPriceData!C$15,CalculationsAndCharts!$A77+$A$11,IF($C$7,8,0),1,1) -> 1252.89 | E77: =OFFSET(InputPriceData!D$15,CalculationsAndCharts!$A77+$A$11,IF($C$7,8,0),1,1) -> 1260.69 | F77: =OFFSET(InputPriceData!E$15,CalculationsAndCharts!$A77+$A$11,IF($C$7,8,0),1,1) -> 1242.57 | G77: =OFFSET(InputPriceData!F$15,CalculationsAndCharts!$A77+$A$11,IF($C$7,8,0),1,1) -> 1259.36 | H77: 1262.175667 | I77: 1257.199447 | J77: 4.976220979 | K77: 1239.661729 | L77: 1211.786879 | M77: 27.87484994 | N77: 32.85107092 | O77: 0 | R77: 2.300309602 | S77: 0.4106514986 | T77: 2.710961101 | V77: 1262.175667 | W77: 1257.199447 | X77: 1239.661729 | Y77: 1211.786879 | Z77: 4.976220979 | AA77: 27.87484994 | AB77: 32.85107092 | AC77: 0.4106514986 | AD77: 2.300309602 | AE77: 2.710961101 | AO77: 35462700
A78: 46 | B78: =OFFSET(InputPriceData!B$15,CalculationsAndCharts!$A78+$A$11,0,1,1) -> 2015-04-27 | C78: =OFFSET(InputPriceData!G$15,CalculationsAndCharts!$A78+$A$11,IF($C$7,8,0),1,1) -> 34387500 | D78: =OFFSET(InputPriceData!C$15,CalculationsAndCharts!$A78+$A$11,IF($C$7,8,0),1,1) -> 1269.87 | E78: =OFFSET(InputPriceData!D$15,CalculationsAndCharts!$A78+$A$11,IF($C$7,8,0),1,1) -> 1275.84 | F78: =OFFSET(InputPriceData!E$15,CalculationsAndCharts!$A78+$A$11,IF($C$7,8,0),1,1) -> 1250.45 | G78: =OFFSET(InputPriceData!F$15,CalculationsAndCharts!$A78+$A$11,IF($C$7,8,0),1,1) -> 1252.7 | H78: 1262.687607 | I78: 1257.026602 | J78: 5.661004802 | K78: 1238.993991 | L78: 1211.049311 | M78: 27.94467971 | N78: 33.60568452 | O78: 0 | R78: 2.30747662 | S78: 0.4674462673 | T78: 2.774922887 | V78: 1262.687607 | W78: 1257.026602 | X78: 1238.993991 | Y78: 1211.049311 | Z78: 5.661004802 | AA78: 27.94467971 | AB78: 33.60568452 | AC78: 0.4674462673 | AD78: 2.30747662 | AE78: 2.774922887 | AP78: 34387500
A79: 47 | B79: =OFFSET(InputPriceData!B$15,CalculationsAndCharts!$A79+$A$11,0,1,1) -> 2015-04-24 | C79: =OFFSET(InputPriceData!G$15,CalculationsAndCharts!$A79+$A$11,IF($C$7,8,0),1,1) -> 33757800 | D79: =OFFSET(InputPriceData!C$15,CalculationsAndCharts!$A79+$A$11,IF($C$7,8,0),1,1) -> 1272.8 | E79: =OFFSET(InputPriceData!D$15,CalculationsAndCharts!$A79+$A$11,IF($C$7,8,0),1,1) -> 1273.08 | F79: =OFFSET(InputPriceData!E$15,CalculationsAndCharts!$A79+$A$11,IF($C$7,8,0),1,1) -> 1266.22 | G79: =OFFSET(InputPriceData!F$15,CalculationsAndCharts!$A79+$A$11,IF($C$7,8,0),1,1) -> 1267.54 | H79: 1264.503536 | I79: 1257.37273 | J79: 7.130805174 | K79: 1238.529381 | L79: 1210.403564 | M79: 28.12581636 | N79: 35.25662153 | O79: 0 | R79: 2.323672631 | S79: 0.5891262537 | T79: 2.912798885 | V79: 1264.503536 | W79: 1257.37273 | X79: 1238.529381 | Y79: 1210.403564 | Z79: 7.130805174 | AA79: 28.12581636 | AB79: 35.25662153 | AC79: 0.5891262537 | AD79: 2.323672631 | AE79: 2.912798885 | AP79: 33757800
A80: 48 | B80: =OFFSET(InputPriceData!B$15,CalculationsAndCharts!$A80+$A$11,0,1,1) -> 2015-04-23 | C80: =OFFSET(InputPriceData!G$15,CalculationsAndCharts!$A80+$A$11,IF($C$7,8,0),1,1) -> 36366700 | D80: =OFFSET(InputPriceData!C$15,CalculationsAndCharts!$A80+$A$11,IF($C$7,8,0),1,1) -> 1263.66 | E80: =OFFSET(InputPriceData!D$15,CalculationsAndCharts!$A80+$A$11,IF($C$7,8,0),1,1) -> 1273.25 | F80: =OFFSET(InputPriceData!E$15,CalculationsAndCharts!$A80+$A$11,IF($C$7,8,0),1,1) -> 1262.41 | G80: =OFFSET(InputPriceData!F$15,CalculationsAndCharts!$A80+$A$11,IF($C$7,8,0),1,1) -> 1271.54 | H80: 1263.951451 | I80: 1256.559349 | J80: 7.392102301 | K80: 1237.54597 | L80: 1209.517728 | M80: 28.02824174 | N80: 35.42034405 | O80: 0 | R80: 2.317307228 | S80: 0.6111611371 | T80: 2.928468366 | V80: 1263.951451 | W80: 1256.559349 | X80: 1237.54597 | Y80: 1209.517728 | Z80: 7.392102301 | AA80: 28.02824174 | AB80: 35.42034405 | AC80: 0.6111611371 | AD80: 2.317307228 | AE80: 2.928468366 | AO80: 36366700
A81: 49 | B81: =OFFSET(InputPriceData!B$15,CalculationsAndCharts!$A81+$A$11,0,1,1) -> 2015-04-22 | C81: =OFFSET(InputPriceData!G$15,CalculationsAndCharts!$A81+$A$11,IF($C$7,8,0),1,1) -> 33484800 | D81: =OFFSET(InputPriceData!C$15,CalculationsAndCharts!$A81+$A$11,IF($C$7,8,0),1,1) -> 1265.01 | E81: =OFFSET(InputPriceData!D$15,CalculationsAndCharts!$A81+$A$11,IF($C$7,8,0),1,1) -> 1266.56 | F81: =OFFSET(InputPriceData!E$15,CalculationsAndCharts!$A81+$A$11,IF($C$7,8,0),1,1) -> 1255.04 | G81: =OFFSET(InputPriceData!F$15,CalculationsAndCharts!$A81+$A$11,IF($C$7,8,0),1,1) -> 1265.48 | H81: 1262.571715 | I81: 1255.360897 | J81: 7.210818237 | K81: 1236.39363 | L81: 1208.556143 | M81: 27.83748735 | N81: 35.04830559 | O81: 0 | R81: 2.30336733 | S81: 0.5966473533 | T81: 2.900014683 | V81: 1262.571715 | W81: 1255.360897 | X81: 1236.39363 | Y81: 1208.556143 | Z81: 7.210818237 | AA81: 27.83748735 | AB81: 35.04830559 | AC81: 0.5966473533 | AD81: 2.30336733 | AE81: 2.900014683 | AO81: 33484800
A82: 50 | B82: =OFFSET(InputPriceData!B$15,CalculationsAndCharts!$A82+$A$11,0,1,1) -> 2015-04-21 | C82: =OFFSET(InputPriceData!G$15,CalculationsAndCharts!$A82+$A$11,IF($C$7,8,0),1,1) -> 32434100 | D82: =OFFSET(InputPriceData!C$15,CalculationsAndCharts!$A82+$A$11,IF($C$7,8,0),1,1) -> 1269.32 | E82: =OFFSET(InputPriceData!D$15,CalculationsAndCharts!$A82+$A$11,IF($C$7,8,0),1,1) -> 1270.08 | F82: =OFFSET(InputPriceData!E$15,CalculationsAndCharts!$A82+$A$11,IF($C$7,8,0),1,1) -> 1263.59 | G82: =OFFSET(InputPriceData!F$15,CalculationsAndCharts!$A82+$A$11,IF($C$7,8,0),1,1) -> 1264.15 | H82: 1262.042936 | I82: 1254.551368 | J82: 7.491567403 | K82: 1235.407651 | L82: 1207.673602 | M82: 27.73404913 | N82: 35.22561653 | O82: 0 | R82: 2.296485497 | S82: 0.6203304759 | T82: 2.916815973 | V82: 1262.042936 | W82: 1254.551368 | X82: 1235.407651 | Y82: 1207.673602 | Z82: 7.491567403 | AA82: 27.73404913 | AB82: 35.22561653 | AC82: 0.6203304759 | AD82: 2.296485497 | AE82: 2.916815973 | AP82: 32434100
A83: 51 | B83: =OFFSET(InputPriceData!B$15,CalculationsAndCharts!$A83+$A$11,0,1,1) -> 2015-04-20 | C83: =OFFSET(InputPriceData!G$15,CalculationsAndCharts!$A83+$A$11,IF($C$7,8,0),1,1) -> 30001600 | D83: =OFFSET(InputPriceData!C$15,CalculationsAndCharts!$A83+$A$11,IF($C$7,8,0),1,1) -> 1257.61 | E83: =OFFSET(InputPriceData!D$15,CalculationsAndCharts!$A83+$A$11,IF($C$7,8,0),1,1) -> 1266.98 | F83: =OFFSET(InputPriceData!E$15,CalculationsAndCharts!$A83+$A$11,IF($C$7,8,0),1,1) -> 1255.75 | G83: =OFFSET(InputPriceData!F$15,CalculationsAndCharts!$A83+$A$11,IF($C$7,8,0),1,1) -> 1264.92 | H83: 1261.659833 | I83: 1253.783478 | J83: 7.876355359 | K83: 1234.433334 | L83: 1206.797999 | M83: 27.63533529 | N83: 35.51169065 | O83: 0 | R83: 2.289971918 | S83: 0.6526655965 | T83: 2.942637515 | V83: 1261.659833 | W83: 1253.783478 | X83: 1234.433334 | Y83: 1206.797999 | Z83: 7.876355359 | AA83: 27.63533529 | AB83: 35.51169065 | AC83: 0.6526655965 | AD83: 2.289971918 | AE83: 2.942637515 | AO83: 30001600
A84: 52 | B84: =OFFSET(InputPriceData!B$15,CalculationsAndCharts!$A84+$A$11,0,1,1) -> 2015-04-17 | C84: =OFFSET(InputPriceData!G$15,CalculationsAndCharts!$A84+$A$11,IF($C$7,8,0),1,1) -> 36276000 | D84: =OFFSET(InputPriceData!C$15,CalculationsAndCharts!$A84+$A$11,IF($C$7,8,0),1,1) -> 1264.22 | E84: =OFFSET(InputPriceData!D$15,CalculationsAndCharts!$A84+$A$11,IF($C$7,8,0),1,1) -> 1264.22 | F84: =OFFSET(InputPriceData!E$15,CalculationsAndCharts!$A84+$A$11,IF($C$7,8,0),1,1) -> 1248.23 | G84: =OFFSET(InputPriceData!F$15,CalculationsAndCharts!$A84+$A$11,IF($C$7,8,0),1,1) -> 1251.86 | H84: 1261.067076 | I84: 1252.892556 | J84: 8.174519544 | K84: 1233.399888 | L84: 1205.896883 | M84: 27.50300529 | N84: 35.67752484 | O84: 0 | R84: 2.280709544 | S84: 0.6778788187 | T84: 2.958588362 | V84: 1261.067076 | W84: 1252.892556 | X84: 1233.399888 | Y84: 1205.896883 | Z84: 8.174519544 | AA84: 27.50300529 | AB84: 35.67752484 | AC84: 0.6778788187 | AD84: 2.280709544 | AE84: 2.958588362 | AP84: 36276000
A85: 53 | B85: =OFFSET(InputPriceData!B$15,CalculationsAndCharts!$A85+$A$11,0,1,1) -> 2015-04-16 | C85: =OFFSET(InputPriceData!G$15,CalculationsAndCharts!$A85+$A$11,IF($C$7,8,0),1,1) -> 34341200 | D85: =OFFSET(InputPriceData!C$15,CalculationsAndCharts!$A85+$A$11,IF($C$7,8,0),1,1) -> 1273.48 | E85: =OFFSET(InputPriceData!D$15,CalculationsAndCharts!$A85+$A$11,IF($C$7,8,0),1,1) -> 1275.28 | F85: =OFFSET(InputPriceData!E$15,CalculationsAndCharts!$A85+$A$11,IF($C$7,8,0),1,1) -> 1271.11 | G85: =OFFSET(InputPriceData!F$15,CalculationsAndCharts!$A85+$A$11,IF($C$7,8,0),1,1) -> 1272.9 | H85: 1262.74109 | I85: 1252.975161 | J85: 9.765928819 | K85: 1232.774122 | L85: 1205.184276 | M85: 27.58984525 | N85: 37.35577407 | O85: 0 | R85: 2.289263625 | S85: 0.8103266041 | T85: 3.099590229 | V85: 1262.74109 | W85: 1252.975161 | X85: 1232.774122 | Y85: 1205.184276 | Z85: 9.765928819 | AA85: 27.58984525 | AB85: 37.35577407 | AC85: 0.8103266041 | AD85: 2.289263625 | AE85: 3.099590229 | AP85: 34341200
A86: 54 | B86: =OFFSET(InputPriceData!B$15,CalculationsAndCharts!$A86+$A$11,0,1,1) -> 2015-04-15 | C86: =OFFSET(InputPriceData!G$15,CalculationsAndCharts!$A86+$A$11,IF($C$7,8,0),1,1) -> 40137600 | D86: =OFFSET(InputPriceData!C$15,CalculationsAndCharts!$A86+$A$11,IF($C$7,8,0),1,1) -> 1269.65 | E86: =OFFSET(InputPriceData!D$15,CalculationsAndCharts!$A86+$A$11,IF($C$7,8,0),1,1) -> 1278.63 | F86: =OFFSET(InputPriceData!E$15,CalculationsAndCharts!$A86+$A$11,IF($C$7,8,0),1,1) -> 1268.82 | G86: =OFFSET(InputPriceData!F$15,CalculationsAndCharts!$A86+$A$11,IF($C$7,8,0),1,1) -> 1275.35 | H86: 1260.894015 | I86: 1251.381174 | J86: 9.512841329 | K86: 1231.413922 | L86: 1204.13442 | M86: 27.27950217 | N86: 36.7923435 | O86: 0 | R86: 2.265486453 | S86: 0.7900148995 | T86: 3.055501353 | V86: 1260.894015 | W86: 1251.381174 | X86: 1231.413922 | Y86: 1204.13442 | Z86: 9.512841329 | AA86: 27.27950217 | AB86: 36.7923435 | AC86: 0.7900148995 | AD86: 2.265486453 | AE86: 3.055501353 | AO86: 40137600
A87: 55 | B87: =OFFSET(InputPriceData!B$15,CalculationsAndCharts!$A87+$A$11,0,1,1) -> 2015-04-14 | C87: =OFFSET(InputPriceData!G$15,CalculationsAndCharts!$A87+$A$11,IF($C$7,8,0),1,1) -> 33012700 | D87: =OFFSET(InputPriceData!C$15,CalculationsAndCharts!$A87+$A$11,IF($C$7,8,0),1,1) -> 1266.68 | E87: =OFFSET(InputPriceData!D$15,CalculationsAndCharts!$A87+$A$11,IF($C$7,8,0),1,1) -> 1267.97 | F87: =OFFSET(InputPriceData!E$15,CalculationsAndCharts!$A87+$A$11,IF($C$7,8,0),1,1) -> 1258.53 | G87: =OFFSET(InputPriceData!F$15,CalculationsAndCharts!$A87+$A$11,IF($C$7,8,0),1,1) -> 1265.35 | H87: 1258.265654 | I87: 1249.463667 | J87: 8.801986514 | K87: 1229.924564 | L87: 1203.030303 | M87: 26.89426112 | N87: 35.69624763 | O87: 0 | R87: 2.235543116 | S87: 0.7316512722 | T87: 2.967194389 | V87: 1258.265654 | W87: 1249.463667 | X87: 1229.924564 | Y87: 1203.030303 | Z87: 8.801986514 | AA87: 26.89426112 | AB87: 35.69624763 | AC87: 0.7316512722 | AD87: 2.235543116 | AE87: 2.967194389 | AP87: 33012700
A88: 56 | B88: =OFFSET(InputPriceData!B$15,CalculationsAndCharts!$A88+$A$11,0,1,1) -> 2015-04-13 | C88: =OFFSET(InputPriceData!G$15,CalculationsAndCharts!$A88+$A$11,IF($C$7,8,0),1,1) -> 29084200 | D88: =OFFSET(InputPriceData!C$15,CalculationsAndCharts!$A88+$A$11,IF($C$7,8,0),1,1) -> 1265.49 | E88: =OFFSET(InputPriceData!D$15,CalculationsAndCharts!$A88+$A$11,IF($C$7,8,0),1,1) -> 1271.74 | F88: =OFFSET(InputPriceData!E$15,CalculationsAndCharts!$A88+$A$11,IF($C$7,8,0),1,1) -> 1265.05 | G88: =OFFSET(InputPriceData!F$15,CalculationsAndCharts!$A88+$A$11,IF($C$7,8,0),1,1) -> 1265.59 | H88: 1256.977591 | I88: 1248.192761 | J88: 8.784830201 | K88: 1228.723701 | L88: 1202.064106 | M88: 26.65959573 | N88: 35.44442593 | O88: 0 | R88: 2.217818135 | S88: 0.7308121221 | T88: 2.948630257 | V88: 1256.977591 | W88: 1248.192761 | X88: 1228.723701 | Y88: 1202.064106 | Z88: 8.784830201 | AA88: 26.65959573 | AB88: 35.44442593 | AC88: 0.7308121221 | AD88: 2.217818135 | AE88: 2.948630257 | AO88: 29084200
A89: 57 | B89: =OFFSET(InputPriceData!B$15,CalculationsAndCharts!$A89+$A$11,0,1,1) -> 2015-04-10 | C89: =OFFSET(InputPriceData!G$15,CalculationsAndCharts!$A89+$A$11,IF($C$7,8,0),1,1) -> 5362000 | D89: =OFFSET(InputPriceData!C$15,CalculationsAndCharts!$A89+$A$11,IF($C$7,8,0),1,1) -> 1263.73 | E89: =OFFSET(InputPriceData!D$15,CalculationsAndCharts!$A89+$A$11,IF($C$7,8,0),1,1) -> 1266 | F89: =OFFSET(InputPriceData!E$15,CalculationsAndCharts!$A89+$A$11,IF($C$7,8,0),1,1) -> 1262.32 | G89: =OFFSET(InputPriceData!F$15,CalculationsAndCharts!$A89+$A$11,IF($C$7,8,0),1,1) -> 1264.77 | H89: 1255.411698 | I89: 1246.800982 | J89: 8.610716794 | K89: 1227.473996 | L89: 1201.079208 | M89: 26.39478828 | N89: 35.00550507 | O89: 0 | R89: 2.19758931 | S89: 0.7169149824 | T89: 2.914504292 | V89: 1255.411698 | W89: 1246.800982 | X89: 1227.473996 | Y89: 1201.079208 | Z89: 8.610716794 | AA89: 26.39478828 | AB89: 35.00550507 | AC89: 0.7169149824 | AD89: 2.19758931 | AE89: 2.914504292 | AO89: 5362000
A90: 58 | B90: =OFFSET(InputPriceData!B$15,CalculationsAndCharts!$A90+$A$11,0,1,1) -> 2015-04-09 | C90: =OFFSET(InputPriceData!G$15,CalculationsAndCharts!$A90+$A$11,IF($C$7,8,0),1,1) -> 31723600 | D90: =OFFSET(InputPriceData!C$15,CalculationsAndCharts!$A90+$A$11,IF($C$7,8,0),1,1) -> 1262.54 | E90: =OFFSET(InputPriceData!D$15,CalculationsAndCharts!$A90+$A$11,IF($C$7,8,0),1,1) -> 1265.78 | F90: =OFFSET(InputPriceData!E$15,CalculationsAndCharts!$A90+$A$11,IF($C$7,8,0),1,1) -> 1248.17 | G90: =OFFSET(InputPriceData!F$15,CalculationsAndCharts!$A90+$A$11,IF($C$7,8,0),1,1) -> 1259.11 | H90: 1253.710189 | I90: 1245.36346 | J90: 8.346728893 | K90: 1226.209725 | L90: 1200.091754 | M90: 26.11797111 | N90: 34.4647 | O90: 0 | R90: 2.176331187 | S90: 0.6955075614 | T90: 2.871838748 | V90: 1253.710189 | W90: 1245.36346 | X90: 1226.209725 | Y90: 1200.091754 | Z90: 8.346728893 | AA90: 26.11797111 | AB90: 34.4647 | AC90: 0.6955075614 | AD90: 2.176331187 | AE90: 2.871838748 | AP90: 31723600
A91: 59 | B91: =OFFSET(InputPriceData!B$15,CalculationsAndCharts!$A91+$A$11,0,1,1) -> 2015-04-08 | C91: =OFFSET(InputPriceData!G$15,CalculationsAndCharts!$A91+$A$11,IF($C$7,8,0),1,1) -> 32653300 | D91: =OFFSET(InputPriceData!C$15,CalculationsAndCharts!$A91+$A$11,IF($C$7,8,0),1,1) -> 1254.39 | E91: =OFFSET(InputPriceData!D$15,CalculationsAndCharts!$A91+$A$11,IF($C$7,8,0),1,1) -> 1264.13 | F91: =OFFSET(InputPriceData!E$15,CalculationsAndCharts!$A91+$A$11,IF($C$7,8,0),1,1) -> 1254.36 | G91: =OFFSET(InputPriceData!F$15,CalculationsAndCharts!$A91+$A$11,IF($C$7,8,0),1,1) -> 1262.71 | H91: 1252.728405 | I91: 1244.263737 | J91: 8.464668278 | K91: 1225.094462 | L91: 1199.176742 | M91: 25.91771912 | N91: 34.3823874 | O91: 0 | R91: 2.161292677 | S91: 0.7058732861 | T91: 2.867165963 | V91: 1252.728405 | W91: 1244.263737 | X91: 1225.094462 | Y91: 1199.176742 | Z91: 8.464668278 | AA91: 25.91771912 | AB91: 34.3823874 | AC91: 0.7058732861 | AD91: 2.161292677 | AE91: 2.867165963 | AO91: 32653300
A92: 60 | B92: =OFFSET(InputPriceData!B$15,CalculationsAndCharts!$A92+$A$11,0,1,1) -> 2015-04-07 | C92: =OFFSET(InputPriceData!G$15,CalculationsAndCharts!$A92+$A$11,IF($C$7,8,0),1,1) -> 30655100 | D92: =OFFSET(InputPriceData!C$15,CalculationsAndCharts!$A92+$A$11,IF($C$7,8,0),1,1) -> 1260.3 | E92: =OFFSET(InputPriceData!D$15,CalculationsAndCharts!$A92+$A$11,IF($C$7,8,0),1,1) -> 1263.23 | F92: =OFFSET(InputPriceData!E$15,CalculationsAndCharts!$A92+$A$11,IF($C$7,8,0),1,1) -> 1253.29 | G92: =OFFSET(InputPriceData!F$15,CalculationsAndCharts!$A92+$A$11,IF($C$7,8,0),1,1) -> 1253.36 | H92: 1250.91357 | I92: 1242.788036 | J92: 8.125533919 | K92: 1223.819359 | L92: 1198.191731 | M92: 25.62762787 | N92: 33.75316179 | O92: 0 | R92: 2.138858683 | S92: 0.6781497244 | T92: 2.817008407 | V92: 1250.91357 | W92: 1242.788036 | X92: 1223.819359 | Y92: 1198.191731 | Z92: 8.125533919 | AA92: 25.62762787 | AB92: 33.75316179 | AC92: 0.6781497244 | AD92: 2.138858683 | AE92: 2.817008407 | AP92: 30655100
A93: 61 | B93: =OFFSET(InputPriceData!B$15,CalculationsAndCharts!$A93+$A$11,0,1,1) -> 2015-04-06 | C93: =OFFSET(InputPriceData!G$15,CalculationsAndCharts!$A93+$A$11,IF($C$7,8,0),1,1) -> 33029700 | D93: =OFFSET(InputPriceData!C$15,CalculationsAndCharts!$A93+$A$11,IF($C$7,8,0),1,1) -> 1250.24 | E93: =OFFSET(InputPriceData!D$15,CalculationsAndCharts!$A93+$A$11,IF($C$7,8,0),1,1) -> 1262.76 | F93: =OFFSET(InputPriceData!E$15,CalculationsAndCharts!$A93+$A$11,IF($C$7,8,0),1,1) -> 1249.35 | G93: =OFFSET(InputPriceData!F$15,CalculationsAndCharts!$A93+$A$11,IF($C$7,8,0),1,1) -> 1260.54 | H93: 1250.468764 | I93: 1241.942279 | J93: 8.526485571 | K93: 1222.817981 | L93: 1197.336409 | M93: 25.4815722 | N93: 34.00805777 | O93: 0 | R93: 2.128188203 | S93: 0.7121211306 | T93: 2.840309333 | V93: 1250.468764 | W93: 1241.942279 | X93: 1222.817981 | Y93: 1197.336409 | Z93: 8.526485571 | AA93: 25.4815722 | AB93: 34.00805777 | AC93: 0.7121211306 | AD93: 2.128188203 | AE93: 2.840309333 | AO93: 33029700
A94: 62 | B94: =OFFSET(InputPriceData!B$15,CalculationsAndCharts!$A94+$A$11,0,1,1) -> 2015-04-02 | C94: =OFFSET(InputPriceData!G$15,CalculationsAndCharts!$A94+$A$11,IF($C$7,8,0),1,1) -> 30959600 | D94: =OFFSET(InputPriceData!C$15,CalculationsAndCharts!$A94+$A$11,IF($C$7,8,0),1,1) -> 1252.18 | E94: =OFFSET(InputPriceData!D$15,CalculationsAndCharts!$A94+$A$11,IF($C$7,8,0),1,1) -> 1259.97 | F94: =OFFSET(InputPriceData!E$15,CalculationsAndCharts!$A94+$A$11,IF($C$7,8,0),1,1) -> 1251.83 | G94: =OFFSET(InputPriceData!F$15,CalculationsAndCharts!$A94+$A$11,IF($C$7,8,0),1,1) -> 1255.66 | H94: 1248.637631 | I94: 1240.454461 | J94: 8.183169526 | K94: 1221.539268 | L94: 1196.356508 | M94: 25.18276033 | N94: 33.36592985 | O94: 0 | R94: 2.104954515 | S94: 0.6840076073 | T94: 2.788962122 | V94: 1248.637631 | W94: 1240.454461 | X94: 1221.539268 | Y94: 1196.356508 | Z94: 8.183169526 | AA94: 25.18276033 | AB94: 33.36592985 | AC94: 0.6840076073 | AD94: 2.104954515 | AE94: 2.788962122 | AO94: 30959600
A95: 63 | B95: =OFFSET(InputPriceData!B$15,CalculationsAndCharts!$A95+$A$11,0,1,1) -> 2015-04-01 | C95: =OFFSET(InputPriceData!G$15,CalculationsAndCharts!$A95+$A$11,IF($C$7,8,0),1,1) -> 35432700 | D95: =OFFSET(InputPriceData!C$15,CalculationsAndCharts!$A95+$A$11,IF($C$7,8,0),1,1) -> 1250.99 | E95: =OFFSET(InputPriceData!D$15,CalculationsAndCharts!$A95+$A$11,IF($C$7,8,0),1,1) -> 1251.89 | F95: =OFFSET(InputPriceData!E$15,CalculationsAndCharts!$A95+$A$11,IF($C$7,8,0),1,1) -> 1239.6 | G95: =OFFSET(InputPriceData!F$15,CalculationsAndCharts!$A95+$A$11,IF($C$7,8,0),1,1) -> 1251.71 | H95: 1247.360836 | I95: 1239.238018 | J95: 8.122818216 | K95: 1220.382633 | L95: 1195.437074 | M95: 24.94555934 | N95: 33.06837756 | O95: 0 | R95: 2.086731279 | S95: 0.6794852186 | T95: 2.766216497 | V95: 1247.360836 | W95: 1239.238018 | X95: 1220.382633 | Y95: 1195.437074 | Z95: 8.122818216 | AA95: 24.94555934 | AB95: 33.06837756 | AC95: 0.6794852186 | AD95: 2.086731279 | AE95: 2.766216497 | AO95: 35432700
A96: 64 | B96: =OFFSET(InputPriceData!B$15,CalculationsAndCharts!$A96+$A$11,0,1,1) -> 2015-03-31 | C96: =OFFSET(InputPriceData!G$15,CalculationsAndCharts!$A96+$A$11,IF($C$7,8,0),1,1) -> 33765500 | D96: =OFFSET(InputPriceData!C$15,CalculationsAndCharts!$A96+$A$11,IF($C$7,8,0),1,1) -> 1252.64 | E96: =OFFSET(InputPriceData!D$15,CalculationsAndCharts!$A96+$A$11,IF($C$7,8,0),1,1) -> 1255.3 | F96: =OFFSET(InputPriceData!E$15,CalculationsAndCharts!$A96+$A$11,IF($C$7,8,0),1,1) -> 1248.91 | G96: =OFFSET(InputPriceData!F$15,CalculationsAndCharts!$A96+$A$11,IF($C$7,8,0),1,1) -> 1252.77 | H96: 1246.570079 | I96: 1238.24026 | J96: 8.329819735 | K96: 1219.320689 | L96: 1194.564626 | M96: 24.75606318 | N96: 33.08588291 | O96: 0 | R96: 2.072392121 | S96: 0.6973100958 | T96: 2.769702216 | V96: 1246.570079 | W96: 1238.24026 | X96: 1219.320689 | Y96: 1194.564626 | Z96: 8.329819735 | AA96: 24.75606318 | AB96: 33.08588291 | AC96: 0.6973100958 | AD96: 2.072392121 | AE96: 2.769702216 | AO96: 33765500
A97: 65 | B97: =OFFSET(InputPriceData!B$15,CalculationsAndCharts!$A97+$A$11,0,1,1) -> 2015-03-30 | C97: =OFFSET(InputPriceData!G$15,CalculationsAndCharts!$A97+$A$11,IF($C$7,8,0),1,1) -> 29176900 | D97: =OFFSET(InputPriceData!C$15,CalculationsAndCharts!$A97+$A$11,IF($C$7,8,0),1,1) -> 1246.69 | E97: =OFFSET(InputPriceData!D$15,CalculationsAndCharts!$A97+$A$11,IF($C$7,8,0),1,1) -> 1258.24 | F97: =OFFSET(InputPriceData!E$15,CalculationsAndCharts!$A97+$A$11,IF($C$7,8,0),1,1) -> 1246.69 | G97: =OFFSET(InputPriceData!F$15,CalculationsAndCharts!$A97+$A$11,IF($C$7,8,0),1,1) -> 1257.8 | H97: 1245.442821 | I97: 1237.07788 | J97: 8.364940659 | K97: 1218.186814 | L97: 1193.662217 | M97: 24.52459713 | N97: 32.88953778 | O97: 0 | R97: =(K97-L97)/L97*100 -> 2.054567597 | S97: =(H97-I97)/L97*100 -> 0.7007795456 | T97: 2.755347143 | V97: 1245.442821 | W97: 1237.07788 | X97: 1218.186814 | Y97: 1193.662217 | Z97: =IF($R$19,J97,NA()) -> 8.364940659 | AA97: =IF($R$20,M97,NA()) -> 24.52459713 | AB97: =IF($R$21,N97,NA()) -> 32.88953778 | AC97: =IF($R$13,S97,NA()) -> 0.7007795456 | AD97: =IF($R$14,R97,NA()) -> 2.054567597 | AE97: =IF($R$15,T97,NA()) -> 2.755347143 | AO97: =IF(G97>=D97,C97,NA()) -> 29176900 | AP97: =IF(G97<D97,C97,NA()) -> 
A98: 66 | B98: =OFFSET(InputPriceData!B$15,CalculationsAndCharts!$A98+$A$11,0,1,1) -> 2015-03-27 | C98: =OFFSET(InputPriceData!G$15,CalculationsAndCharts!$A98+$A$11,IF($C$7,8,0),1,1) -> 30085500 | D98: =OFFSET(InputPriceData!C$15,CalculationsAndCharts!$A98+$A$11,IF($C$7,8,0),1,1) -> 1231.67 | E98: =OFFSET(InputPriceData!D$15,CalculationsAndCharts!$A98+$A$11,IF($C$7,8,0),1,1) -> 1240.76 | F98: =OFFSET(InputPriceData!E$15,CalculationsAndCharts!$A98+$A$11,IF($C$7,8,0),1,1) -> 1229.38 | G98: =OFFSET(InputPriceData!F$15,CalculationsAndCharts!$A98+$A$11,IF($C$7,8,0),1,1) -> 1240.41 | H98: 1243.196061 | I98: 1235.420111 | J98: 7.77595041 | K98: =IF($A98>$A$8,NA(),IF($A98=$A$8,$G98,$G98*$C$20+K99*$D$20)) -> 1216.843994 | L98: =IF($A98>$A$8,NA(),IF($A98=$A$8,$G98,$G98*$C$21+L99*$D$21)) -> 1192.667832 | M98: =K98-L98 -> 24.17616149 | N98: =J98+M98 -> 31.9521119 | O98: 0 | R98: 2.027065779 | S98: 0.6519795536 | T98: =R98+S98 -> 2.679045333 | V98: =IF($R$4,H98,NA()) -> 1243.196061 | W98: =IF($R$5,I98,NA()) -> 1235.420111 | X98: =IF($R$6,K98,NA()) -> 1216.843994 | Y98: =IF($R$7,L98,NA()) -> 1192.667832 | Z98: 7.77595041 | AA98: 24.17616149 | AB98: 31.9521119 | AC98: 0.6519795536 | AD98: 2.027065779 | AE98: 2.679045333 | AO98: 30085500
A99: 67 | B99: =OFFSET(InputPriceData!B$15,CalculationsAndCharts!$A99+$A$11,0,1,1) -> 2015-03-26 | C99: =OFFSET(InputPriceData!G$15,CalculationsAndCharts!$A99+$A$11,IF($C$7,8,0),1,1) -> 35106700 | D99: =OFFSET(InputPriceData!C$15,CalculationsAndCharts!$A99+$A$11,IF($C$7,8,0),1,1) -> 1228.8 | E99: =OFFSET(InputPriceData!D$15,CalculationsAndCharts!$A99+$A$11,IF($C$7,8,0),1,1) -> 1237.36 | F99: =OFFSET(InputPriceData!E$15,CalculationsAndCharts!$A99+$A$11,IF($C$7,8,0),1,1) -> 1225.47 | G99: =OFFSET(InputPriceData!F$15,CalculationsAndCharts!$A99+$A$11,IF($C$7,8,0),1,1) -> 1231.99 | H99: 1243.702618 | I99: 1235.02092 | J99: 8.681698124 | K99: 1216.045146 | L99: 1191.927644 | M99: 24.11750247 | N99: 32.7992006 | O99: 0 | R99: 2.023403232 | S99: 0.7283745929 | T99: 2.751777825 | V99: 1243.702618 | W99: 1235.02092 | X99: 1216.045146 | Y99: 1191.927644 | Z99: 8.681698124 | AA99: 24.11750247 | AB99: 32.7992006 | AC99: 0.7283745929 | AD99: 2.023403232 | AE99: 2.751777825 | AO99: 35106700
A100: 68 | B100: =OFFSET(InputPriceData!B$15,CalculationsAndCharts!$A100+$A$11,0,1,1) -> 2015-03-25 | C100: =OFFSET(InputPriceData!G$15,CalculationsAndCharts!$A100+$A$11,IF($C$7,8,0),1,1) -> 35211400 | D100: =OFFSET(InputPriceData!C$15,CalculationsAndCharts!$A100+$A$11,IF($C$7,8,0),1,1) -> 1265.58 | E100: =OFFSET(InputPriceData!D$15,CalculationsAndCharts!$A100+$A$11,IF($C$7,8,0),1,1) -> 1265.85 | F100: =OFFSET(InputPriceData!E$15,CalculationsAndCharts!$A100+$A$11,IF($C$7,8,0),1,1) -> 1233.55 | G100: =OFFSET(InputPriceData!F$15,CalculationsAndCharts!$A100+$A$11,IF($C$7,8,0),1,1) -> 1233.85 | H100: 1245.832185 | I100: 1235.263393 | J100: 10.56879141 | K100: 1215.504643 | L100: 1191.306522 | M100: 24.19812076 | N100: 34.76691217 | O100: 0 | R100: 2.031225408 | S100: 0.8871597039 | T100: 2.918385112 | V100: 1245.832185 | W100: 1235.263393 | X100: 1215.504643 | Y100: 1191.306522 | Z100: 10.56879141 | AA100: 24.19812076 | AB100: 34.76691217 | AC100: 0.8871597039 | AD100: 2.031225408 | AE100: 2.918385112 | AP100: 35211400
A101: 69 | B101: =OFFSET(InputPriceData!B$15,CalculationsAndCharts!$A101+$A$11,0,1,1) -> 2015-03-24 | C101: =OFFSET(InputPriceData!G$15,CalculationsAndCharts!$A101+$A$11,IF($C$7,8,0),1,1) -> 31898200 | D101: =OFFSET(InputPriceData!C$15,CalculationsAndCharts!$A101+$A$11,IF($C$7,8,0),1,1) -> 1264.06 | E101: =OFFSET(InputPriceData!D$15,CalculationsAndCharts!$A101+$A$11,IF($C$7,8,0),1,1) -> 1268.08 | F101: =OFFSET(InputPriceData!E$15,CalculationsAndCharts!$A101+$A$11,IF($C$7,8,0),1,1) -> 1262.41 | G101: =OFFSET(InputPriceData!F$15,CalculationsAndCharts!$A101+$A$11,IF($C$7,8,0),1,1) -> 1263.46 | H101: 1248.010764 | I101: 1235.376465 | J101: 12.63429897 | K101: 1214.882766 | L101: 1190.646933 | M101: 24.23583305 | N101: 36.87013203 | O101: 0 | R101: 2.035518034 | S101: 1.061128923 | T101: 3.096646957 | V101: 1248.010764 | W101: 1235.376465 | X101: 1214.882766 | Y101: 1190.646933 | Z101: 12.63429897 | AA101: 24.23583305 | AB101: 36.87013203 | AC101: 1.061128923 | AD101: 2.035518034 | AE101: 3.096646957 | AP101: 31898200
A102: 70 | B102: =OFFSET(InputPriceData!B$15,CalculationsAndCharts!$A102+$A$11,0,1,1) -> 2015-03-23 | C102: =OFFSET(InputPriceData!G$15,CalculationsAndCharts!$A102+$A$11,IF($C$7,8,0),1,1) -> 32679600 | D102: =OFFSET(InputPriceData!C$15,CalculationsAndCharts!$A102+$A$11,IF($C$7,8,0),1,1) -> 1264.17 | E102: =OFFSET(InputPriceData!D$15,CalculationsAndCharts!$A102+$A$11,IF($C$7,8,0),1,1) -> 1268.16 | F102: =OFFSET(InputPriceData!E$15,CalculationsAndCharts!$A102+$A$11,IF($C$7,8,0),1,1) -> 1262.95 | G102: =OFFSET(InputPriceData!F$15,CalculationsAndCharts!$A102+$A$11,IF($C$7,8,0),1,1) -> 1264.71 | H102: 1245.201812 | I102: 1233.129782 | J102: 12.07202973 | K102: 1213.23608 | L102: 1189.518048 | M102: 23.71803192 | N102: 35.79006165 | O102: 0 | R102: 1.993919466 | S102: 1.014867302 | T102: 3.008786768 | V102: 1245.201812 | W102: 1233.129782 | X102: 1213.23608 | Y102: 1189.518048 | Z102: 12.07202973 | AA102: 23.71803192 | AB102: 35.79006165 | AC102: 1.014867302 | AD102: 1.993919466 | AE102: 3.008786768 | AO102: 32679600
A103: 71 | B103: =OFFSET(InputPriceData!B$15,CalculationsAndCharts!$A103+$A$11,0,1,1) -> 2015-03-20 | C103: =OFFSET(InputPriceData!G$15,CalculationsAndCharts!$A103+$A$11,IF($C$7,8,0),1,1) -> 55541200 | D103: =OFFSET(InputPriceData!C$15,CalculationsAndCharts!$A103+$A$11,IF($C$7,8,0),1,1) -> 1259.71 | E103: =OFFSET(InputPriceData!D$15,CalculationsAndCharts!$A103+$A$11,IF($C$7,8,0),1,1) -> 1267.22 | F103: =OFFSET(InputPriceData!E$15,CalculationsAndCharts!$A103+$A$11,IF($C$7,8,0),1,1) -> 1259.71 | G103: =OFFSET(InputPriceData!F$15,CalculationsAndCharts!$A103+$A$11,IF($C$7,8,0),1,1) -> 1266.37 | H103: 1241.654868 | I103: 1230.603364 | J103: 11.05150383 | K103: 1211.491202 | L103: 1188.352282 | M103: 23.13891998 | N103: 34.19042381 | O103: 0 | R103: 1.947143144 | S103: 0.9299854931 | T103: 2.877128637 | V103: 1241.654868 | W103: 1230.603364 | X103: 1211.491202 | Y103: 1188.352282 | Z103: 11.05150383 | AA103: 23.13891998 | AB103: 34.19042381 | AC103: 0.9299854931 | AD103: 1.947143144 | AE103: 2.877128637 | AO103: 55541200
A104: 72 | B104: =OFFSET(InputPriceData!B$15,CalculationsAndCharts!$A104+$A$11,0,1,1) -> 2015-03-19 | C104: =OFFSET(InputPriceData!G$15,CalculationsAndCharts!$A104+$A$11,IF($C$7,8,0),1,1) -> 33052200 | D104: =OFFSET(InputPriceData!C$15,CalculationsAndCharts!$A104+$A$11,IF($C$7,8,0),1,1) -> 1249.26 | E104: =OFFSET(InputPriceData!D$15,CalculationsAndCharts!$A104+$A$11,IF($C$7,8,0),1,1) -> 1254.89 | F104: =OFFSET(InputPriceData!E$15,CalculationsAndCharts!$A104+$A$11,IF($C$7,8,0),1,1) -> 1248.48 | G104: =OFFSET(InputPriceData!F$15,CalculationsAndCharts!$A104+$A$11,IF($C$7,8,0),1,1) -> 1254.86 | H104: 1237.161208 | I104: 1227.742033 | J104: 9.419174346 | K104: 1209.630904 | L104: 1187.142705 | M104: 22.48819876 | N104: 31.90737311 | O104: 0 | R104: 1.894313015 | S104: 0.7934323572 | T104: 2.687745372 | V104: 1237.161208 | W104: 1227.742033 | X104: 1209.630904 | Y104: 1187.142705 | Z104: 9.419174346 | AA104: 22.48819876 | AB104: 31.90737311 | AC104: 0.7934323572 | AD104: 1.894313015 | AE104: 2.687745372 | AO104: 33052200
A105: 73 | B105: =OFFSET(InputPriceData!B$15,CalculationsAndCharts!$A105+$A$11,0,1,1) -> 2015-03-18 | C105: =OFFSET(InputPriceData!G$15,CalculationsAndCharts!$A105+$A$11,IF($C$7,8,0),1,1) -> 41282100 | D105: =OFFSET(InputPriceData!C$15,CalculationsAndCharts!$A105+$A$11,IF($C$7,8,0),1,1) -> 1239.84 | E105: =OFFSET(InputPriceData!D$15,CalculationsAndCharts!$A105+$A$11,IF($C$7,8,0),1,1) -> 1255.68 | F105: =OFFSET(InputPriceData!E$15,CalculationsAndCharts!$A105+$A$11,IF($C$7,8,0),1,1) -> 1235.49 | G105: =OFFSET(InputPriceData!F$15,CalculationsAndCharts!$A105+$A$11,IF($C$7,8,0),1,1) -> 1252.14 | H105: 1233.943246 | I105: 1225.572596 | J105: 8.370649453 | K105: 1208.097714 | L105: 1186.092824 | M105: 22.00488959 | N105: 30.37553905 | O105: 0 | R105: 1.855241777 | S105: 0.7057330828 | T105: 2.56097486 | V105: 1233.943246 | W105: 1225.572596 | X105: 1208.097714 | Y105: 1186.092824 | Z105: 8.370649453 | AA105: 22.00488959 | AB105: 30.37553905 | AC105: 0.7057330828 | AD105: 1.855241777 | AE105: 2.56097486 | AO105: 41282100
A106: 74 | B106: =OFFSET(InputPriceData!B$15,CalculationsAndCharts!$A106+$A$11,0,1,1) -> 2015-03-17 | C106: =OFFSET(InputPriceData!G$15,CalculationsAndCharts!$A106+$A$11,IF($C$7,8,0),1,1) -> 32218400 | D106: =OFFSET(InputPriceData!C$15,CalculationsAndCharts!$A106+$A$11,IF($C$7,8,0),1,1) -> 1235.9 | E106: =OFFSET(InputPriceData!D$15,CalculationsAndCharts!$A106+$A$11,IF($C$7,8,0),1,1) -> 1243.33 | F106: =OFFSET(InputPriceData!E$15,CalculationsAndCharts!$A106+$A$11,IF($C$7,8,0),1,1) -> 1234.66 | G106: =OFFSET(InputPriceData!F$15,CalculationsAndCharts!$A106+$A$11,IF($C$7,8,0),1,1) -> 1242.23 | H106: 1230.634745 | I106: 1223.447204 | J106: 7.187540962 | K106: 1206.604755 | L106: 1185.068837 | M106: 21.53591796 | N106: 28.72345892 | O106: 0 | R106: 1.817271477 | S106: 0.6065083089 | T106: 2.423779786 | V106: 1230.634745 | W106: 1223.447204 | X106: 1206.604755 | Y106: 1185.068837 | Z106: 7.187540962 | AA106: 21.53591796 | AB106: 28.72345892 | AC106: 0.6065083089 | AD106: 1.817271477 | AE106: 2.423779786 | AO106: 32218400
A107: 75 | B107: =OFFSET(InputPriceData!B$15,CalculationsAndCharts!$A107+$A$11,0,1,1) -> 2015-03-16 | C107: =OFFSET(InputPriceData!G$15,CalculationsAndCharts!$A107+$A$11,IF($C$7,8,0),1,1) -> 32956000 | D107: =OFFSET(InputPriceData!C$15,CalculationsAndCharts!$A107+$A$11,IF($C$7,8,0),1,1) -> 1237.08 | E107: =OFFSET(InputPriceData!D$15,CalculationsAndCharts!$A107+$A$11,IF($C$7,8,0),1,1) -> 1241.11 | F107: =OFFSET(InputPriceData!E$15,CalculationsAndCharts!$A107+$A$11,IF($C$7,8,0),1,1) -> 1235.7 | G107: =OFFSET(InputPriceData!F$15,CalculationsAndCharts!$A107+$A$11,IF($C$7,8,0),1,1) -> 1239.78 | H107: =IF($A107>$A$8,NA(),IF(A107=$A$8,G107,G107*$C$18+H108*$D$18)) -> 1228.526517 | I107: =IF($A107>$A$8,NA(),IF($A107=$A$8,$G107,$G107*$C$19+I108*$D$19)) -> 1221.94458 | J107: =H107-I107 -> 6.581936438 | K107: 1205.39712 | L107: 1184.182617 | M107: 21.21450212 | N107: 27.79643856 | O107: 0 | R107: 1.791489066 | S107: 0.5558210652 | T107: 2.347310132 | V107: 1228.526517 | W107: 1221.94458 | X107: 1205.39712 | Y107: 1184.182617 | Z107: 6.581936438 | AA107: 21.21450212 | AB107: 27.79643856 | AC107: 0.5558210652 | AD107: 1.791489066 | AE107: 2.347310132 | AO107: 32956000
A108: 76 | B108: =OFFSET(InputPriceData!B$15,CalculationsAndCharts!$A108+$A$11,0,1,1) -> 2015-03-13 | C108: =OFFSET(InputPriceData!G$15,CalculationsAndCharts!$A108+$A$11,IF($C$7,8,0),1,1) -> 34985600 | D108: =OFFSET(InputPriceData!C$15,CalculationsAndCharts!$A108+$A$11,IF($C$7,8,0),1,1) -> 1235.59 | E108: =OFFSET(InputPriceData!D$15,CalculationsAndCharts!$A108+$A$11,IF($C$7,8,0),1,1) -> 1236.78 | F108: =OFFSET(InputPriceData!E$15,CalculationsAndCharts!$A108+$A$11,IF($C$7,8,0),1,1) -> 1220.01 | G108: =OFFSET(InputPriceData!F$15,CalculationsAndCharts!$A108+$A$11,IF($C$7,8,0),1,1) -> 1232.14 | H108: 1226.480429 | I108: 1220.517747 | J108: 5.962682133 | K108: 1204.231598 | L108: 1183.320642 | M108: 20.91095567 | N108: 26.8736378 | O108: 0 | R108: 1.767141966 | S108: 0.503894035 | T108: 2.271036001 | V108: 1226.480429 | W108: 1220.517747 | X108: 1204.231598 | Y108: 1183.320642 | Z108: 5.962682133 | AA108: 20.91095567 | AB108: 26.8736378 | AC108: 0.503894035 | AD108: 1.767141966 | AE108: 2.271036001 | AP108: 34985600
A109: 77 | B109: =OFFSET(InputPriceData!B$15,CalculationsAndCharts!$A109+$A$11,0,1,1) -> 2015-03-12 | C109: =OFFSET(InputPriceData!G$15,CalculationsAndCharts!$A109+$A$11,IF($C$7,8,0),1,1) -> 34058600 | D109: =OFFSET(InputPriceData!C$15,CalculationsAndCharts!$A109+$A$11,IF($C$7,8,0),1,1) -> 1221.46 | E109: =OFFSET(InputPriceData!D$15,CalculationsAndCharts!$A109+$A$11,IF($C$7,8,0),1,1) -> 1236.68 | F109: =OFFSET(InputPriceData!E$15,CalculationsAndCharts!$A109+$A$11,IF($C$7,8,0),1,1) -> 1221.26 | G109: =OFFSET(InputPriceData!F$15,CalculationsAndCharts!$A109+$A$11,IF($C$7,8,0),1,1) -> 1236.64 | H109: 1225.451416 | I109: 1219.587966 | J109: 5.863449443 | K109: 1203.285551 | L109: 1182.563753 | M109: 20.72179741 | N109: 26.58524686 | O109: 0 | R109: 1.752277402 | S109: 0.4958252295 | T109: 2.248102632 | V109: 1225.451416 | W109: 1219.587966 | X109: 1203.285551 | Y109: 1182.563753 | Z109: 5.863449443 | AA109: 20.72179741 | AB109: 26.58524686 | AC109: 0.4958252295 | AD109: 1.752277402 | AE109: 2.248102632 | AO109: 34058600
A110: 78 | B110: =OFFSET(InputPriceData!B$15,CalculationsAndCharts!$A110+$A$11,0,1,1) -> 2015-03-11 | C110: =OFFSET(InputPriceData!G$15,CalculationsAndCharts!$A110+$A$11,IF($C$7,8,0),1,1) -> 34065700 | D110: =OFFSET(InputPriceData!C$15,CalculationsAndCharts!$A110+$A$11,IF($C$7,8,0),1,1) -> 1209.99 | E110: =OFFSET(InputPriceData!D$15,CalculationsAndCharts!$A110+$A$11,IF($C$7,8,0),1,1) -> 1216.5 | F110: =OFFSET(InputPriceData!E$15,CalculationsAndCharts!$A110+$A$11,IF($C$7,8,0),1,1) -> 1206.11 | G110: =OFFSET(InputPriceData!F$15,CalculationsAndCharts!$A110+$A$11,IF($C$7,8,0),1,1) -> 1215.78 | H110: 1223.417128 | I110: 1218.223804 | J110: 5.193324092 | K110: 1202.154891 | L110: 1181.725362 | M110: 20.42952954 | N110: 25.62285363 | O110: 0 | R110: 1.728788278 | S110: 0.4394696314 | T110: 2.16825791 | V110: 1223.417128 | W110: 1218.223804 | X110: 1202.154891 | Y110: 1181.725362 | Z110: 5.193324092 | AA110: 20.42952954 | AB110: 25.62285363 | AC110: 0.4394696314 | AD110: 1.728788278 | AE110: 2.16825791 | AO110: 34065700
A111: 79 | B111: =OFFSET(InputPriceData!B$15,CalculationsAndCharts!$A111+$A$11,0,1,1) -> 2015-03-10 | C111: =OFFSET(InputPriceData!G$15,CalculationsAndCharts!$A111+$A$11,IF($C$7,8,0),1,1) -> 36689000 | D111: =OFFSET(InputPriceData!C$15,CalculationsAndCharts!$A111+$A$11,IF($C$7,8,0),1,1) -> 1213.93 | E111: =OFFSET(InputPriceData!D$15,CalculationsAndCharts!$A111+$A$11,IF($C$7,8,0),1,1) -> 1213.94 | F111: =OFFSET(InputPriceData!E$15,CalculationsAndCharts!$A111+$A$11,IF($C$7,8,0),1,1) -> 1206.32 | G111: =OFFSET(InputPriceData!F$15,CalculationsAndCharts!$A111+$A$11,IF($C$7,8,0),1,1) -> 1208.54 | H111: 1224.805696 | I111: 1218.419308 | J111: 6.386388474 | K111: 1201.693023 | L111: 1181.197383 | M111: 20.49564033 | N111: 26.88202881 | O111: 0 | R111: 1.735157953 | S111: 0.5406707267 | T111: 2.27582868 | V111: 1224.805696 | W111: 1218.419308 | X111: 1201.693023 | Y111: 1181.197383 | Z111: 6.386388474 | AA111: 20.49564033 | AB111: 26.88202881 | AC111: 0.5406707267 | AD111: 1.735157953 | AE111: 2.27582868 | AP111: 36689000
A112: 80 | B112: =OFFSET(InputPriceData!B$15,CalculationsAndCharts!$A112+$A$11,0,1,1) -> 2015-03-09 | C112: =OFFSET(InputPriceData!G$15,CalculationsAndCharts!$A112+$A$11,IF($C$7,8,0),1,1) -> 33490900 | D112: =OFFSET(InputPriceData!C$15,CalculationsAndCharts!$A112+$A$11,IF($C$7,8,0),1,1) -> 1220.48 | E112: =OFFSET(InputPriceData!D$15,CalculationsAndCharts!$A112+$A$11,IF($C$7,8,0),1,1) -> 1225.83 | F112: =OFFSET(InputPriceData!E$15,CalculationsAndCharts!$A112+$A$11,IF($C$7,8,0),1,1) -> 1218.76 | G112: =OFFSET(InputPriceData!F$15,CalculationsAndCharts!$A112+$A$11,IF($C$7,8,0),1,1) -> 1223.59 | H112: 1227.763096 | I112: 1219.209653 | J112: 8.553443181 | K112: 1201.460922 | L112: 1180.773466 | M112: 20.68745597 | N112: 29.24089915 | O112: 0 | R112: 1.752025817 | S112: 0.7243932409 | T112: 2.476419058 | V112: 1227.763096 | W112: 1219.209653 | X112: 1201.460922 | Y112: 1180.773466 | Z112: 8.553443181 | AA112: 20.68745597 | AB112: 29.24089915 | AC112: 0.7243932409 | AD112: 1.752025817 | AE112: 2.476419058 | AO112: 33490900
A113: 81 | B113: =OFFSET(InputPriceData!B$15,CalculationsAndCharts!$A113+$A$11,0,1,1) -> 2015-03-06 | C113: =OFFSET(InputPriceData!G$15,CalculationsAndCharts!$A113+$A$11,IF($C$7,8,0),1,1) -> 38535700 | D113: =OFFSET(InputPriceData!C$15,CalculationsAndCharts!$A113+$A$11,IF($C$7,8,0),1,1) -> 1227.88 | E113: =OFFSET(InputPriceData!D$15,CalculationsAndCharts!$A113+$A$11,IF($C$7,8,0),1,1) -> 1231.09 | F113: =OFFSET(InputPriceData!E$15,CalculationsAndCharts!$A113+$A$11,IF($C$7,8,0),1,1) -> 1216.22 | G113: =OFFSET(InputPriceData!F$15,CalculationsAndCharts!$A113+$A$11,IF($C$7,8,0),1,1) -> 1217.52 | H113: 1228.52184 | I113: 1218.859225 | J113: 9.662615651 | K113: 1200.710784 | L113: 1180.109644 | M113: 20.60113997 | N113: 30.26375562 | O113: 0 | R113: 1.745697112 | S113: 0.8187896522 | T113: 2.564486764 | V113: 1228.52184 | W113: 1218.859225 | X113: 1200.710784 | Y113: 1180.109644 | Z113: 9.662615651 | AA113: 20.60113997 | AB113: 30.26375562 | AC113: 0.8187896522 | AD113: 1.745697112 | AE113: 2.564486764 | AP113: 38535700
A114: 82 | B114: =OFFSET(InputPriceData!B$15,CalculationsAndCharts!$A114+$A$11,0,1,1) -> 2015-03-05 | C114: =OFFSET(InputPriceData!G$15,CalculationsAndCharts!$A114+$A$11,IF($C$7,8,0),1,1) -> 31030300 | D114: =OFFSET(InputPriceData!C$15,CalculationsAndCharts!$A114+$A$11,IF($C$7,8,0),1,1) -> 1232.89 | E114: =OFFSET(InputPriceData!D$15,CalculationsAndCharts!$A114+$A$11,IF($C$7,8,0),1,1) -> 1236.05 | F114: =OFFSET(InputPriceData!E$15,CalculationsAndCharts!$A114+$A$11,IF($C$7,8,0),1,1) -> 1228.85 | G114: =OFFSET(InputPriceData!F$15,CalculationsAndCharts!$A114+$A$11,IF($C$7,8,0),1,1) -> 1234.31 | H114: 1230.522175 | I114: 1218.966363 | J114: 11.55581229 | K114: 1200.14098 | L114: 1179.529639 | M114: 20.61134156 | N114: 32.16715385 | O114: 0 | R114: 1.747420403 | S114: 0.979696644 | T114: 2.727117047 | V114: 1230.522175 | W114: 1218.966363 | X114: 1200.14098 | Y114: 1179.529639 | Z114: 11.55581229 | AA114: 20.61134156 | AB114: 32.16715385 | AC114: 0.979696644 | AD114: 1.747420403 | AE114: 2.727117047 | AO114: 31030300
A115: 83 | B115: =OFFSET(InputPriceData!B$15,CalculationsAndCharts!$A115+$A$11,0,1,1) -> 2015-03-04 | C115: =OFFSET(InputPriceData!G$15,CalculationsAndCharts!$A115+$A$11,IF($C$7,8,0),1,1) -> 34211100 | D115: =OFFSET(InputPriceData!C$15,CalculationsAndCharts!$A115+$A$11,IF($C$7,8,0),1,1) -> 1232.15 | E115: =OFFSET(InputPriceData!D$15,CalculationsAndCharts!$A115+$A$11,IF($C$7,8,0),1,1) -> 1232.62 | F115: =OFFSET(InputPriceData!E$15,CalculationsAndCharts!$A115+$A$11,IF($C$7,8,0),1,1) -> 1224.63 | G115: =OFFSET(InputPriceData!F$15,CalculationsAndCharts!$A115+$A$11,IF($C$7,8,0),1,1) -> 1230.73 | H115: 1229.83348 | I115: 1217.738872 | J115: 12.09460781 | K115: 1198.982708 | L115: 1178.680331 | M115: 20.30237763 | N115: 32.39698544 | O115: 0 | R115: 1.722466822 | S115: 1.026114333 | T115: 2.748581154 | V115: 1229.83348 | W115: 1217.738872 | X115: 1198.982708 | Y115: 1178.680331 | Z115: 12.09460781 | AA115: 20.30237763 | AB115: 32.39698544 | AC115: 1.026114333 | AD115: 1.722466822 | AE115: 2.748581154 | AP115: 34211100
A116: 84 | B116: =OFFSET(InputPriceData!B$15,CalculationsAndCharts!$A116+$A$11,0,1,1) -> 2015-03-03 | C116: =OFFSET(InputPriceData!G$15,CalculationsAndCharts!$A116+$A$11,IF($C$7,8,0),1,1) -> 32623000 | D116: =OFFSET(InputPriceData!C$15,CalculationsAndCharts!$A116+$A$11,IF($C$7,8,0),1,1) -> 1238.79 | E116: =OFFSET(InputPriceData!D$15,CalculationsAndCharts!$A116+$A$11,IF($C$7,8,0),1,1) -> 1238.94 | F116: =OFFSET(InputPriceData!E$15,CalculationsAndCharts!$A116+$A$11,IF($C$7,8,0),1,1) -> 1230.74 | G116: =OFFSET(InputPriceData!F$15,CalculationsAndCharts!$A116+$A$11,IF($C$7,8,0),1,1) -> 1234.76 | H116: 1229.670476 | I116: 1216.699581 | J116: 12.97089435 | K116: 1197.906529 | L116: 1177.873359 | M116: 20.03316987 | N116: 33.00406422 | O116: 0 | R116: 1.700791491 | S116: 1.101212983 | T116: 2.802004474 | V116: 1229.670476 | W116: 1216.699581 | X116: 1197.906529 | Y116: 1177.873359 | Z116: 12.97089435 | AA116: 20.03316987 | AB116: 33.00406422 | AC116: 1.101212983 | AD116: 1.700791491 | AE116: 2.802004474 | AP116: 32623000
A117: 85 | B117: =OFFSET(InputPriceData!B$15,CalculationsAndCharts!$A117+$A$11,0,1,1) -> 2015-03-02 | C117: =OFFSET(InputPriceData!G$15,CalculationsAndCharts!$A117+$A$11,IF($C$7,8,0),1,1) -> 34094900 | D117: =OFFSET(InputPriceData!C$15,CalculationsAndCharts!$A117+$A$11,IF($C$7,8,0),1,1) -> 1233.39 | E117: =OFFSET(InputPriceData!D$15,CalculationsAndCharts!$A117+$A$11,IF($C$7,8,0),1,1) -> 1243.33 | F117: =OFFSET(InputPriceData!E$15,CalculationsAndCharts!$A117+$A$11,IF($C$7,8,0),1,1) -> 1232.67 | G117: =OFFSET(InputPriceData!F$15,CalculationsAndCharts!$A117+$A$11,IF($C$7,8,0),1,1) -> 1242.62 | H117: 1228.745108 | I117: 1215.254748 | J117: 13.4903598 | K117: 1196.657259 | L117: 1176.991396 | M117: 19.66586309 | N117: 33.15622288 | O117: 0 | R117: 1.670858696 | S117: 1.146173187 | T117: 2.817031884 | V117: 1228.745108 | W117: 1215.254748 | X117: 1196.657259 | Y117: 1176.991396 | Z117: 13.4903598 | AA117: 19.66586309 | AB117: 33.15622288 | AC117: 1.146173187 | AD117: 1.670858696 | AE117: 2.817031884 | AO117: 34094900
A118: 86 | B118: =OFFSET(InputPriceData!B$15,CalculationsAndCharts!$A118+$A$11,0,1,1) -> 2015-02-27 | C118: =OFFSET(InputPriceData!G$15,CalculationsAndCharts!$A118+$A$11,IF($C$7,8,0),1,1) -> 35473800 | D118: =OFFSET(InputPriceData!C$15,CalculationsAndCharts!$A118+$A$11,IF($C$7,8,0),1,1) -> 1238.14 | E118: =OFFSET(InputPriceData!D$15,CalculationsAndCharts!$A118+$A$11,IF($C$7,8,0),1,1) -> 1239.67 | F118: =OFFSET(InputPriceData!E$15,CalculationsAndCharts!$A118+$A$11,IF($C$7,8,0),1,1) -> 1233.26 | G118: =OFFSET(InputPriceData!F$15,CalculationsAndCharts!$A118+$A$11,IF($C$7,8,0),1,1) -> 1233.37 | H118: 1226.2224 | I118: 1213.065528 | J118: 13.15687228 | K118: 1195.0992 | L118: 1175.973898 | M118: 19.12530181 | N118: 32.28217408 | O118: 0 | R118: 1.626337272 | S118: 1.118806489 | T118: 2.74514376 | V118: 1226.2224 | W118: 1213.065528 | X118: 1195.0992 | Y118: 1175.973898 | Z118: 13.15687228 | AA118: 19.12530181 | AB118: 32.28217408 | AC118: 1.118806489 | AD118: 1.626337272 | AE118: 2.74514376 | AP118: 35473800
A119: 87 | B119: =OFFSET(InputPriceData!B$15,CalculationsAndCharts!$A119+$A$11,0,1,1) -> 2015-02-26 | C119: =OFFSET(InputPriceData!G$15,CalculationsAndCharts!$A119+$A$11,IF($C$7,8,0),1,1) -> 34086900 | D119: =OFFSET(InputPriceData!C$15,CalculationsAndCharts!$A119+$A$11,IF($C$7,8,0),1,1) -> 1234.67 | E119: =OFFSET(InputPriceData!D$15,CalculationsAndCharts!$A119+$A$11,IF($C$7,8,0),1,1) -> 1239.22 | F119: =OFFSET(InputPriceData!E$15,CalculationsAndCharts!$A119+$A$11,IF($C$7,8,0),1,1) -> 1231.7 | G119: =OFFSET(InputPriceData!F$15,CalculationsAndCharts!$A119+$A$11,IF($C$7,8,0),1,1) -> 1239.11 | H119: 1224.922836 | I119: 1211.44117 | J119: 13.48166643 | K119: 1193.801884 | L119: 1175.084036 | M119: 18.71784859 | N119: 32.19951502 | O119: 0 | R119: 1.592894467 | S119: 1.147293812 | T119: 2.740188279 | V119: 1224.922836 | W119: 1211.44117 | X119: 1193.801884 | Y119: 1175.084036 | Z119: 13.48166643 | AA119: 18.71784859 | AB119: 32.19951502 | AC119: 1.147293812 | AD119: 1.592894467 | AE119: 2.740188279 | AO119: 34086900
A120: 88 | B120: =OFFSET(InputPriceData!B$15,CalculationsAndCharts!$A120+$A$11,0,1,1) -> 2015-02-25 | C120: =OFFSET(InputPriceData!G$15,CalculationsAndCharts!$A120+$A$11,IF($C$7,8,0),1,1) -> 33123400 | D120: =OFFSET(InputPriceData!C$15,CalculationsAndCharts!$A120+$A$11,IF($C$7,8,0),1,1) -> 1233.24 | E120: =OFFSET(InputPriceData!D$15,CalculationsAndCharts!$A120+$A$11,IF($C$7,8,0),1,1) -> 1236.88 | F120: =OFFSET(InputPriceData!E$15,CalculationsAndCharts!$A120+$A$11,IF($C$7,8,0),1,1) -> 1230.95 | G120: =OFFSET(InputPriceData!F$15,CalculationsAndCharts!$A120+$A$11,IF($C$7,8,0),1,1) -> 1235.1 | H120: 1222.343352 | I120: 1209.227664 | J120: 13.11568855 | K120: 1192.266016 | L120: 1174.091385 | M120: 18.17463087 | N120: 31.29031942 | O120: 0 | R120: 1.547974127 | S120: 1.117092648 | T120: 2.665066775 | V120: 1222.343352 | W120: 1209.227664 | X120: 1192.266016 | Y120: 1174.091385 | Z120: 13.11568855 | AA120: 18.17463087 | AB120: 31.29031942 | AC120: 1.117092648 | AD120: 1.547974127 | AE120: 2.665066775 | AO120: 33123400
A121: 89 | B121: =OFFSET(InputPriceData!B$15,CalculationsAndCharts!$A121+$A$11,0,1,1) -> 2015-02-24 | C121: =OFFSET(InputPriceData!G$15,CalculationsAndCharts!$A121+$A$11,IF($C$7,8,0),1,1) -> 31998400 | D121: =OFFSET(InputPriceData!C$15,CalculationsAndCharts!$A121+$A$11,IF($C$7,8,0),1,1) -> 1232.24 | E121: =OFFSET(InputPriceData!D$15,CalculationsAndCharts!$A121+$A$11,IF($C$7,8,0),1,1) -> 1236.2 | F121: =OFFSET(InputPriceData!E$15,CalculationsAndCharts!$A121+$A$11,IF($C$7,8,0),1,1) -> 1230.07 | G121: =OFFSET(InputPriceData!F$15,CalculationsAndCharts!$A121+$A$11,IF($C$7,8,0),1,1) -> 1233.98 | H121: 1220.023962 | I121: 1207.157877 | J121: 12.86608494 | K121: 1190.814017 | L121: 1173.145515 | M121: 17.66850142 | N121: 30.53458636 | O121: 0 | R121: 1.50607927 | S121: 1.096716884 | T121: 2.602796154 | V121: 1220.023962 | W121: 1207.157877 | X121: 1190.814017 | Y121: 1173.145515 | Z121: 12.86608494 | AA121: 17.66850142 | AB121: 30.53458636 | AC121: 1.096716884 | AD121: 1.50607927 | AE121: 2.602796154 | AO121: 31998400
A122: 90 | B122: =OFFSET(InputPriceData!B$15,CalculationsAndCharts!$A122+$A$11,0,1,1) -> 2015-02-23 | C122: =OFFSET(InputPriceData!G$15,CalculationsAndCharts!$A122+$A$11,IF($C$7,8,0),1,1) -> 30936800 | D122: =OFFSET(InputPriceData!C$15,CalculationsAndCharts!$A122+$A$11,IF($C$7,8,0),1,1) -> 1230.22 | E122: =OFFSET(InputPriceData!D$15,CalculationsAndCharts!$A122+$A$11,IF($C$7,8,0),1,1) -> 1231.84 | F122: =OFFSET(InputPriceData!E$15,CalculationsAndCharts!$A122+$A$11,IF($C$7,8,0),1,1) -> 1222.64 | G122: =OFFSET(InputPriceData!F$15,CalculationsAndCharts!$A122+$A$11,IF($C$7,8,0),1,1) -> 1231.83 | H122: 1217.4865 | I122: 1205.012107 | J122: 12.47439328 | K122: 1189.350763 | L122: 1172.202345 | M122: 17.14841805 | N122: 29.62281133 | O122: 0 | R122: 1.462923029 | S122: 1.064184297 | T122: 2.527107326 | V122: 1217.4865 | W122: 1205.012107 | X122: 1189.350763 | Y122: 1172.202345 | Z122: 12.47439328 | AA122: 17.14841805 | AB122: 29.62281133 | AC122: 1.064184297 | AD122: 1.462923029 | AE122: 2.527107326 | AO122: 30936800
A123: 91 | B123: =OFFSET(InputPriceData!B$15,CalculationsAndCharts!$A123+$A$11,0,1,1) -> 2015-02-20 | C123: =OFFSET(InputPriceData!G$15,CalculationsAndCharts!$A123+$A$11,IF($C$7,8,0),1,1) -> 32816000 | D123: =OFFSET(InputPriceData!C$15,CalculationsAndCharts!$A123+$A$11,IF($C$7,8,0),1,1) -> 1228.12 | E123: =OFFSET(InputPriceData!D$15,CalculationsAndCharts!$A123+$A$11,IF($C$7,8,0),1,1) -> 1231.92 | F123: =OFFSET(InputPriceData!E$15,CalculationsAndCharts!$A123+$A$11,IF($C$7,8,0),1,1) -> 1218.29 | G123: =OFFSET(InputPriceData!F$15,CalculationsAndCharts!$A123+$A$11,IF($C$7,8,0),1,1) -> 1231.79 | H123: 1214.878591 | I123: 1202.866675 | J123: 12.01191567 | K123: 1187.910789 | L123: 1171.277885 | M123: 16.63290368 | N123: 28.64481935 | O123: 0 | R123: 1.420064691 | S123: 1.025539355 | T123: 2.445604046 | V123: 1214.878591 | W123: 1202.866675 | X123: 1187.910789 | Y123: 1171.277885 | Z123: 12.01191567 | AA123: 16.63290368 | AB123: 28.64481935 | AC123: 1.025539355 | AD123: 1.420064691 | AE123: 2.445604046 | AO123: 32816000
A124: 92 | B124: =OFFSET(InputPriceData!B$15,CalculationsAndCharts!$A124+$A$11,0,1,1) -> 2015-02-19 | C124: =OFFSET(InputPriceData!G$15,CalculationsAndCharts!$A124+$A$11,IF($C$7,8,0),1,1) -> 32471000 | D124: =OFFSET(InputPriceData!C$15,CalculationsAndCharts!$A124+$A$11,IF($C$7,8,0),1,1) -> 1225.09 | E124: =OFFSET(InputPriceData!D$15,CalculationsAndCharts!$A124+$A$11,IF($C$7,8,0),1,1) -> 1230.5 | F124: =OFFSET(InputPriceData!E$15,CalculationsAndCharts!$A124+$A$11,IF($C$7,8,0),1,1) -> 1222.85 | G124: =OFFSET(InputPriceData!F$15,CalculationsAndCharts!$A124+$A$11,IF($C$7,8,0),1,1) -> 1227.91 | H124: 1211.803789 | I124: 1200.552809 | J124: 11.25098001 | K124: 1186.423358 | L124: 1170.339713 | M124: 16.08364512 | N124: 27.33462513 | O124: 0 | R124: 1.374271499 | S124: 0.9613430945 | T124: 2.335614594 | V124: 1211.803789 | W124: 1200.552809 | X124: 1186.423358 | Y124: 1170.339713 | Z124: 11.25098001 | AA124: 16.08364512 | AB124: 27.33462513 | AC124: 0.9613430945 | AD124: 1.374271499 | AE124: 2.335614594 | AO124: 32471000
A125: 93 | B125: =OFFSET(InputPriceData!B$15,CalculationsAndCharts!$A125+$A$11,0,1,1) -> 2015-02-18 | C125: =OFFSET(InputPriceData!G$15,CalculationsAndCharts!$A125+$A$11,IF($C$7,8,0),1,1) -> 33700200 | D125: =OFFSET(InputPriceData!C$15,CalculationsAndCharts!$A125+$A$11,IF($C$7,8,0),1,1) -> 1222.56 | E125: =OFFSET(InputPriceData!D$15,CalculationsAndCharts!$A125+$A$11,IF($C$7,8,0),1,1) -> 1227.98 | F125: =OFFSET(InputPriceData!E$15,CalculationsAndCharts!$A125+$A$11,IF($C$7,8,0),1,1) -> 1219.84 | G125: =OFFSET(InputPriceData!F$15,CalculationsAndCharts!$A125+$A$11,IF($C$7,8,0),1,1) -> 1227.95 | H125: 1208.875388 | I125: 1198.364234 | J125: 10.51115334 | K125: 1185.017031 | L125: 1169.44715 | M125: 15.56988086 | N125: 26.0810342 | O125: 0 | R125: 1.331388157 | S125: 0.8988138826 | T125: 2.23020204 | V125: 1208.875388 | W125: 1198.364234 | X125: 1185.017031 | Y125: 1169.44715 | Z125: 10.51115334 | AA125: 15.56988086 | AB125: 26.0810342 | AC125: 0.8988138826 | AD125: 1.331388157 | AE125: 2.23020204 | AO125: 33700200
A126: 94 | B126: =OFFSET(InputPriceData!B$15,CalculationsAndCharts!$A126+$A$11,0,1,1) -> 2015-02-17 | C126: =OFFSET(InputPriceData!G$15,CalculationsAndCharts!$A126+$A$11,IF($C$7,8,0),1,1) -> 33617500 | D126: =OFFSET(InputPriceData!C$15,CalculationsAndCharts!$A126+$A$11,IF($C$7,8,0),1,1) -> 1223.1 | E126: =OFFSET(InputPriceData!D$15,CalculationsAndCharts!$A126+$A$11,IF($C$7,8,0),1,1) -> 1227.18 | F126: =OFFSET(InputPriceData!E$15,CalculationsAndCharts!$A126+$A$11,IF($C$7,8,0),1,1) -> 1221.04 | G126: =OFFSET(InputPriceData!F$15,CalculationsAndCharts!$A126+$A$11,IF($C$7,8,0),1,1) -> 1225.01 | H126: 1205.407276 | I126: 1195.997373 | J126: 9.409903241 | K126: 1183.561676 | L126: 1168.540129 | M126: 15.02154691 | N126: 24.43145015 | O126: 0 | R126: 1.285496881 | S126: 0.8052700121 | T126: 2.090766893 | V126: 1205.407276 | W126: 1195.997373 | X126: 1183.561676 | Y126: 1168.540129 | Z126: 9.409903241 | AA126: 15.02154691 | AB126: 24.43145015 | AC126: 0.8052700121 | AD126: 1.285496881 | AE126: 2.090766893 | AO126: 33617500
A127: 95 | B127: =OFFSET(InputPriceData!B$15,CalculationsAndCharts!$A127+$A$11,0,1,1) -> 2015-02-13 | C127: =OFFSET(InputPriceData!G$15,CalculationsAndCharts!$A127+$A$11,IF($C$7,8,0),1,1) -> 35274500 | D127: =OFFSET(InputPriceData!C$15,CalculationsAndCharts!$A127+$A$11,IF($C$7,8,0),1,1) -> 1218.05 | E127: =OFFSET(InputPriceData!D$15,CalculationsAndCharts!$A127+$A$11,IF($C$7,8,0),1,1) -> 1223.74 | F127: =OFFSET(InputPriceData!E$15,CalculationsAndCharts!$A127+$A$11,IF($C$7,8,0),1,1) -> 1214.93 | G127: =OFFSET(InputPriceData!F$15,CalculationsAndCharts!$A127+$A$11,IF($C$7,8,0),1,1) -> 1223.13 | H127: 1201.843145 | I127: 1193.676363 | J127: 8.166781798 | K127: 1182.156648 | L127: 1167.664627 | M127: 14.49202086 | N127: 22.65880266 | O127: 0 | R127: 1.241111576 | S127: 0.6994115953 | T127: 1.940523171 | V127: 1201.843145 | W127: 1193.676363 | X127: 1182.156648 | Y127: 1167.664627 | Z127: 8.166781798 | AA127: 14.49202086 | AB127: 22.65880266 | AC127: 0.6994115953 | AD127: 1.241111576 | AE127: 1.940523171 | AO127: 35274500
A128: 96 | B128: =OFFSET(InputPriceData!B$15,CalculationsAndCharts!$A128+$A$11,0,1,1) -> 2015-02-12 | C128: =OFFSET(InputPriceData!G$15,CalculationsAndCharts!$A128+$A$11,IF($C$7,8,0),1,1) -> 37883500 | D128: =OFFSET(InputPriceData!C$15,CalculationsAndCharts!$A128+$A$11,IF($C$7,8,0),1,1) -> 1207.6 | E128: =OFFSET(InputPriceData!D$15,CalculationsAndCharts!$A128+$A$11,IF($C$7,8,0),1,1) -> 1216.27 | F128: =OFFSET(InputPriceData!E$15,CalculationsAndCharts!$A128+$A$11,IF($C$7,8,0),1,1) -> 1206.75 | G128: =OFFSET(InputPriceData!F$15,CalculationsAndCharts!$A128+$A$11,IF($C$7,8,0),1,1) -> 1216.27 | H128: 1197.972807 | I128: 1191.320072 | J128: 6.652735422 | K128: 1180.767721 | L128: 1166.804699 | M128: 13.96302194 | N128: 20.61575736 | O128: 0 | R128: 1.196688867 | S128: 0.5701670062 | T128: 1.766855874 | V128: 1197.972807 | W128: 1191.320072 | X128: 1180.767721 | Y128: 1166.804699 | Z128: 6.652735422 | AA128: 13.96302194 | AB128: 20.61575736 | AC128: 0.5701670062 | AD128: 1.196688867 | AE128: 1.766855874 | AO128: 37883500
A129: 97 | B129: =OFFSET(InputPriceData!B$15,CalculationsAndCharts!$A129+$A$11,0,1,1) -> 2015-02-11 | C129: =OFFSET(InputPriceData!G$15,CalculationsAndCharts!$A129+$A$11,IF($C$7,8,0),1,1) -> 35968600 | D129: =OFFSET(InputPriceData!C$15,CalculationsAndCharts!$A129+$A$11,IF($C$7,8,0),1,1) -> 1201.25 | E129: =OFFSET(InputPriceData!D$15,CalculationsAndCharts!$A129+$A$11,IF($C$7,8,0),1,1) -> 1204.44 | F129: =OFFSET(InputPriceData!E$15,CalculationsAndCharts!$A129+$A$11,IF($C$7,8,0),1,1) -> 1195.28 | G129: =OFFSET(InputPriceData!F$15,CalculationsAndCharts!$A129+$A$11,IF($C$7,8,0),1,1) -> 1201.55 | H129: 1194.646045 | I129: 1189.324077 | J129: 5.32196735 | K129: 1179.564254 | L129: 1166.037795 | M129: 13.52645875 | N129: 18.8484261 | O129: 0 | R129: 1.160036047 | S129: 0.4564146524 | T129: 1.6164507 | V129: 1194.646045 | W129: 1189.324077 | X129: 1179.564254 | Y129: 1166.037795 | Z129: 5.32196735 | AA129: 13.52645875 | AB129: 18.8484261 | AC129: 0.4564146524 | AD129: 1.160036047 | AE129: 1.6164507 | AO129: 35968600
A130: 98 | B130: =OFFSET(InputPriceData!B$15,CalculationsAndCharts!$A130+$A$11,0,1,1) -> 2015-02-10 | C130: =OFFSET(InputPriceData!G$15,CalculationsAndCharts!$A130+$A$11,IF($C$7,8,0),1,1) -> 36698500 | D130: =OFFSET(InputPriceData!C$15,CalculationsAndCharts!$A130+$A$11,IF($C$7,8,0),1,1) -> 1202.61 | E130: =OFFSET(InputPriceData!D$15,CalculationsAndCharts!$A130+$A$11,IF($C$7,8,0),1,1) -> 1205.12 | F130: =OFFSET(InputPriceData!E$15,CalculationsAndCharts!$A130+$A$11,IF($C$7,8,0),1,1) -> 1190.27 | G130: =OFFSET(InputPriceData!F$15,CalculationsAndCharts!$A130+$A$11,IF($C$7,8,0),1,1) -> 1203.18 | H130: 1193.39078 | I130: 1188.346004 | J130: 5.044776577 | K130: 1178.818975 | L130: 1165.487219 | M130: 13.33175604 | N130: 18.37653262 | O130: 0 | R130: 1.143878357 | S130: 0.43284701 | T130: 1.576725367 | V130: 1193.39078 | W130: 1188.346004 | X130: 1178.818975 | Y130: 1165.487219 | Z130: 5.044776577 | AA130: 13.33175604 | AB130: 18.37653262 | AC130: 0.43284701 | AD130: 1.143878357 | AE130: 1.576725367 | AO130: 36698500
A131: 99 | B131: =OFFSET(InputPriceData!B$15,CalculationsAndCharts!$A131+$A$11,0,1,1) -> 2015-02-09 | C131: =OFFSET(InputPriceData!G$15,CalculationsAndCharts!$A131+$A$11,IF($C$7,8,0),1,1) -> 35495400 | D131: =OFFSET(InputPriceData!C$15,CalculationsAndCharts!$A131+$A$11,IF($C$7,8,0),1,1) -> 1202.26 | E131: =OFFSET(InputPriceData!D$15,CalculationsAndCharts!$A131+$A$11,IF($C$7,8,0),1,1) -> 1208.28 | F131: =OFFSET(InputPriceData!E$15,CalculationsAndCharts!$A131+$A$11,IF($C$7,8,0),1,1) -> 1195.38 | G131: =OFFSET(InputPriceData!F$15,CalculationsAndCharts!$A131+$A$11,IF($C$7,8,0),1,1) -> 1195.83 | H131: 1191.610922 | I131: 1187.159284 | J131: 4.45163815 | K131: 1177.993177 | L131: 1164.902834 | M131: 13.09034278 | N131: 17.54198093 | O131: 0 | R131: 1.123728297 | S131: 0.3821467352 | T131: 1.505875032 | V131: 1191.610922 | W131: 1187.159284 | X131: 1177.993177 | Y131: 1164.902834 | Z131: 4.45163815 | AA131: 13.09034278 | AB131: 17.54198093 | AC131: 0.3821467352 | AD131: 1.123728297 | AE131: 1.505875032 | AP131: 35495400
A132: 100 | B132: =OFFSET(InputPriceData!B$15,CalculationsAndCharts!$A132+$A$11,0,1,1) -> 2015-02-06 | C132: =OFFSET(InputPriceData!G$15,CalculationsAndCharts!$A132+$A$11,IF($C$7,8,0),1,1) -> 42329700 | D132: =OFFSET(InputPriceData!C$15,CalculationsAndCharts!$A132+$A$11,IF($C$7,8,0),1,1) -> 1209.74 | E132: =OFFSET(InputPriceData!D$15,CalculationsAndCharts!$A132+$A$11,IF($C$7,8,0),1,1) -> 1214.71 | F132: =OFFSET(InputPriceData!E$15,CalculationsAndCharts!$A132+$A$11,IF($C$7,8,0),1,1) -> 1202.16 | G132: =OFFSET(InputPriceData!F$15,CalculationsAndCharts!$A132+$A$11,IF($C$7,8,0),1,1) -> 1205.46 | H132: 1190.843817 | I132: 1186.465627 | J132: 4.378190365 | K132: 1177.388539 | L132: 1164.423343 | M132: 12.96519566 | N132: 17.34338602 | O132: 0 | R132: 1.113443468 | S132: 0.3759964441 | T132: 1.489439912 | V132: 1190.843817 | W132: 1186.465627 | X132: 1177.388539 | Y132: 1164.423343 | Z132: 4.378190365 | AA132: 12.96519566 | AB132: 17.34338602 | AC132: 0.3759964441 | AD132: 1.113443468 | AE132: 1.489439912 | AP132: 42329700
A133: 101 | B133: =OFFSET(InputPriceData!B$15,CalculationsAndCharts!$A133+$A$11,0,1,1) -> 2015-02-05 | C133: =OFFSET(InputPriceData!G$15,CalculationsAndCharts!$A133+$A$11,IF($C$7,8,0),1,1) -> 38219900 | D133: =OFFSET(InputPriceData!C$15,CalculationsAndCharts!$A133+$A$11,IF($C$7,8,0),1,1) -> 1195.5 | E133: =OFFSET(InputPriceData!D$15,CalculationsAndCharts!$A133+$A$11,IF($C$7,8,0),1,1) -> 1209.9 | F133: =OFFSET(InputPriceData!E$15,CalculationsAndCharts!$A133+$A$11,IF($C$7,8,0),1,1) -> 1195.41 | G133: =OFFSET(InputPriceData!F$15,CalculationsAndCharts!$A133+$A$11,IF($C$7,8,0),1,1) -> 1208.71 | H133: 1188.186329 | I133: 1184.946077 | J133: 3.240252424 | K133: 1176.436964 | L133: 1163.787116 | M133: 12.64984794 | N133: 15.89010037 | O133: 0 | R133: 1.086955489 | S133: 0.2784231221 | T133: 1.365378611 | V133: 1188.186329 | W133: 1184.946077 | X133: 1176.436964 | Y133: 1163.787116 | Z133: 3.240252424 | AA133: 12.64984794 | AB133: 15.89010037 | AC133: 0.2784231221 | AD133: 1.086955489 | AE133: 1.365378611 | AO133: 38219900
A134: 102 | B134: =OFFSET(InputPriceData!B$15,CalculationsAndCharts!$A134+$A$11,0,1,1) -> 2015-02-04 | C134: =OFFSET(InputPriceData!G$15,CalculationsAndCharts!$A134+$A$11,IF($C$7,8,0),1,1) -> 41419200 | D134: =OFFSET(InputPriceData!C$15,CalculationsAndCharts!$A134+$A$11,IF($C$7,8,0),1,1) -> 1191.56 | E134: =OFFSET(InputPriceData!D$15,CalculationsAndCharts!$A134+$A$11,IF($C$7,8,0),1,1) -> 1198.95 | F134: =OFFSET(InputPriceData!E$15,CalculationsAndCharts!$A134+$A$11,IF($C$7,8,0),1,1) -> 1189.34 | G134: =OFFSET(InputPriceData!F$15,CalculationsAndCharts!$A134+$A$11,IF($C$7,8,0),1,1) -> 1191.44 | H134: 1184.454753 | I134: 1183.044963 | J134: 1.40978978 | K134: 1175.342963 | L134: 1163.090637 | M134: 12.25232554 | N134: 13.66211532 | O134: 0 | R134: 1.053428267 | S134: 0.121210655 | T134: 1.174638922 | V134: 1184.454753 | W134: 1183.044963 | X134: 1175.342963 | Y134: 1163.090637 | Z134: 1.40978978 | AA134: 12.25232554 | AB134: 13.66211532 | AC134: 0.121210655 | AD134: 1.053428267 | AE134: 1.174638922 | AP134: 41419200
A135: 103 | B135: =OFFSET(InputPriceData!B$15,CalculationsAndCharts!$A135+$A$11,0,1,1) -> 2015-02-03 | C135: =OFFSET(InputPriceData!G$15,CalculationsAndCharts!$A135+$A$11,IF($C$7,8,0),1,1) -> 46159000 | D135: =OFFSET(InputPriceData!C$15,CalculationsAndCharts!$A135+$A$11,IF($C$7,8,0),1,1) -> 1180.08 | E135: =OFFSET(InputPriceData!D$15,CalculationsAndCharts!$A135+$A$11,IF($C$7,8,0),1,1) -> 1197.39 | F135: =OFFSET(InputPriceData!E$15,CalculationsAndCharts!$A135+$A$11,IF($C$7,8,0),1,1) -> 1180.06 | G135: =OFFSET(InputPriceData!F$15,CalculationsAndCharts!$A135+$A$11,IF($C$7,8,0),1,1) -> 1196.99 | H135: 1183.184708 | I135: 1182.37336 | J135: 0.81134779 | K135: 1174.797301 | L135: 1162.651112 | M135: 12.14618827 | N135: 12.95753606 | O135: 0 | R135: 1.0446976 | S135: 0.06978428708 | T135: 1.114481887 | V135: 1183.184708 | W135: 1182.37336 | X135: 1174.797301 | Y135: 1162.651112 | Z135: 0.81134779 | AA135: 12.14618827 | AB135: 12.95753606 | AC135: 0.06978428708 | AD135: 1.0446976 | AE135: 1.114481887 | AO135: 46159000
A136: 104 | B136: =OFFSET(InputPriceData!B$15,CalculationsAndCharts!$A136+$A$11,0,1,1) -> 2015-02-02 | C136: =OFFSET(InputPriceData!G$15,CalculationsAndCharts!$A136+$A$11,IF($C$7,8,0),1,1) -> 40083300 | D136: =OFFSET(InputPriceData!C$15,CalculationsAndCharts!$A136+$A$11,IF($C$7,8,0),1,1) -> 1168.58 | E136: =OFFSET(InputPriceData!D$15,CalculationsAndCharts!$A136+$A$11,IF($C$7,8,0),1,1) -> 1175.56 | F136: =OFFSET(InputPriceData!E$15,CalculationsAndCharts!$A136+$A$11,IF($C$7,8,0),1,1) -> 1153.79 | G136: =OFFSET(InputPriceData!F$15,CalculationsAndCharts!$A136+$A$11,IF($C$7,8,0),1,1) -> 1175.51 | H136: 1180.674655 | I136: 1181.204029 | J136: -0.5293741355 | K136: 1174.045006 | L136: 1162.118726 | M136: 11.92627923 | N136: 11.3969051 | O136: 0 | R136: 1.026253081 | S136: -0.04555250023 | T136: 0.9807005805 | V136: 1180.674655 | W136: 1181.204029 | X136: 1174.045006 | Y136: 1162.118726 | Z136: -0.5293741355 | AA136: 11.92627923 | AB136: 11.3969051 | AC136: -0.04555250023 | AD136: 1.026253081 | AE136: 0.9807005805 | AO136: 40083300
A137: 105 | B137: =OFFSET(InputPriceData!B$15,CalculationsAndCharts!$A137+$A$11,0,1,1) -> 2015-01-30 | C137: =OFFSET(InputPriceData!G$15,CalculationsAndCharts!$A137+$A$11,IF($C$7,8,0),1,1) -> 45386500 | D137: =OFFSET(InputPriceData!C$15,CalculationsAndCharts!$A137+$A$11,IF($C$7,8,0),1,1) -> 1183.34 | E137: =OFFSET(InputPriceData!D$15,CalculationsAndCharts!$A137+$A$11,IF($C$7,8,0),1,1) -> 1186.04 | F137: =OFFSET(InputPriceData!E$15,CalculationsAndCharts!$A137+$A$11,IF($C$7,8,0),1,1) -> 1164.9 | G137: =OFFSET(InputPriceData!F$15,CalculationsAndCharts!$A137+$A$11,IF($C$7,8,0),1,1) -> 1165.39 | H137: 1181.613683 | I137: 1181.659551 | J137: -0.04586831487 | K137: 1173.995345 | L137: 1161.91111 | M137: 12.08423505 | N137: 12.03836674 | O137: 0 | R137: 1.040030941 | S137: -0.00394766127 | T137: 1.03608328 | V137: 1181.613683 | W137: 1181.659551 | X137: 1173.995345 | Y137: 1161.91111 | Z137: -0.04586831487 | AA137: 12.08423505 | AB137: 12.03836674 | AC137: -0.00394766127 | AD137: 1.040030941 | AE137: 1.03608328 | AP137: 45386500
A138: 106 | B138: =OFFSET(InputPriceData!B$15,CalculationsAndCharts!$A138+$A$11,0,1,1) -> 2015-01-29 | C138: =OFFSET(InputPriceData!G$15,CalculationsAndCharts!$A138+$A$11,IF($C$7,8,0),1,1) -> 41271400 | D138: =OFFSET(InputPriceData!C$15,CalculationsAndCharts!$A138+$A$11,IF($C$7,8,0),1,1) -> 1177.15 | E138: =OFFSET(InputPriceData!D$15,CalculationsAndCharts!$A138+$A$11,IF($C$7,8,0),1,1) -> 1190.19 | F138: =OFFSET(InputPriceData!E$15,CalculationsAndCharts!$A138+$A$11,IF($C$7,8,0),1,1) -> 1170.14 | G138: =OFFSET(InputPriceData!F$15,CalculationsAndCharts!$A138+$A$11,IF($C$7,8,0),1,1) -> 1190.18 | H138: 1184.563443 | I138: 1182.961115 | J138: 1.602328108 | K138: 1174.287051 | L138: 1161.857174 | M138: 12.42987794 | N138: 14.03220605 | O138: 0 | R138: 1.069828394 | S138: 0.1379109364 | T138: 1.20773933 | V138: 1184.563443 | W138: 1182.961115 | X138: 1174.287051 | Y138: 1161.857174 | Z138: 1.602328108 | AA138: 12.42987794 | AB138: 14.03220605 | AC138: 0.1379109364 | AD138: 1.069828394 | AE138: 1.20773933 | AO138: 41271400
A139: 107 | B139: =OFFSET(InputPriceData!B$15,CalculationsAndCharts!$A139+$A$11,0,1,1) -> 2015-01-28 | C139: =OFFSET(InputPriceData!G$15,CalculationsAndCharts!$A139+$A$11,IF($C$7,8,0),1,1) -> 40675300 | D139: =OFFSET(InputPriceData!C$15,CalculationsAndCharts!$A139+$A$11,IF($C$7,8,0),1,1) -> 1200.68 | E139: =OFFSET(InputPriceData!D$15,CalculationsAndCharts!$A139+$A$11,IF($C$7,8,0),1,1) -> 1201.24 | F139: =OFFSET(InputPriceData!E$15,CalculationsAndCharts!$A139+$A$11,IF($C$7,8,0),1,1) -> 1172.73 | G139: =OFFSET(InputPriceData!F$15,CalculationsAndCharts!$A139+$A$11,IF($C$7,8,0),1,1) -> 1175.12 | H139: 1183.542251 | I139: 1182.383604 | J139: 1.15864677 | K139: 1173.748307 | L139: 1161.41806 | M139: 12.33024751 | N139: 13.48889428 | O139: 0 | R139: 1.061654536 | S139: 0.09976138739 | T139: 1.161415923 | V139: 1183.542251 | W139: 1182.383604 | X139: 1173.748307 | Y139: 1161.41806 | Z139: 1.15864677 | AA139: 12.33024751 | AB139: 13.48889428 | AC139: 0.09976138739 | AD139: 1.061654536 | AE139: 1.161415923 | AP139: 40675300
A140: 108 | B140: =OFFSET(InputPriceData!B$15,CalculationsAndCharts!$A140+$A$11,0,1,1) -> 2015-01-27 | C140: =OFFSET(InputPriceData!G$15,CalculationsAndCharts!$A140+$A$11,IF($C$7,8,0),1,1) -> 33298100 | D140: =OFFSET(InputPriceData!C$15,CalculationsAndCharts!$A140+$A$11,IF($C$7,8,0),1,1) -> 1190.34 | E140: =OFFSET(InputPriceData!D$15,CalculationsAndCharts!$A140+$A$11,IF($C$7,8,0),1,1) -> 1199.77 | F140: =OFFSET(InputPriceData!E$15,CalculationsAndCharts!$A140+$A$11,IF($C$7,8,0),1,1) -> 1186.16 | G140: =OFFSET(InputPriceData!F$15,CalculationsAndCharts!$A140+$A$11,IF($C$7,8,0),1,1) -> 1194.66 | H140: 1185.07357 | I140: 1182.964693 | J140: 2.108876818 | K140: 1173.701809 | L140: 1161.205627 | M140: 12.49618264 | N140: 14.60505945 | O140: 0 | R140: 1.076138657 | S140: 0.1816109713 | T140: 1.257749628 | V140: 1185.07357 | W140: 1182.964693 | X140: 1173.701809 | Y140: 1161.205627 | Z140: 2.108876818 | AA140: 12.49618264 | AB140: 14.60505945 | AC140: 0.1816109713 | AD140: 1.076138657 | AE140: 1.257749628 | AO140: 33298100
A141: 109 | B141: =OFFSET(InputPriceData!B$15,CalculationsAndCharts!$A141+$A$11,0,1,1) -> 2015-01-26 | C141: =OFFSET(InputPriceData!G$15,CalculationsAndCharts!$A141+$A$11,IF($C$7,8,0),1,1) -> 34657600 | D141: =OFFSET(InputPriceData!C$15,CalculationsAndCharts!$A141+$A$11,IF($C$7,8,0),1,1) -> 1188.93 | E141: =OFFSET(InputPriceData!D$15,CalculationsAndCharts!$A141+$A$11,IF($C$7,8,0),1,1) -> 1200.74 | F141: =OFFSET(InputPriceData!E$15,CalculationsAndCharts!$A141+$A$11,IF($C$7,8,0),1,1) -> 1181.77 | G141: =OFFSET(InputPriceData!F$15,CalculationsAndCharts!$A141+$A$11,IF($C$7,8,0),1,1) -> 1200.74 | H141: 1183.330582 | I141: 1182.029068 | J141: 1.301514053 | K141: 1172.991362 | L141: 1160.686954 | M141: 12.30440795 | N141: 13.605922 | O141: 0 | R141: 1.060097032 | S141: 0.1121330819 | T141: 1.172230114 | V141: 1183.330582 | W141: 1182.029068 | X141: 1172.991362 | Y141: 1160.686954 | Z141: 1.301514053 | AA141: 12.30440795 | AB141: 13.605922 | AC141: 0.1121330819 | AD141: 1.060097032 | AE141: 1.172230114 | AO141: 34657600
A142: 110 | B142: =OFFSET(InputPriceData!B$15,CalculationsAndCharts!$A142+$A$11,0,1,1) -> 2015-01-23 | C142: =OFFSET(InputPriceData!G$15,CalculationsAndCharts!$A142+$A$11,IF($C$7,8,0),1,1) -> 35735600 | D142: =OFFSET(InputPriceData!C$15,CalculationsAndCharts!$A142+$A$11,IF($C$7,8,0),1,1) -> 1190.26 | E142: =OFFSET(InputPriceData!D$15,CalculationsAndCharts!$A142+$A$11,IF($C$7,8,0),1,1) -> 1194.15 | F142: =OFFSET(InputPriceData!E$15,CalculationsAndCharts!$A142+$A$11,IF($C$7,8,0),1,1) -> 1185.5 | G142: =OFFSET(InputPriceData!F$15,CalculationsAndCharts!$A142+$A$11,IF($C$7,8,0),1,1) -> 1188.93 | H142: 1180.165234 | I142: 1180.532194 | J142: -0.3669600803 | K142: 1172.05073 | L142: 1160.065977 | M142: 11.98475362 | N142: 11.61779354 | O142: 0 | R142: 1.033109655 | S142: -0.03163269052 | T142: 1.001476965 | V142: 1180.165234 | W142: 1180.532194 | X142: 1172.05073 | Y142: 1160.065977 | Z142: -0.3669600803 | AA142: 11.98475362 | AB142: 11.61779354 | AC142: -0.03163269052 | AD142: 1.033109655 | AE142: 1.001476965 | AP142: 35735600
A143: 111 | B143: =OFFSET(InputPriceData!B$15,CalculationsAndCharts!$A143+$A$11,0,1,1) -> 2015-01-22 | C143: =OFFSET(InputPriceData!G$15,CalculationsAndCharts!$A143+$A$11,IF($C$7,8,0),1,1) -> 41760500 | D143: =OFFSET(InputPriceData!C$15,CalculationsAndCharts!$A143+$A$11,IF($C$7,8,0),1,1) -> 1172.5 | E143: =OFFSET(InputPriceData!D$15,CalculationsAndCharts!$A143+$A$11,IF($C$7,8,0),1,1) -> 1190.37 | F143: =OFFSET(InputPriceData!E$15,CalculationsAndCharts!$A143+$A$11,IF($C$7,8,0),1,1) -> 1161.3 | G143: =OFFSET(InputPriceData!F$15,CalculationsAndCharts!$A143+$A$11,IF($C$7,8,0),1,1) -> 1190.37 | H143: 1178.57164 | I143: 1179.860369 | J143: -1.288729464 | K143: 1171.478552 | L143: 1159.618473 | M143: 11.86007922 | N143: 10.57134976 | O143: 0 | R143: 1.02275701 | S143: -0.1111339199 | T143: 0.9116230905 | V143: 1178.57164 | W143: 1179.860369 | X143: 1171.478552 | Y143: 1159.618473 | Z143: -1.288729464 | AA143: 11.86007922 | AB143: 10.57134976 | AC143: -0.1111339199 | AD143: 1.02275701 | AE143: 0.9116230905 | AO143: 41760500
A144: 112 | B144: =OFFSET(InputPriceData!B$15,CalculationsAndCharts!$A144+$A$11,0,1,1) -> 2015-01-21 | C144: =OFFSET(InputPriceData!G$15,CalculationsAndCharts!$A144+$A$11,IF($C$7,8,0),1,1) -> 37300700 | D144: =OFFSET(InputPriceData!C$15,CalculationsAndCharts!$A144+$A$11,IF($C$7,8,0),1,1) -> 1167.52 | E144: =OFFSET(InputPriceData!D$15,CalculationsAndCharts!$A144+$A$11,IF($C$7,8,0),1,1) -> 1174.95 | F144: =OFFSET(InputPriceData!E$15,CalculationsAndCharts!$A144+$A$11,IF($C$7,8,0),1,1) -> 1162.31 | G144: =OFFSET(InputPriceData!F$15,CalculationsAndCharts!$A144+$A$11,IF($C$7,8,0),1,1) -> 1166.25 | H144: 1176.426483 | I144: 1179.019599 | J144: -2.593115413 | K144: 1170.838164 | L144: 1159.141705 | M144: 11.69645902 | N144: 9.103343603 | O144: 0 | R144: 1.009062047 | S144: -0.2237099573 | T144: 0.7853520899 | V144: 1176.426483 | W144: 1179.019599 | X144: 1170.838164 | Y144: 1159.141705 | Z144: -2.593115413 | AA144: 11.69645902 | AB144: 9.103343603 | AC144: -0.2237099573 | AD144: 1.009062047 | AE144: 0.7853520899 | AP144: 37300700
A145: 113 | B145: =OFFSET(InputPriceData!B$15,CalculationsAndCharts!$A145+$A$11,0,1,1) -> 2015-01-20 | C145: =OFFSET(InputPriceData!G$15,CalculationsAndCharts!$A145+$A$11,IF($C$7,8,0),1,1) -> 39443400 | D145: =OFFSET(InputPriceData!C$15,CalculationsAndCharts!$A145+$A$11,IF($C$7,8,0),1,1) -> 1179.08 | E145: =OFFSET(InputPriceData!D$15,CalculationsAndCharts!$A145+$A$11,IF($C$7,8,0),1,1) -> 1179.14 | F145: =OFFSET(InputPriceData!E$15,CalculationsAndCharts!$A145+$A$11,IF($C$7,8,0),1,1) -> 1161.33 | G145: =OFFSET(InputPriceData!F$15,CalculationsAndCharts!$A145+$A$11,IF($C$7,8,0),1,1) -> 1170.25 | H145: 1178.276753 | I145: 1180.041167 | J145: -1.764413617 | K145: 1170.993695 | L145: 1159.031499 | M145: 11.96219612 | N145: 10.1977825 | O145: 0 | R145: 1.032085507 | S145: -0.1522317227 | T145: 0.8798537843 | V145: 1178.276753 | W145: 1180.041167 | X145: 1170.993695 | Y145: 1159.031499 | Z145: -1.764413617 | AA145: 11.96219612 | AB145: 10.1977825 | AC145: -0.1522317227 | AD145: 1.032085507 | AE145: 0.8798537843 | AP145: 39443400
A146: 114 | B146: =OFFSET(InputPriceData!B$15,CalculationsAndCharts!$A146+$A$11,0,1,1) -> 2015-01-16 | C146: =OFFSET(InputPriceData!G$15,CalculationsAndCharts!$A146+$A$11,IF($C$7,8,0),1,1) -> 40564100 | D146: =OFFSET(InputPriceData!C$15,CalculationsAndCharts!$A146+$A$11,IF($C$7,8,0),1,1) -> 1151.34 | E146: =OFFSET(InputPriceData!D$15,CalculationsAndCharts!$A146+$A$11,IF($C$7,8,0),1,1) -> 1177.19 | F146: =OFFSET(InputPriceData!E$15,CalculationsAndCharts!$A146+$A$11,IF($C$7,8,0),1,1) -> 1151.3 | G146: =OFFSET(InputPriceData!F$15,CalculationsAndCharts!$A146+$A$11,IF($C$7,8,0),1,1) -> 1176.65 | H146: 1179.736163 | I146: 1180.82446 | J146: -1.08829731 | K146: 1171.018905 | L146: 1158.857568 | M146: 12.16133636 | N146: 11.07303905 | O146: 0 | R146: 1.049424597 | S146: -0.09391122252 | T146: 0.9555133743 | V146: 1179.736163 | W146: 1180.82446 | X146: 1171.018905 | Y146: 1158.857568 | Z146: -1.08829731 | AA146: 12.16133636 | AB146: 11.07303905 | AC146: -0.09391122252 | AD146: 1.049424597 | AE146: 0.9555133743 | AO146: 40564100
A147: 115 | B147: =OFFSET(InputPriceData!B$15,CalculationsAndCharts!$A147+$A$11,0,1,1) -> 2015-01-15 | C147: =OFFSET(InputPriceData!G$15,CalculationsAndCharts!$A147+$A$11,IF($C$7,8,0),1,1) -> 42767200 | D147: =OFFSET(InputPriceData!C$15,CalculationsAndCharts!$A147+$A$11,IF($C$7,8,0),1,1) -> 1179.72 | E147: =OFFSET(InputPriceData!D$15,CalculationsAndCharts!$A147+$A$11,IF($C$7,8,0),1,1) -> 1180.87 | F147: =OFFSET(InputPriceData!E$15,CalculationsAndCharts!$A147+$A$11,IF($C$7,8,0),1,1) -> 1154.64 | G147: =OFFSET(InputPriceData!F$15,CalculationsAndCharts!$A147+$A$11,IF($C$7,8,0),1,1) -> 1154.71 | H147: 1180.297283 | I147: 1181.158417 | J147: -0.8611336252 | K147: 1170.82802 | L147: 1158.581717 | M147: 12.24630343 | N147: 11.38516981 | O147: 0 | R147: 1.057008173 | S147: -0.07432653327 | T147: 0.9826816394 | V147: 1180.297283 | W147: 1181.158417 | X147: 1170.82802 | Y147: 1158.581717 | Z147: -0.8611336252 | AA147: 12.24630343 | AB147: 11.38516981 | AC147: -0.07432653327 | AD147: 1.057008173 | AE147: 0.9826816394 | AP147: 42767200
A148: 116 | B148: =OFFSET(InputPriceData!B$15,CalculationsAndCharts!$A148+$A$11,0,1,1) -> 2015-01-14 | C148: =OFFSET(InputPriceData!G$15,CalculationsAndCharts!$A148+$A$11,IF($C$7,8,0),1,1) -> 43786800 | D148: =OFFSET(InputPriceData!C$15,CalculationsAndCharts!$A148+$A$11,IF($C$7,8,0),1,1) -> 1169.75 | E148: =OFFSET(InputPriceData!D$15,CalculationsAndCharts!$A148+$A$11,IF($C$7,8,0),1,1) -> 1177.98 | F148: =OFFSET(InputPriceData!E$15,CalculationsAndCharts!$A148+$A$11,IF($C$7,8,0),1,1) -> 1165.06 | G148: =OFFSET(InputPriceData!F$15,CalculationsAndCharts!$A148+$A$11,IF($C$7,8,0),1,1) -> 1177.06 | H148: 1184.949516 | I148: 1183.27429 | J148: 1.67522633 | K148: 1171.374394 | L148: 1158.641743 | M148: 12.73265038 | N148: 14.40787671 | O148: 0 | R148: 1.098929022 | S148: 0.1445853595 | T148: 1.243514382 | V148: 1184.949516 | W148: 1183.27429 | X148: 1171.374394 | Y148: 1158.641743 | Z148: 1.67522633 | AA148: 12.73265038 | AB148: 14.40787671 | AC148: 0.1445853595 | AD148: 1.098929022 | AE148: 1.243514382 | AO148: 43786800
A149: 117 | B149: =OFFSET(InputPriceData!B$15,CalculationsAndCharts!$A149+$A$11,0,1,1) -> 2015-01-13 | C149: =OFFSET(InputPriceData!G$15,CalculationsAndCharts!$A149+$A$11,IF($C$7,8,0),1,1) -> 41073000 | D149: =OFFSET(InputPriceData!C$15,CalculationsAndCharts!$A149+$A$11,IF($C$7,8,0),1,1) -> 1187.52 | E149: =OFFSET(InputPriceData!D$15,CalculationsAndCharts!$A149+$A$11,IF($C$7,8,0),1,1) -> 1200.52 | F149: =OFFSET(InputPriceData!E$15,CalculationsAndCharts!$A149+$A$11,IF($C$7,8,0),1,1) -> 1168.41 | G149: =OFFSET(InputPriceData!F$15,CalculationsAndCharts!$A149+$A$11,IF($C$7,8,0),1,1) -> 1180.64 | H149: 1186.383974 | I149: 1183.771433 | J149: 2.612540654 | K149: 1171.181661 | L149: 1158.356189 | M149: 12.82547233 | N149: 15.43801299 | O149: 0 | R149: 1.107213174 | S149: 0.2255386279 | T149: 1.332751802 | V149: 1186.383974 | W149: 1183.771433 | X149: 1171.181661 | Y149: 1158.356189 | Z149: 2.612540654 | AA149: 12.82547233 | AB149: 15.43801299 | AC149: 0.2255386279 | AD149: 1.107213174 | AE149: 1.332751802 | AP149: 41073000
A150: 118 | B150: =OFFSET(InputPriceData!B$15,CalculationsAndCharts!$A150+$A$11,0,1,1) -> 2015-01-12 | C150: =OFFSET(InputPriceData!G$15,CalculationsAndCharts!$A150+$A$11,IF($C$7,8,0),1,1) -> 34564600 | D150: =OFFSET(InputPriceData!C$15,CalculationsAndCharts!$A150+$A$11,IF($C$7,8,0),1,1) -> 1186.94 | E150: =OFFSET(InputPriceData!D$15,CalculationsAndCharts!$A150+$A$11,IF($C$7,8,0),1,1) -> 1187.63 | F150: =OFFSET(InputPriceData!E$15,CalculationsAndCharts!$A150+$A$11,IF($C$7,8,0),1,1) -> 1173.22 | G150: =OFFSET(InputPriceData!F$15,CalculationsAndCharts!$A150+$A$11,IF($C$7,8,0),1,1) -> 1180.09 | H150: 1187.428333 | I150: 1184.021948 | J150: 3.406384891 | K150: 1170.86104 | L150: 1158.010704 | M150: 12.85033612 | N150: 16.25672101 | O150: 0 | R150: 1.109690617 | S150: 0.2941583252 | T150: 1.403848942 | V150: 1187.428333 | W150: 1184.021948 | X150: 1170.86104 | Y150: 1158.010704 | Z150: 3.406384891 | AA150: 12.85033612 | AB150: 16.25672101 | AC150: 0.2941583252 | AD150: 1.109690617 | AE150: 1.403848942 | AP150: 34564600
A151: 119 | B151: =OFFSET(InputPriceData!B$15,CalculationsAndCharts!$A151+$A$11,0,1,1) -> 2015-01-09 | C151: =OFFSET(InputPriceData!G$15,CalculationsAndCharts!$A151+$A$11,IF($C$7,8,0),1,1) -> 33641400 | D151: =OFFSET(InputPriceData!C$15,CalculationsAndCharts!$A151+$A$11,IF($C$7,8,0),1,1) -> 1196.01 | E151: =OFFSET(InputPriceData!D$15,CalculationsAndCharts!$A151+$A$11,IF($C$7,8,0),1,1) -> 1196.06 | F151: =OFFSET(InputPriceData!E$15,CalculationsAndCharts!$A151+$A$11,IF($C$7,8,0),1,1) -> 1183.09 | G151: =OFFSET(InputPriceData!F$15,CalculationsAndCharts!$A151+$A$11,IF($C$7,8,0),1,1) -> 1185.68 | H151: 1188.762575 | I151: 1184.336504 | J151: 4.426071391 | K151: 1170.548194 | L151: 1157.668389 | M151: 12.87980468 | N151: 17.30587607 | O151: 0 | R151: 1.112564255 | S151: 0.3823263582 | T151: 1.494890613 | V151: 1188.762575 | W151: 1184.336504 | X151: 1170.548194 | Y151: 1157.668389 | Z151: 4.426071391 | AA151: 12.87980468 | AB151: 17.30587607 | AC151: 0.3823263582 | AD151: 1.112564255 | AE151: 1.494890613 | AP151: 33641400
A152: 120 | B152: =OFFSET(InputPriceData!B$15,CalculationsAndCharts!$A152+$A$11,0,1,1) -> 2015-01-08 | C152: =OFFSET(InputPriceData!G$15,CalculationsAndCharts!$A152+$A$11,IF($C$7,8,0),1,1) -> 39340100 | D152: =OFFSET(InputPriceData!C$15,CalculationsAndCharts!$A152+$A$11,IF($C$7,8,0),1,1) -> 1184.17 | E152: =OFFSET(InputPriceData!D$15,CalculationsAndCharts!$A152+$A$11,IF($C$7,8,0),1,1) -> 1196.13 | F152: =OFFSET(InputPriceData!E$15,CalculationsAndCharts!$A152+$A$11,IF($C$7,8,0),1,1) -> 1184.08 | G152: =OFFSET(InputPriceData!F$15,CalculationsAndCharts!$A152+$A$11,IF($C$7,8,0),1,1) -> 1196.13 | H152: 1189.323043 | I152: 1184.229024 | J152: 5.094019303 | K152: 1170.035251 | L152: 1157.2341 | M152: 12.80115064 | N152: 17.89516994 | O152: 0 | R152: 1.106185052 | S152: 0.4401891805 | T152: 1.546374233 | V152: 1189.323043 | W152: 1184.229024 | X152: 1170.035251 | Y152: 1157.2341 | Z152: 5.094019303 | AA152: 12.80115064 | AB152: 17.89516994 | AC152: 0.4401891805 | AD152: 1.106185052 | AE152: 1.546374233 | AO152: 39340100
A153: 121 | B153: =OFFSET(InputPriceData!B$15,CalculationsAndCharts!$A153+$A$11,0,1,1) -> 2015-01-07 | C153: =OFFSET(InputPriceData!G$15,CalculationsAndCharts!$A153+$A$11,IF($C$7,8,0),1,1) -> 38054800 | D153: =OFFSET(InputPriceData!C$15,CalculationsAndCharts!$A153+$A$11,IF($C$7,8,0),1,1) -> 1169.3 | E153: =OFFSET(InputPriceData!D$15,CalculationsAndCharts!$A153+$A$11,IF($C$7,8,0),1,1) -> 1175.98 | F153: =OFFSET(InputPriceData!E$15,CalculationsAndCharts!$A153+$A$11,IF($C$7,8,0),1,1) -> 1164.95 | G153: =OFFSET(InputPriceData!F$15,CalculationsAndCharts!$A153+$A$11,IF($C$7,8,0),1,1) -> 1175.97 | H153: 1188.085415 | I153: 1183.276946 | J153: 4.808468903 | K153: 1169.150683 | L153: 1156.631063 | M153: 12.51962008 | N153: 17.32808898 | O153: 0 | R153: 1.082421221 | S153: 0.4157305693 | T153: 1.49815179 | V153: 1188.085415 | W153: 1183.276946 | X153: 1169.150683 | Y153: 1156.631063 | Z153: 4.808468903 | AA153: 12.51962008 | AB153: 17.32808898 | AC153: 0.4157305693 | AD153: 1.082421221 | AE153: 1.49815179 | AO153: 38054800
A154: 122 | B154: =OFFSET(InputPriceData!B$15,CalculationsAndCharts!$A154+$A$11,0,1,1) -> 2015-01-06 | C154: =OFFSET(InputPriceData!G$15,CalculationsAndCharts!$A154+$A$11,IF($C$7,8,0),1,1) -> 44601100 | D154: =OFFSET(InputPriceData!C$15,CalculationsAndCharts!$A154+$A$11,IF($C$7,8,0),1,1) -> 1183.47 | E154: =OFFSET(InputPriceData!D$15,CalculationsAndCharts!$A154+$A$11,IF($C$7,8,0),1,1) -> 1183.91 | F154: =OFFSET(InputPriceData!E$15,CalculationsAndCharts!$A154+$A$11,IF($C$7,8,0),1,1) -> 1153.4 | G154: =OFFSET(InputPriceData!F$15,CalculationsAndCharts!$A154+$A$11,IF($C$7,8,0),1,1) -> 1161.31 | H154: 1190.288218 | I154: 1183.861502 | J154: 6.426715936 | K154: 1168.91952 | L154: 1156.331235 | M154: 12.58828527 | N154: 19.01500121 | O154: 0 | R154: 1.08864008 | S154: 0.5557850332 | T154: 1.644425113 | V154: 1190.288218 | W154: 1183.861502 | X154: 1168.91952 | Y154: 1156.331235 | Z154: 6.426715936 | AA154: 12.58828527 | AB154: 19.01500121 | AC154: 0.5557850332 | AD154: 1.08864008 | AE154: 1.644425113 | AP154: 44601100
A155: 123 | B155: =OFFSET(InputPriceData!B$15,CalculationsAndCharts!$A155+$A$11,0,1,1) -> 2015-01-05 | C155: =OFFSET(InputPriceData!G$15,CalculationsAndCharts!$A155+$A$11,IF($C$7,8,0),1,1) -> 37991200 | D155: =OFFSET(InputPriceData!C$15,CalculationsAndCharts!$A155+$A$11,IF($C$7,8,0),1,1) -> 1192.36 | E155: =OFFSET(InputPriceData!D$15,CalculationsAndCharts!$A155+$A$11,IF($C$7,8,0),1,1) -> 1194.22 | F155: =OFFSET(InputPriceData!E$15,CalculationsAndCharts!$A155+$A$11,IF($C$7,8,0),1,1) -> 1177.46 | G155: =OFFSET(InputPriceData!F$15,CalculationsAndCharts!$A155+$A$11,IF($C$7,8,0),1,1) -> 1181.35 | H155: 1195.556984 | I155: 1185.665622 | J155: 9.891362645 | K155: 1169.17747 | L155: 1156.254044 | M155: 12.92342526 | N155: 22.81478791 | O155: 0 | R155: 1.117697735 | S155: 0.8554662093 | T155: 1.973163944 | V155: 1195.556984 | W155: 1185.665622 | X155: 1169.17747 | Y155: 1156.254044 | Z155: 9.891362645 | AA155: 12.92342526 | AB155: 22.81478791 | AC155: 0.8554662093 | AD155: 1.117697735 | AE155: 1.973163944 | AP155: 37991200
A156: 124 | B156: =OFFSET(InputPriceData!B$15,CalculationsAndCharts!$A156+$A$11,0,1,1) -> 2015-01-02 | C156: =OFFSET(InputPriceData!G$15,CalculationsAndCharts!$A156+$A$11,IF($C$7,8,0),1,1) -> 27087000 | D156: =OFFSET(InputPriceData!C$15,CalculationsAndCharts!$A156+$A$11,IF($C$7,8,0),1,1) -> 1209.98 | E156: =OFFSET(InputPriceData!D$15,CalculationsAndCharts!$A156+$A$11,IF($C$7,8,0),1,1) -> 1212.8 | F156: =OFFSET(InputPriceData!E$15,CalculationsAndCharts!$A156+$A$11,IF($C$7,8,0),1,1) -> 1189.16 | G156: =OFFSET(InputPriceData!F$15,CalculationsAndCharts!$A156+$A$11,IF($C$7,8,0),1,1) -> 1198.8 | H156: 1198.140073 | I156: 1186.010872 | J156: 12.12920099 | K156: 1168.764842 | L156: 1155.86496 | M156: 12.8998817 | N156: 25.02908269 | O156: 0 | R156: 1.116037093 | S156: 1.049361423 | T156: 2.165398516 | V156: 1198.140073 | W156: 1186.010872 | X156: 1168.764842 | Y156: 1155.86496 | Z156: 12.12920099 | AA156: 12.8998817 | AB156: 25.02908269 | AC156: 1.049361423 | AD156: 1.116037093 | AE156: 2.165398516 | AP156: 27087000
A157: 125 | B157: =OFFSET(InputPriceData!B$15,CalculationsAndCharts!$A157+$A$11,0,1,1) -> 2014-12-31 | C157: =OFFSET(InputPriceData!G$15,CalculationsAndCharts!$A157+$A$11,IF($C$7,8,0),1,1) -> 26060700 | D157: =OFFSET(InputPriceData!C$15,CalculationsAndCharts!$A157+$A$11,IF($C$7,8,0),1,1) -> 1215.57 | E157: =OFFSET(InputPriceData!D$15,CalculationsAndCharts!$A157+$A$11,IF($C$7,8,0),1,1) -> 1221.44 | F157: =OFFSET(InputPriceData!E$15,CalculationsAndCharts!$A157+$A$11,IF($C$7,8,0),1,1) -> 1204.69 | G157: =OFFSET(InputPriceData!F$15,CalculationsAndCharts!$A157+$A$11,IF($C$7,8,0),1,1) -> 1204.7 | H157: 1198.020086 | I157: 1184.987741 | J157: 13.03234446 | K157: 1167.746701 | L157: 1155.1993 | M157: 12.54740027 | N157: 25.57974473 | O157: 0 | R157: 1.086167579 | S157: 1.128146845 | T157: 2.214314424 | V157: 1198.020086 | W157: 1184.987741 | X157: 1167.746701 | Y157: 1155.1993 | Z157: 13.03234446 | AA157: 12.54740027 | AB157: 25.57974473 | AC157: 1.128146845 | AD157: 1.086167579 | AE157: 2.214314424 | AP157: 26060700
A158: 126 | B158: =OFFSET(InputPriceData!B$15,CalculationsAndCharts!$A158+$A$11,0,1,1) -> 2014-12-30 | C158: =OFFSET(InputPriceData!G$15,CalculationsAndCharts!$A158+$A$11,IF($C$7,8,0),1,1) -> 24402800 | D158: =OFFSET(InputPriceData!C$15,CalculationsAndCharts!$A158+$A$11,IF($C$7,8,0),1,1) -> 1215.93 | E158: =OFFSET(InputPriceData!D$15,CalculationsAndCharts!$A158+$A$11,IF($C$7,8,0),1,1) -> 1219.45 | F158: =OFFSET(InputPriceData!E$15,CalculationsAndCharts!$A158+$A$11,IF($C$7,8,0),1,1) -> 1212.34 | G158: =OFFSET(InputPriceData!F$15,CalculationsAndCharts!$A158+$A$11,IF($C$7,8,0),1,1) -> 1213.05 | H158: 1196.805556 | I158: 1183.410761 | J158: 13.39479529 | K158: 1166.494046 | L158: 1154.431848 | M158: 12.06219876 | N158: 25.45699406 | O158: 0 | R158: 1.044860187 | S158: 1.160293292 | T158: 2.205153479 | V158: 1196.805556 | W158: 1183.410761 | X158: 1166.494046 | Y158: 1154.431848 | Z158: 13.39479529 | AA158: 12.06219876 | AB158: 25.45699406 | AC158: 1.160293292 | AD158: 1.044860187 | AE158: 2.205153479 | AP158: 24402800
A159: 127 | B159: =OFFSET(InputPriceData!B$15,CalculationsAndCharts!$A159+$A$11,0,1,1) -> 2014-12-29 | C159: =OFFSET(InputPriceData!G$15,CalculationsAndCharts!$A159+$A$11,IF($C$7,8,0),1,1) -> 24523600 | D159: =OFFSET(InputPriceData!C$15,CalculationsAndCharts!$A159+$A$11,IF($C$7,8,0),1,1) -> 1214.44 | E159: =OFFSET(InputPriceData!D$15,CalculationsAndCharts!$A159+$A$11,IF($C$7,8,0),1,1) -> 1220.81 | F159: =OFFSET(InputPriceData!E$15,CalculationsAndCharts!$A159+$A$11,IF($C$7,8,0),1,1) -> 1214.44 | G159: =OFFSET(InputPriceData!F$15,CalculationsAndCharts!$A159+$A$11,IF($C$7,8,0),1,1) -> 1219.11 | H159: 1193.852021 | I159: 1181.039621 | J159: 12.81239916 | K159: 1164.915878 | L159: 1153.523039 | M159: 11.39283941 | N159: 24.20523856 | O159: 0 | R159: 0.9876559915 | S159: 1.110718965 | T159: 2.098374956 | V159: 1193.852021 | W159: 1181.039621 | X159: 1164.915878 | Y159: 1153.523039 | Z159: 12.81239916 | AA159: 11.39283941 | AB159: 24.20523856 | AC159: 1.110718965 | AD159: 0.9876559915 | AE159: 2.098374956 | AO159: 24523600
A160: 128 | B160: =OFFSET(InputPriceData!B$15,CalculationsAndCharts!$A160+$A$11,0,1,1) -> 2014-12-26 | C160: =OFFSET(InputPriceData!G$15,CalculationsAndCharts!$A160+$A$11,IF($C$7,8,0),1,1) -> 17352300 | D160: =OFFSET(InputPriceData!C$15,CalculationsAndCharts!$A160+$A$11,IF($C$7,8,0),1,1) -> 1210.88 | E160: =OFFSET(InputPriceData!D$15,CalculationsAndCharts!$A160+$A$11,IF($C$7,8,0),1,1) -> 1217.01 | F160: =OFFSET(InputPriceData!E$15,CalculationsAndCharts!$A160+$A$11,IF($C$7,8,0),1,1) -> 1210.88 | G160: =OFFSET(InputPriceData!F$15,CalculationsAndCharts!$A160+$A$11,IF($C$7,8,0),1,1) -> 1215.21 | H160: 1189.259661 | I160: 1177.993991 | J160: 11.26566955 | K160: 1163.07879 | L160: 1152.506187 | M160: 10.57260265 | N160: 21.8382722 | O160: 0 | R160: 0.9173575614 | S160: 0.9774931953 | T160: 1.894850757 | V160: 1189.259661 | W160: 1177.993991 | X160: 1163.07879 | Y160: 1152.506187 | Z160: 11.26566955 | AA160: 10.57260265 | AB160: 21.8382722 | AC160: 0.9774931953 | AD160: 0.9173575614 | AE160: 1.894850757 | AO160: 17352300
A161: 129 | B161: =OFFSET(InputPriceData!B$15,CalculationsAndCharts!$A161+$A$11,0,1,1) -> 2014-12-24 | C161: =OFFSET(InputPriceData!G$15,CalculationsAndCharts!$A161+$A$11,IF($C$7,8,0),1,1) -> 14169800 | D161: =OFFSET(InputPriceData!C$15,CalculationsAndCharts!$A161+$A$11,IF($C$7,8,0),1,1) -> 1203.78 | E161: =OFFSET(InputPriceData!D$15,CalculationsAndCharts!$A161+$A$11,IF($C$7,8,0),1,1) -> 1208.78 | F161: =OFFSET(InputPriceData!E$15,CalculationsAndCharts!$A161+$A$11,IF($C$7,8,0),1,1) -> 1202.54 | G161: =OFFSET(InputPriceData!F$15,CalculationsAndCharts!$A161+$A$11,IF($C$7,8,0),1,1) -> 1206.78 | H161: 1184.541417 | I161: 1175.01671 | J161: 9.524706758 | K161: 1161.31163 | L161: 1151.534035 | M161: 9.777595118 | N161: 19.30230188 | O161: 0 | R161: =(K161-L161)/L161*100 -> 0.8490930204 | S161: =(H161-I161)/L161*100 -> 0.827132023 | T161: 1.676225043 | V161: 1184.541417 | W161: 1175.01671 | X161: 1161.31163 | Y161: 1151.534035 | Z161: =IF($R$19,J161,NA()) -> 9.524706758 | AA161: =IF($R$20,M161,NA()) -> 9.777595118 | AB161: =IF($R$21,N161,NA()) -> 19.30230188 | AC161: =IF($R$13,S161,NA()) -> 0.827132023 | AD161: =IF($R$14,R161,NA()) -> 0.8490930204 | AE161: =IF($R$15,T161,NA()) -> 1.676225043 | AO161: =IF(G161>=D161,C161,NA()) -> 14169800 | AP161: =IF(G161<D161,C161,NA()) -> 
A162: 130 | B162: =OFFSET(InputPriceData!B$15,CalculationsAndCharts!$A162+$A$11,0,1,1) -> 2014-12-23 | C162: =OFFSET(InputPriceData!G$15,CalculationsAndCharts!$A162+$A$11,IF($C$7,8,0),1,1) -> 30439500 | D162: =OFFSET(InputPriceData!C$15,CalculationsAndCharts!$A162+$A$11,IF($C$7,8,0),1,1) -> 1205.77 | E162: =OFFSET(InputPriceData!D$15,CalculationsAndCharts!$A162+$A$11,IF($C$7,8,0),1,1) -> 1207.17 | F162: =OFFSET(InputPriceData!E$15,CalculationsAndCharts!$A162+$A$11,IF($C$7,8,0),1,1) -> 1200.38 | G162: =OFFSET(InputPriceData!F$15,CalculationsAndCharts!$A162+$A$11,IF($C$7,8,0),1,1) -> 1202.44 | H162: 1180.498039 | I162: 1172.475647 | J162: 8.022391237 | K162: =IF($A162>$A$8,NA(),IF($A162=$A$8,$G162,$G162*$C$20+K163*$D$20)) -> 1159.770329 | L162: =IF($A162>$A$8,NA(),IF($A162=$A$8,$G162,$G162*$C$21+L163*$D$21)) -> 1150.677508 | M162: =K162-L162 -> 9.09282103 | N162: =J162+M162 -> 17.11521227 | O162: 0 | R162: 0.7902145444 | S162: 0.697188498 | T162: =R162+S162 -> 1.487403042 | V162: =IF($R$4,H162,NA()) -> 1180.498039 | W162: =IF($R$5,I162,NA()) -> 1172.475647 | X162: =IF($R$6,K162,NA()) -> 1159.770329 | Y162: =IF($R$7,L162,NA()) -> 1150.677508 | Z162: 8.022391237 | AA162: 9.09282103 | AB162: 17.11521227 | AC162: 0.697188498 | AD162: 0.7902145444 | AE162: 1.487403042 | AP162: 30439500
A163: 131 | B163: =OFFSET(InputPriceData!B$15,CalculationsAndCharts!$A163+$A$11,0,1,1) -> 2014-12-22 | C163: =OFFSET(InputPriceData!G$15,CalculationsAndCharts!$A163+$A$11,IF($C$7,8,0),1,1) -> 33695200 | D163: =OFFSET(InputPriceData!C$15,CalculationsAndCharts!$A163+$A$11,IF($C$7,8,0),1,1) -> 1196.01 | E163: =OFFSET(InputPriceData!D$15,CalculationsAndCharts!$A163+$A$11,IF($C$7,8,0),1,1) -> 1201.88 | F163: =OFFSET(InputPriceData!E$15,CalculationsAndCharts!$A163+$A$11,IF($C$7,8,0),1,1) -> 1193.57 | G163: =OFFSET(InputPriceData!F$15,CalculationsAndCharts!$A163+$A$11,IF($C$7,8,0),1,1) -> 1201.86 | H163: 1176.508591 | I163: 1170.078499 | J163: 6.430091918 | K163: 1158.3239 | L163: 1149.874989 | M163: 8.448910766 | N163: 14.87900268 | O163: 0 | R163: 0.7347677658 | S163: 0.5591992155 | T163: 1.293966981 | V163: 1176.508591 | W163: 1170.078499 | X163: 1158.3239 | Y163: 1149.874989 | Z163: 6.430091918 | AA163: 8.448910766 | AB163: 14.87900268 | AC163: 0.5591992155 | AD163: 0.7347677658 | AE163: 1.293966981 | AO163: 33695200
A164: 132 | B164: =OFFSET(InputPriceData!B$15,CalculationsAndCharts!$A164+$A$11,0,1,1) -> 2014-12-19 | C164: =OFFSET(InputPriceData!G$15,CalculationsAndCharts!$A164+$A$11,IF($C$7,8,0),1,1) -> 64655300 | D164: =OFFSET(InputPriceData!C$15,CalculationsAndCharts!$A164+$A$11,IF($C$7,8,0),1,1) -> 1191.48 | E164: =OFFSET(InputPriceData!D$15,CalculationsAndCharts!$A164+$A$11,IF($C$7,8,0),1,1) -> 1198.97 | F164: =OFFSET(InputPriceData!E$15,CalculationsAndCharts!$A164+$A$11,IF($C$7,8,0),1,1) -> 1187.94 | G164: =OFFSET(InputPriceData!F$15,CalculationsAndCharts!$A164+$A$11,IF($C$7,8,0),1,1) -> 1195.96 | H164: 1171.899244 | I164: 1167.535979 | J164: 4.363264905 | K164: 1156.8481 | L164: 1149.06902 | M164: 7.77907992 | N164: 12.14234483 | O164: 0 | R164: 0.6769897879 | S164: 0.3797217425 | T164: 1.05671153 | V164: 1171.899244 | W164: 1167.535979 | X164: 1156.8481 | Y164: 1149.06902 | Z164: 4.363264905 | AA164: 7.77907992 | AB164: 12.14234483 | AC164: 0.3797217425 | AD164: 0.6769897879 | AE164: 1.05671153 | AO164: 64655300
A165: 133 | B165: =OFFSET(InputPriceData!B$15,CalculationsAndCharts!$A165+$A$11,0,1,1) -> 2014-12-18 | C165: =OFFSET(InputPriceData!G$15,CalculationsAndCharts!$A165+$A$11,IF($C$7,8,0),1,1) -> 47033800 | D165: =OFFSET(InputPriceData!C$15,CalculationsAndCharts!$A165+$A$11,IF($C$7,8,0),1,1) -> 1185.94 | E165: =OFFSET(InputPriceData!D$15,CalculationsAndCharts!$A165+$A$11,IF($C$7,8,0),1,1) -> 1192.16 | F165: =OFFSET(InputPriceData!E$15,CalculationsAndCharts!$A165+$A$11,IF($C$7,8,0),1,1) -> 1180.61 | G165: =OFFSET(InputPriceData!F$15,CalculationsAndCharts!$A165+$A$11,IF($C$7,8,0),1,1) -> 1192.16 | H165: 1167.524561 | I165: 1165.262057 | J165: 2.262503664 | K165: 1155.522273 | L165: 1148.342028 | M165: 7.180244734 | N165: 9.442748398 | O165: 0 | R165: 0.6252705691 | S165: 0.1970235008 | T165: 0.8222940699 | V165: 1167.524561 | W165: 1165.262057 | X165: 1155.522273 | Y165: 1148.342028 | Z165: 2.262503664 | AA165: 7.180244734 | AB165: 9.442748398 | AC165: 0.1970235008 | AD165: 0.6252705691 | AE165: 0.8222940699 | AO165: 47033800
A166: 134 | B166: =OFFSET(InputPriceData!B$15,CalculationsAndCharts!$A166+$A$11,0,1,1) -> 2014-12-17 | C166: =OFFSET(InputPriceData!G$15,CalculationsAndCharts!$A166+$A$11,IF($C$7,8,0),1,1) -> 49123700 | D166: =OFFSET(InputPriceData!C$15,CalculationsAndCharts!$A166+$A$11,IF($C$7,8,0),1,1) -> 1141.87 | E166: =OFFSET(InputPriceData!D$15,CalculationsAndCharts!$A166+$A$11,IF($C$7,8,0),1,1) -> 1174.84 | F166: =OFFSET(InputPriceData!E$15,CalculationsAndCharts!$A166+$A$11,IF($C$7,8,0),1,1) -> 1141.34 | G166: =OFFSET(InputPriceData!F$15,CalculationsAndCharts!$A166+$A$11,IF($C$7,8,0),1,1) -> 1174.84 | H166: 1163.04539 | I166: 1163.110222 | J166: -0.0648316452 | K166: 1154.280316 | L166: 1147.662679 | M166: 6.617636278 | N166: 6.552804633 | O166: 0 | R166: 0.5766185828 | S166: -0.005649015722 | T166: 0.5709695671 | V166: 1163.04539 | W166: 1163.110222 | X166: 1154.280316 | Y166: 1147.662679 | Z166: -0.0648316452 | AA166: 6.617636278 | AB166: 6.552804633 | AC166: -0.005649015722 | AD166: 0.5766185828 | AE166: 0.5709695671 | AO166: 49123700
A167: 135 | B167: =OFFSET(InputPriceData!B$15,CalculationsAndCharts!$A167+$A$11,0,1,1) -> 2014-12-16 | C167: =OFFSET(InputPriceData!G$15,CalculationsAndCharts!$A167+$A$11,IF($C$7,8,0),1,1) -> 49586800 | D167: =OFFSET(InputPriceData!C$15,CalculationsAndCharts!$A167+$A$11,IF($C$7,8,0),1,1) -> 1136.87 | E167: =OFFSET(InputPriceData!D$15,CalculationsAndCharts!$A167+$A$11,IF($C$7,8,0),1,1) -> 1156.94 | F167: =OFFSET(InputPriceData!E$15,CalculationsAndCharts!$A167+$A$11,IF($C$7,8,0),1,1) -> 1134.51 | G167: =OFFSET(InputPriceData!F$15,CalculationsAndCharts!$A167+$A$11,IF($C$7,8,0),1,1) -> 1139.37 | H167: 1160.900916 | I167: 1162.17184 | J167: -1.270923889 | K167: 1153.583377 | L167: 1147.241326 | M167: 6.342051636 | N167: 5.071127746 | O167: 0 | R167: 0.5528088549 | S167: -0.1107808672 | T167: 0.4420279877 | V167: 1160.900916 | W167: 1162.17184 | X167: 1153.583377 | Y167: 1147.241326 | Z167: -1.270923889 | AA167: 6.342051636 | AB167: 5.071127746 | AC167: -0.1107808672 | AD167: 0.5528088549 | AE167: 0.4420279877 | AO167: 49586800
A168: 136 | B168: =OFFSET(InputPriceData!B$15,CalculationsAndCharts!$A168+$A$11,0,1,1) -> 2014-12-15 | C168: =OFFSET(InputPriceData!G$15,CalculationsAndCharts!$A168+$A$11,IF($C$7,8,0),1,1) -> 43619900 | D168: =OFFSET(InputPriceData!C$15,CalculationsAndCharts!$A168+$A$11,IF($C$7,8,0),1,1) -> 1157.72 | E168: =OFFSET(InputPriceData!D$15,CalculationsAndCharts!$A168+$A$11,IF($C$7,8,0),1,1) -> 1160.53 | F168: =OFFSET(InputPriceData!E$15,CalculationsAndCharts!$A168+$A$11,IF($C$7,8,0),1,1) -> 1138.13 | G168: =OFFSET(InputPriceData!F$15,CalculationsAndCharts!$A168+$A$11,IF($C$7,8,0),1,1) -> 1140.3 | H168: 1164.815628 | I168: 1163.995987 | J168: 0.8196409033 | K168: 1154.065187 | L168: 1147.363362 | M168: 6.701824979 | N168: 7.521465882 | O168: 0 | R168: 0.5841065875 | S168: 0.07143690749 | T168: 0.655543495 | V168: 1164.815628 | W168: 1163.995987 | X168: 1154.065187 | Y168: 1147.363362 | Z168: 0.8196409033 | AA168: 6.701824979 | AB168: 7.521465882 | AC168: 0.07143690749 | AD168: 0.5841065875 | AE168: 0.655543495 | AP168: 43619900
A169: 137 | B169: =OFFSET(InputPriceData!B$15,CalculationsAndCharts!$A169+$A$11,0,1,1) -> 2014-12-12 | C169: =OFFSET(InputPriceData!G$15,CalculationsAndCharts!$A169+$A$11,IF($C$7,8,0),1,1) -> 41576500 | D169: =OFFSET(InputPriceData!C$15,CalculationsAndCharts!$A169+$A$11,IF($C$7,8,0),1,1) -> 1156.69 | E169: =OFFSET(InputPriceData!D$15,CalculationsAndCharts!$A169+$A$11,IF($C$7,8,0),1,1) -> 1163.61 | F169: =OFFSET(InputPriceData!E$15,CalculationsAndCharts!$A169+$A$11,IF($C$7,8,0),1,1) -> 1152.44 | G169: =OFFSET(InputPriceData!F$15,CalculationsAndCharts!$A169+$A$11,IF($C$7,8,0),1,1) -> 1152.44 | H169: 1169.273015 | I169: 1165.891666 | J169: 3.381348825 | K169: 1154.531803 | L169: 1147.472871 | M169: 7.058931993 | N169: 10.44028082 | O169: 0 | R169: 0.6151720159 | S169: 0.2946778883 | T169: 0.9098499041 | V169: 1169.273015 | W169: 1165.891666 | X169: 1154.531803 | Y169: 1147.472871 | Z169: 3.381348825 | AA169: 7.058931993 | AB169: 10.44028082 | AC169: 0.2946778883 | AD169: 0.6151720159 | AE169: 0.9098499041 | AP169: 41576500
A170: 138 | B170: =OFFSET(InputPriceData!B$15,CalculationsAndCharts!$A170+$A$11,0,1,1) -> 2014-12-11 | C170: =OFFSET(InputPriceData!G$15,CalculationsAndCharts!$A170+$A$11,IF($C$7,8,0),1,1) -> 39179500 | D170: =OFFSET(InputPriceData!C$15,CalculationsAndCharts!$A170+$A$11,IF($C$7,8,0),1,1) -> 1166.68 | E170: =OFFSET(InputPriceData!D$15,CalculationsAndCharts!$A170+$A$11,IF($C$7,8,0),1,1) -> 1180.99 | F170: =OFFSET(InputPriceData!E$15,CalculationsAndCharts!$A170+$A$11,IF($C$7,8,0),1,1) -> 1165.13 | G170: =OFFSET(InputPriceData!F$15,CalculationsAndCharts!$A170+$A$11,IF($C$7,8,0),1,1) -> 1166.96 | H170: 1172.333563 | I170: 1166.967799 | J170: 5.365763681 | K170: 1154.602712 | L170: 1147.395861 | M170: 7.206850325 | N170: 12.57261401 | O170: 0 | R170: 0.6281049607 | S170: 0.4676471182 | T170: 1.095752079 | V170: 1172.333563 | W170: 1166.967799 | X170: 1154.602712 | Y170: 1147.395861 | Z170: 5.365763681 | AA170: 7.206850325 | AB170: 12.57261401 | AC170: 0.4676471182 | AD170: 0.6281049607 | AE170: 1.095752079 | AO170: 39179500
A171: 139 | B171: =OFFSET(InputPriceData!B$15,CalculationsAndCharts!$A171+$A$11,0,1,1) -> 2014-12-10 | C171: =OFFSET(InputPriceData!G$15,CalculationsAndCharts!$A171+$A$11,IF($C$7,8,0),1,1) -> 41144400 | D171: =OFFSET(InputPriceData!C$15,CalculationsAndCharts!$A171+$A$11,IF($C$7,8,0),1,1) -> 1183.9 | E171: =OFFSET(InputPriceData!D$15,CalculationsAndCharts!$A171+$A$11,IF($C$7,8,0),1,1) -> 1185.03 | F171: =OFFSET(InputPriceData!E$15,CalculationsAndCharts!$A171+$A$11,IF($C$7,8,0),1,1) -> 1161.86 | G171: =OFFSET(InputPriceData!F$15,CalculationsAndCharts!$A171+$A$11,IF($C$7,8,0),1,1) -> 1161.86 | H171: =IF($A171>$A$8,NA(),IF(A171=$A$8,G171,G171*$C$18+H172*$D$18)) -> 1173.310574 | I171: =IF($A171>$A$8,NA(),IF($A171=$A$8,$G171,$G171*$C$19+I172*$D$19)) -> 1166.968423 | J171: =H171-I171 -> 6.34215117 | K171: 1154.183821 | L171: 1147.092541 | M171: 7.091279177 | N171: 13.43343035 | O171: 0 | R171: 0.6181959101 | S171: 0.5528892344 | T171: 1.171085145 | V171: 1173.310574 | W171: 1166.968423 | X171: 1154.183821 | Y171: 1147.092541 | Z171: 6.34215117 | AA171: 7.091279177 | AB171: 13.43343035 | AC171: 0.5528892344 | AD171: 0.6181959101 | AE171: 1.171085145 | AP171: 41144400
A172: 140 | B172: =OFFSET(InputPriceData!B$15,CalculationsAndCharts!$A172+$A$11,0,1,1) -> 2014-12-09 | C172: =OFFSET(InputPriceData!G$15,CalculationsAndCharts!$A172+$A$11,IF($C$7,8,0),1,1) -> 39701500 | D172: =OFFSET(InputPriceData!C$15,CalculationsAndCharts!$A172+$A$11,IF($C$7,8,0),1,1) -> 1157.38 | E172: =OFFSET(InputPriceData!D$15,CalculationsAndCharts!$A172+$A$11,IF($C$7,8,0),1,1) -> 1188.07 | F172: =OFFSET(InputPriceData!E$15,CalculationsAndCharts!$A172+$A$11,IF($C$7,8,0),1,1) -> 1153.53 | G172: =OFFSET(InputPriceData!F$15,CalculationsAndCharts!$A172+$A$11,IF($C$7,8,0),1,1) -> 1188.06 | H172: 1175.392497 | I172: 1167.377097 | J172: 8.015399913 | K172: 1153.923611 | L172: 1146.863589 | M172: 7.060022553 | N172: 15.07542247 | O172: 0 | R172: 0.6155939226 | S172: 0.6988974096 | T172: 1.314491332 | V172: 1175.392497 | W172: 1167.377097 | X172: 1153.923611 | Y172: 1146.863589 | Z172: 8.015399913 | AA172: 7.060022553 | AB172: 15.07542247 | AC172: 0.6988974096 | AD172: 0.6155939226 | AE172: 1.314491332 | AO172: 39701500
A173: 141 | B173: =OFFSET(InputPriceData!B$15,CalculationsAndCharts!$A173+$A$11,0,1,1) -> 2014-12-08 | C173: =OFFSET(InputPriceData!G$15,CalculationsAndCharts!$A173+$A$11,IF($C$7,8,0),1,1) -> 38009900 | D173: =OFFSET(InputPriceData!C$15,CalculationsAndCharts!$A173+$A$11,IF($C$7,8,0),1,1) -> 1179.96 | E173: =OFFSET(InputPriceData!D$15,CalculationsAndCharts!$A173+$A$11,IF($C$7,8,0),1,1) -> 1188.23 | F173: =OFFSET(InputPriceData!E$15,CalculationsAndCharts!$A173+$A$11,IF($C$7,8,0),1,1) -> 1165.96 | G173: =OFFSET(InputPriceData!F$15,CalculationsAndCharts!$A173+$A$11,IF($C$7,8,0),1,1) -> 1167.21 | H173: 1173.089314 | I173: 1165.722465 | J173: 7.366849763 | K173: 1152.766445 | L173: 1146.224885 | M173: 6.541560883 | N173: 13.90841065 | O173: 0 | R173: 0.570704839 | S173: 0.6427054466 | T173: 1.213410286 | V173: 1173.089314 | W173: 1165.722465 | X173: 1152.766445 | Y173: 1146.224885 | Z173: 7.366849763 | AA173: 6.541560883 | AB173: 13.90841065 | AC173: 0.6427054466 | AD173: 0.570704839 | AE173: 1.213410286 | AP173: 38009900
A174: 142 | B174: =OFFSET(InputPriceData!B$15,CalculationsAndCharts!$A174+$A$11,0,1,1) -> 2014-12-05 | C174: =OFFSET(InputPriceData!G$15,CalculationsAndCharts!$A174+$A$11,IF($C$7,8,0),1,1) -> 34196200 | D174: =OFFSET(InputPriceData!C$15,CalculationsAndCharts!$A174+$A$11,IF($C$7,8,0),1,1) -> 1172.75 | E174: =OFFSET(InputPriceData!D$15,CalculationsAndCharts!$A174+$A$11,IF($C$7,8,0),1,1) -> 1184.49 | F174: =OFFSET(InputPriceData!E$15,CalculationsAndCharts!$A174+$A$11,IF($C$7,8,0),1,1) -> 1172.75 | G174: =OFFSET(InputPriceData!F$15,CalculationsAndCharts!$A174+$A$11,IF($C$7,8,0),1,1) -> 1182.43 | H174: 1174.158281 | I174: 1165.603462 | J174: 8.554818849 | K174: 1152.276833 | L174: 1145.899534 | M174: 6.377299491 | N174: 14.93211834 | O174: 0 | R174: 0.5565321655 | S174: 0.7465592397 | T174: 1.303091405 | V174: 1174.158281 | W174: 1165.603462 | X174: 1152.276833 | Y174: 1145.899534 | Z174: 8.554818849 | AA174: 6.377299491 | AB174: 14.93211834 | AC174: 0.7465592397 | AD174: 0.5565321655 | AE174: 1.303091405 | AO174: 34196200
A175: 143 | B175: =OFFSET(InputPriceData!B$15,CalculationsAndCharts!$A175+$A$11,0,1,1) -> 2014-12-04 | C175: =OFFSET(InputPriceData!G$15,CalculationsAndCharts!$A175+$A$11,IF($C$7,8,0),1,1) -> 34083400 | D175: =OFFSET(InputPriceData!C$15,CalculationsAndCharts!$A175+$A$11,IF($C$7,8,0),1,1) -> 1177.77 | E175: =OFFSET(InputPriceData!D$15,CalculationsAndCharts!$A175+$A$11,IF($C$7,8,0),1,1) -> 1178.01 | F175: =OFFSET(InputPriceData!E$15,CalculationsAndCharts!$A175+$A$11,IF($C$7,8,0),1,1) -> 1169.23 | G175: =OFFSET(InputPriceData!F$15,CalculationsAndCharts!$A175+$A$11,IF($C$7,8,0),1,1) -> 1173.01 | H175: 1172.654332 | I175: 1164.257339 | J175: 8.396992935 | K175: 1151.254692 | L175: 1145.33317 | M175: 5.921522067 | N175: 14.318515 | O175: 0 | R175: 0.5170130597 | S175: 0.7331484981 | T175: 1.250161558 | V175: 1172.654332 | W175: 1164.257339 | X175: 1151.254692 | Y175: 1145.33317 | Z175: 8.396992935 | AA175: 5.921522067 | AB175: 14.318515 | AC175: 0.7331484981 | AD175: 0.5170130597 | AE175: 1.250161558 | AP175: 34083400
A176: 144 | B176: =OFFSET(InputPriceData!B$15,CalculationsAndCharts!$A176+$A$11,0,1,1) -> 2014-12-03 | C176: =OFFSET(InputPriceData!G$15,CalculationsAndCharts!$A176+$A$11,IF($C$7,8,0),1,1) -> 36126800 | D176: =OFFSET(InputPriceData!C$15,CalculationsAndCharts!$A176+$A$11,IF($C$7,8,0),1,1) -> 1168.54 | E176: =OFFSET(InputPriceData!D$15,CalculationsAndCharts!$A176+$A$11,IF($C$7,8,0),1,1) -> 1181.89 | F176: =OFFSET(InputPriceData!E$15,CalculationsAndCharts!$A176+$A$11,IF($C$7,8,0),1,1) -> 1168.03 | G176: =OFFSET(InputPriceData!F$15,CalculationsAndCharts!$A176+$A$11,IF($C$7,8,0),1,1) -> 1179.01 | H176: 1172.589665 | I176: 1163.557126 | J176: 9.032538871 | K176: 1150.517224 | L176: 1144.904072 | M176: 5.613152144 | N176: 14.64569101 | O176: 0 | R176: 0.4902727033 | S176: 0.7889341205 | T176: 1.279206824 | V176: 1172.589665 | W176: 1163.557126 | X176: 1150.517224 | Y176: 1144.904072 | Z176: 9.032538871 | AA176: 5.613152144 | AB176: 14.64569101 | AC176: 0.7889341205 | AD176: 0.4902727033 | AE176: 1.279206824 | AO176: 36126800
A177: 145 | B177: =OFFSET(InputPriceData!B$15,CalculationsAndCharts!$A177+$A$11,0,1,1) -> 2014-12-02 | C177: =OFFSET(InputPriceData!G$15,CalculationsAndCharts!$A177+$A$11,IF($C$7,8,0),1,1) -> 36866500 | D177: =OFFSET(InputPriceData!C$15,CalculationsAndCharts!$A177+$A$11,IF($C$7,8,0),1,1) -> 1156.27 | E177: =OFFSET(InputPriceData!D$15,CalculationsAndCharts!$A177+$A$11,IF($C$7,8,0),1,1) -> 1171.44 | F177: =OFFSET(InputPriceData!E$15,CalculationsAndCharts!$A177+$A$11,IF($C$7,8,0),1,1) -> 1156.26 | G177: =OFFSET(InputPriceData!F$15,CalculationsAndCharts!$A177+$A$11,IF($C$7,8,0),1,1) -> 1168.45 | H177: 1171.422331 | I177: 1162.320896 | J177: 9.101435118 | K177: 1149.551367 | L177: 1144.375298 | M177: 5.176069413 | N177: 14.27750453 | O177: 0 | R177: 0.4523052378 | S177: 0.7953190823 | T177: 1.24762432 | V177: 1171.422331 | W177: 1162.320896 | X177: 1149.551367 | Y177: 1144.375298 | Z177: 9.101435118 | AA177: 5.176069413 | AB177: 14.27750453 | AC177: 0.7953190823 | AD177: 0.4523052378 | AE177: 1.24762432 | AO177: 36866500
A178: 146 | B178: =OFFSET(InputPriceData!B$15,CalculationsAndCharts!$A178+$A$11,0,1,1) -> 2014-12-01 | C178: =OFFSET(InputPriceData!G$15,CalculationsAndCharts!$A178+$A$11,IF($C$7,8,0),1,1) -> 41590100 | D178: =OFFSET(InputPriceData!C$15,CalculationsAndCharts!$A178+$A$11,IF($C$7,8,0),1,1) -> 1170.55 | E178: =OFFSET(InputPriceData!D$15,CalculationsAndCharts!$A178+$A$11,IF($C$7,8,0),1,1) -> 1170.55 | F178: =OFFSET(InputPriceData!E$15,CalculationsAndCharts!$A178+$A$11,IF($C$7,8,0),1,1) -> 1154.05 | G178: =OFFSET(InputPriceData!F$15,CalculationsAndCharts!$A178+$A$11,IF($C$7,8,0),1,1) -> 1154.05 | H178: 1171.962755 | I178: 1161.830568 | J178: 10.13218727 | K178: 1148.910736 | L178: 1144.002047 | M178: 4.908688992 | N178: 15.04087626 | O178: 0 | R178: 0.4290804379 | S178: 0.885679121 | T178: 1.314759559 | V178: 1171.962755 | W178: 1161.830568 | X178: 1148.910736 | Y178: 1144.002047 | Z178: 10.13218727 | AA178: 4.908688992 | AB178: 15.04087626 | AC178: 0.885679121 | AD178: 0.4290804379 | AE178: 1.314759559 | AP178: 41590100
A179: 147 | B179: =OFFSET(InputPriceData!B$15,CalculationsAndCharts!$A179+$A$11,0,1,1) -> 2014-11-28 | C179: =OFFSET(InputPriceData!G$15,CalculationsAndCharts!$A179+$A$11,IF($C$7,8,0),1,1) -> 25046400 | D179: =OFFSET(InputPriceData!C$15,CalculationsAndCharts!$A179+$A$11,IF($C$7,8,0),1,1) -> 1190.58 | E179: =OFFSET(InputPriceData!D$15,CalculationsAndCharts!$A179+$A$11,IF($C$7,8,0),1,1) -> 1190.61 | F179: =OFFSET(InputPriceData!E$15,CalculationsAndCharts!$A179+$A$11,IF($C$7,8,0),1,1) -> 1172.44 | G179: =OFFSET(InputPriceData!F$15,CalculationsAndCharts!$A179+$A$11,IF($C$7,8,0),1,1) -> 1173.23 | H179: 1175.219619 | I179: 1162.453013 | J179: 12.76660639 | K179: 1148.736523 | L179: 1143.846265 | M179: 4.890258865 | N179: 17.65686525 | O179: 0 | R179: 0.4275276334 | S179: 1.116112085 | T179: 1.543639718 | V179: 1175.219619 | W179: 1162.453013 | X179: 1148.736523 | Y179: 1143.846265 | Z179: 12.76660639 | AA179: 4.890258865 | AB179: 17.65686525 | AC179: 1.116112085 | AD179: 0.4275276334 | AE179: 1.543639718 | AP179: 25046400
A180: 148 | B180: =OFFSET(InputPriceData!B$15,CalculationsAndCharts!$A180+$A$11,0,1,1) -> 2014-11-26 | C180: =OFFSET(InputPriceData!G$15,CalculationsAndCharts!$A180+$A$11,IF($C$7,8,0),1,1) -> 27452600 | D180: =OFFSET(InputPriceData!C$15,CalculationsAndCharts!$A180+$A$11,IF($C$7,8,0),1,1) -> 1186.33 | E180: =OFFSET(InputPriceData!D$15,CalculationsAndCharts!$A180+$A$11,IF($C$7,8,0),1,1) -> 1190.7 | F180: =OFFSET(InputPriceData!E$15,CalculationsAndCharts!$A180+$A$11,IF($C$7,8,0),1,1) -> 1185.37 | G180: =OFFSET(InputPriceData!F$15,CalculationsAndCharts!$A180+$A$11,IF($C$7,8,0),1,1) -> 1190.62 | H180: 1175.581368 | I180: 1161.590854 | J180: 13.99051433 | K180: 1147.906236 | L180: 1143.390703 | M180: 4.515533312 | N180: 18.50604764 | O180: 0 | R180: 0.3949247883 | S180: 1.223598749 | T180: 1.618523537 | V180: 1175.581368 | W180: 1161.590854 | X180: 1147.906236 | Y180: 1143.390703 | Z180: 13.99051433 | AA180: 4.515533312 | AB180: 18.50604764 | AC180: 1.223598749 | AD180: 0.3949247883 | AE180: 1.618523537 | AO180: 27452600
A181: 149 | B181: =OFFSET(InputPriceData!B$15,CalculationsAndCharts!$A181+$A$11,0,1,1) -> 2014-11-25 | C181: =OFFSET(InputPriceData!G$15,CalculationsAndCharts!$A181+$A$11,IF($C$7,8,0),1,1) -> 33929400 | D181: =OFFSET(InputPriceData!C$15,CalculationsAndCharts!$A181+$A$11,IF($C$7,8,0),1,1) -> 1188.93 | E181: =OFFSET(InputPriceData!D$15,CalculationsAndCharts!$A181+$A$11,IF($C$7,8,0),1,1) -> 1191.76 | F181: =OFFSET(InputPriceData!E$15,CalculationsAndCharts!$A181+$A$11,IF($C$7,8,0),1,1) -> 1182.66 | G181: =OFFSET(InputPriceData!F$15,CalculationsAndCharts!$A181+$A$11,IF($C$7,8,0),1,1) -> 1186.33 | H181: 1172.847072 | I181: 1159.268522 | J181: 13.57854935 | K181: 1146.458312 | L181: 1142.658466 | M181: 3.799846277 | N181: 17.37839563 | O181: 0 | R181: 0.3325443597 | S181: 1.188329651 | T181: 1.52087401 | V181: 1172.847072 | W181: 1159.268522 | X181: 1146.458312 | Y181: 1142.658466 | Z181: 13.57854935 | AA181: 3.799846277 | AB181: 17.37839563 | AC181: 1.188329651 | AD181: 0.3325443597 | AE181: 1.52087401 | AP181: 33929400
A182: 150 | B182: =OFFSET(InputPriceData!B$15,CalculationsAndCharts!$A182+$A$11,0,1,1) -> 2014-11-24 | C182: =OFFSET(InputPriceData!G$15,CalculationsAndCharts!$A182+$A$11,IF($C$7,8,0),1,1) -> 31280600 | D182: =OFFSET(InputPriceData!C$15,CalculationsAndCharts!$A182+$A$11,IF($C$7,8,0),1,1) -> 1174.83 | E182: =OFFSET(InputPriceData!D$15,CalculationsAndCharts!$A182+$A$11,IF($C$7,8,0),1,1) -> 1186.96 | F182: =OFFSET(InputPriceData!E$15,CalculationsAndCharts!$A182+$A$11,IF($C$7,8,0),1,1) -> 1174.83 | G182: =OFFSET(InputPriceData!F$15,CalculationsAndCharts!$A182+$A$11,IF($C$7,8,0),1,1) -> 1186.94 | H182: 1170.39563 | I182: 1157.103604 | J182: 13.29202606 | K182: 1145.106729 | L182: 1141.981388 | M182: 3.125341681 | N182: 16.41736774 | O182: 0 | R182: 0.273677112 | S182: 1.163944194 | T182: 1.437621306 | V182: 1170.39563 | W182: 1157.103604 | X182: 1145.106729 | Y182: 1141.981388 | Z182: 13.29202606 | AA182: 3.125341681 | AB182: 16.41736774 | AC182: 1.163944194 | AD182: 0.273677112 | AE182: 1.437621306 | AO182: 31280600
A183: 151 | B183: =OFFSET(InputPriceData!B$15,CalculationsAndCharts!$A183+$A$11,0,1,1) -> 2014-11-21 | C183: =OFFSET(InputPriceData!G$15,CalculationsAndCharts!$A183+$A$11,IF($C$7,8,0),1,1) -> 39164200 | D183: =OFFSET(InputPriceData!C$15,CalculationsAndCharts!$A183+$A$11,IF($C$7,8,0),1,1) -> 1182.31 | E183: =OFFSET(InputPriceData!D$15,CalculationsAndCharts!$A183+$A$11,IF($C$7,8,0),1,1) -> 1184.5 | F183: =OFFSET(InputPriceData!E$15,CalculationsAndCharts!$A183+$A$11,IF($C$7,8,0),1,1) -> 1169.65 | G183: =OFFSET(InputPriceData!F$15,CalculationsAndCharts!$A183+$A$11,IF($C$7,8,0),1,1) -> 1172.42 | H183: 1167.387563 | I183: 1154.716693 | J183: 12.6708705 | K183: 1143.688652 | L183: 1141.284355 | M183: 2.404297456 | N183: 15.07516795 | O183: 0 | R183: 0.2106659437 | S183: 1.110229054 | T183: 1.320894998 | V183: 1167.387563 | W183: 1154.716693 | X183: 1143.688652 | Y183: 1141.284355 | Z183: 12.6708705 | AA183: 2.404297456 | AB183: 15.07516795 | AC183: 1.110229054 | AD183: 0.2106659437 | AE183: 1.320894998 | AP183: 39164200
A184: 152 | B184: =OFFSET(InputPriceData!B$15,CalculationsAndCharts!$A184+$A$11,0,1,1) -> 2014-11-20 | C184: =OFFSET(InputPriceData!G$15,CalculationsAndCharts!$A184+$A$11,IF($C$7,8,0),1,1) -> 31282900 | D184: =OFFSET(InputPriceData!C$15,CalculationsAndCharts!$A184+$A$11,IF($C$7,8,0),1,1) -> 1153.53 | E184: =OFFSET(InputPriceData!D$15,CalculationsAndCharts!$A184+$A$11,IF($C$7,8,0),1,1) -> 1170.86 | F184: =OFFSET(InputPriceData!E$15,CalculationsAndCharts!$A184+$A$11,IF($C$7,8,0),1,1) -> 1153.21 | G184: =OFFSET(InputPriceData!F$15,CalculationsAndCharts!$A184+$A$11,IF($C$7,8,0),1,1) -> 1170.75 | H184: 1166.472574 | I184: 1153.300428 | J184: 13.17214655 | K184: 1142.714708 | L184: 1140.801632 | M184: 1.913076646 | N184: 15.0852232 | O184: 0 | R184: 0.1676958196 | S184: 1.154639526 | T184: 1.322335346 | V184: 1166.472574 | W184: 1153.300428 | X184: 1142.714708 | Y184: 1140.801632 | Z184: 13.17214655 | AA184: 1.913076646 | AB184: 15.0852232 | AC184: 1.154639526 | AD184: 0.1676958196 | AE184: 1.322335346 | AO184: 31282900
A185: 153 | B185: =OFFSET(InputPriceData!B$15,CalculationsAndCharts!$A185+$A$11,0,1,1) -> 2014-11-19 | C185: =OFFSET(InputPriceData!G$15,CalculationsAndCharts!$A185+$A$11,IF($C$7,8,0),1,1) -> 33608500 | D185: =OFFSET(InputPriceData!C$15,CalculationsAndCharts!$A185+$A$11,IF($C$7,8,0),1,1) -> 1169.04 | E185: =OFFSET(InputPriceData!D$15,CalculationsAndCharts!$A185+$A$11,IF($C$7,8,0),1,1) -> 1169.08 | F185: =OFFSET(InputPriceData!E$15,CalculationsAndCharts!$A185+$A$11,IF($C$7,8,0),1,1) -> 1151.98 | G185: =OFFSET(InputPriceData!F$15,CalculationsAndCharts!$A185+$A$11,IF($C$7,8,0),1,1) -> 1157.69 | H185: 1165.694861 | I185: 1151.904462 | J185: 13.79039859 | K185: 1141.764359 | L185: 1140.337316 | M185: 1.427043561 | N185: 15.21744215 | O185: 0 | R185: 0.1251422313 | S185: 1.209326258 | T185: 1.334468489 | V185: 1165.694861 | W185: 1151.904462 | X185: 1141.764359 | Y185: 1140.337316 | Z185: 13.79039859 | AA185: 1.427043561 | AB185: 15.21744215 | AC185: 1.209326258 | AD185: 0.1251422313 | AE185: 1.334468489 | AP185: 33608500
A186: 154 | B186: =OFFSET(InputPriceData!B$15,CalculationsAndCharts!$A186+$A$11,0,1,1) -> 2014-11-18 | C186: =OFFSET(InputPriceData!G$15,CalculationsAndCharts!$A186+$A$11,IF($C$7,8,0),1,1) -> 34161900 | D186: =OFFSET(InputPriceData!C$15,CalculationsAndCharts!$A186+$A$11,IF($C$7,8,0),1,1) -> 1165.16 | E186: =OFFSET(InputPriceData!D$15,CalculationsAndCharts!$A186+$A$11,IF($C$7,8,0),1,1) -> 1176.21 | F186: =OFFSET(InputPriceData!E$15,CalculationsAndCharts!$A186+$A$11,IF($C$7,8,0),1,1) -> 1165.16 | G186: =OFFSET(InputPriceData!F$15,CalculationsAndCharts!$A186+$A$11,IF($C$7,8,0),1,1) -> 1170.28 | H186: 1167.15029 | I186: 1151.441619 | J186: 15.70867084 | K186: 1141.224507 | L186: 1140.068282 | M186: 1.156225199 | N186: 16.86489604 | O186: 0 | R186: 0.1014171886 | S186: 1.377871053 | T186: 1.479288242 | V186: 1167.15029 | W186: 1151.441619 | X186: 1141.224507 | Y186: 1140.068282 | Z186: 15.70867084 | AA186: 1.156225199 | AB186: 16.86489604 | AC186: 1.377871053 | AD186: 0.1014171886 | AE186: 1.479288242 | AO186: 34161900
A187: 155 | B187: =OFFSET(InputPriceData!B$15,CalculationsAndCharts!$A187+$A$11,0,1,1) -> 2014-11-17 | C187: =OFFSET(InputPriceData!G$15,CalculationsAndCharts!$A187+$A$11,IF($C$7,8,0),1,1) -> 31528900 | D187: =OFFSET(InputPriceData!C$15,CalculationsAndCharts!$A187+$A$11,IF($C$7,8,0),1,1) -> 1171.86 | E187: =OFFSET(InputPriceData!D$15,CalculationsAndCharts!$A187+$A$11,IF($C$7,8,0),1,1) -> 1175.18 | F187: =OFFSET(InputPriceData!E$15,CalculationsAndCharts!$A187+$A$11,IF($C$7,8,0),1,1) -> 1164.18 | G187: =OFFSET(InputPriceData!F$15,CalculationsAndCharts!$A187+$A$11,IF($C$7,8,0),1,1) -> 1164.23 | H187: 1166.581252 | I187: 1149.934549 | J187: 16.64670313 | K187: 1140.239575 | L187: 1139.599883 | M187: 0.6396919672 | N187: 17.28639509 | O187: 0 | R187: 0.05613303201 | S187: 1.46074981 | T187: 1.516882842 | V187: 1166.581252 | W187: 1149.934549 | X187: 1140.239575 | Y187: 1139.599883 | Z187: 16.64670313 | AA187: 0.6396919672 | AB187: 17.28639509 | AC187: 1.46074981 | AD187: 0.05613303201 | AE187: 1.516882842 | AP187: 31528900
A188: 156 | B188: =OFFSET(InputPriceData!B$15,CalculationsAndCharts!$A188+$A$11,0,1,1) -> 2014-11-14 | C188: =OFFSET(InputPriceData!G$15,CalculationsAndCharts!$A188+$A$11,IF($C$7,8,0),1,1) -> 32271300 | D188: =OFFSET(InputPriceData!C$15,CalculationsAndCharts!$A188+$A$11,IF($C$7,8,0),1,1) -> 1175.46 | E188: =OFFSET(InputPriceData!D$15,CalculationsAndCharts!$A188+$A$11,IF($C$7,8,0),1,1) -> 1177.3 | F188: =OFFSET(InputPriceData!E$15,CalculationsAndCharts!$A188+$A$11,IF($C$7,8,0),1,1) -> 1171.97 | G188: =OFFSET(InputPriceData!F$15,CalculationsAndCharts!$A188+$A$11,IF($C$7,8,0),1,1) -> 1173.81 | H188: 1167.008752 | I188: 1148.790913 | J188: 18.21783956 | K188: 1139.42634 | L188: 1139.218021 | M188: 0.2083195028 | N188: 18.42615906 | O188: 0 | R188: 0.01828618394 | S188: 1.599153035 | T188: 1.617439219 | V188: 1167.008752 | W188: 1148.790913 | X188: 1139.42634 | Y188: 1139.218021 | Z188: 18.21783956 | AA188: 0.2083195028 | AB188: 18.42615906 | AC188: 1.599153035 | AD188: 0.01828618394 | AE188: 1.617439219 | AP188: 32271300
A189: 157 | B189: =OFFSET(InputPriceData!B$15,CalculationsAndCharts!$A189+$A$11,0,1,1) -> 2014-11-13 | C189: =OFFSET(InputPriceData!G$15,CalculationsAndCharts!$A189+$A$11,IF($C$7,8,0),1,1) -> 34552700 | D189: =OFFSET(InputPriceData!C$15,CalculationsAndCharts!$A189+$A$11,IF($C$7,8,0),1,1) -> 1186.76 | E189: =OFFSET(InputPriceData!D$15,CalculationsAndCharts!$A189+$A$11,IF($C$7,8,0),1,1) -> 1188.67 | F189: =OFFSET(InputPriceData!E$15,CalculationsAndCharts!$A189+$A$11,IF($C$7,8,0),1,1) -> 1173.97 | G189: =OFFSET(InputPriceData!F$15,CalculationsAndCharts!$A189+$A$11,IF($C$7,8,0),1,1) -> 1175.42 | H189: 1165.772162 | I189: 1146.789386 | J189: 18.98277603 | K189: 1138.260793 | L189: 1138.681711 | M189: -0.4209185264 | N189: 18.5618575 | O189: 0 | R189: -0.03696542434 | S189: 1.667083597 | T189: 1.630118173 | V189: 1165.772162 | W189: 1146.789386 | X189: 1138.260793 | Y189: 1138.681711 | Z189: 18.98277603 | AA189: -0.4209185264 | AB189: 18.5618575 | AC189: 1.667083597 | AD189: -0.03696542434 | AE189: 1.630118173 | AP189: 34552700
A190: 158 | B190: =OFFSET(InputPriceData!B$15,CalculationsAndCharts!$A190+$A$11,0,1,1) -> 2014-11-12 | C190: =OFFSET(InputPriceData!G$15,CalculationsAndCharts!$A190+$A$11,IF($C$7,8,0),1,1) -> 32466500 | D190: =OFFSET(InputPriceData!C$15,CalculationsAndCharts!$A190+$A$11,IF($C$7,8,0),1,1) -> 1175.33 | E190: =OFFSET(InputPriceData!D$15,CalculationsAndCharts!$A190+$A$11,IF($C$7,8,0),1,1) -> 1187.2 | F190: =OFFSET(InputPriceData!E$15,CalculationsAndCharts!$A190+$A$11,IF($C$7,8,0),1,1) -> 1174.85 | G190: =OFFSET(InputPriceData!F$15,CalculationsAndCharts!$A190+$A$11,IF($C$7,8,0),1,1) -> 1186.47 | H190: 1164.018009 | I190: 1144.498936 | J190: 19.51907275 | K190: 1137.001158 | L190: 1138.112125 | M190: -1.110966801 | N190: 18.40810595 | O190: 0 | R190: -0.09761488137 | S190: 1.715039521 | T190: 1.61742464 | V190: 1164.018009 | W190: 1144.498936 | X190: 1137.001158 | Y190: 1138.112125 | Z190: 19.51907275 | AA190: -1.110966801 | AB190: 18.40810595 | AC190: 1.715039521 | AD190: -0.09761488137 | AE190: 1.61742464 | AO190: 32466500
A191: 159 | B191: =OFFSET(InputPriceData!B$15,CalculationsAndCharts!$A191+$A$11,0,1,1) -> 2014-11-11 | C191: =OFFSET(InputPriceData!G$15,CalculationsAndCharts!$A191+$A$11,IF($C$7,8,0),1,1) -> 29583200 | D191: =OFFSET(InputPriceData!C$15,CalculationsAndCharts!$A191+$A$11,IF($C$7,8,0),1,1) -> 1179.01 | E191: =OFFSET(InputPriceData!D$15,CalculationsAndCharts!$A191+$A$11,IF($C$7,8,0),1,1) -> 1180.8 | F191: =OFFSET(InputPriceData!E$15,CalculationsAndCharts!$A191+$A$11,IF($C$7,8,0),1,1) -> 1176.77 | G191: =OFFSET(InputPriceData!F$15,CalculationsAndCharts!$A191+$A$11,IF($C$7,8,0),1,1) -> 1179.96 | H191: 1159.935829 | I191: 1141.141251 | J191: 18.79457768 | K191: 1135.324249 | L191: 1137.362391 | M191: -2.038142191 | N191: 16.75643549 | O191: 0 | R191: -0.1791990141 | S191: 1.652470473 | T191: 1.473271459 | V191: 1159.935829 | W191: 1141.141251 | X191: 1135.324249 | Y191: 1137.362391 | Z191: 18.79457768 | AA191: -2.038142191 | AB191: 16.75643549 | AC191: 1.652470473 | AD191: -0.1791990141 | AE191: 1.473271459 | AO191: 29583200
A192: 160 | B192: =OFFSET(InputPriceData!B$15,CalculationsAndCharts!$A192+$A$11,0,1,1) -> 2014-11-10 | C192: =OFFSET(InputPriceData!G$15,CalculationsAndCharts!$A192+$A$11,IF($C$7,8,0),1,1) -> 32849400 | D192: =OFFSET(InputPriceData!C$15,CalculationsAndCharts!$A192+$A$11,IF($C$7,8,0),1,1) -> 1173.85 | E192: =OFFSET(InputPriceData!D$15,CalculationsAndCharts!$A192+$A$11,IF($C$7,8,0),1,1) -> 1179.58 | F192: =OFFSET(InputPriceData!E$15,CalculationsAndCharts!$A192+$A$11,IF($C$7,8,0),1,1) -> 1172.61 | G192: =OFFSET(InputPriceData!F$15,CalculationsAndCharts!$A192+$A$11,IF($C$7,8,0),1,1) -> 1179.57 | H192: 1156.295071 | I192: 1138.035751 | J192: 18.25931921 | K192: 1133.811172 | L192: 1136.701963 | M192: -2.89079046 | N192: 15.36852875 | O192: 0 | R192: -0.2543138443 | S192: 1.606341839 | T192: 1.352027995 | V192: 1156.295071 | W192: 1138.035751 | X192: 1133.811172 | Y192: 1136.701963 | Z192: 18.25931921 | AA192: -2.89079046 | AB192: 15.36852875 | AC192: 1.606341839 | AD192: -0.2543138443 | AE192: 1.352027995 | AO192: 32849400
A193: 161 | B193: =OFFSET(InputPriceData!B$15,CalculationsAndCharts!$A193+$A$11,0,1,1) -> 2014-11-07 | C193: =OFFSET(InputPriceData!G$15,CalculationsAndCharts!$A193+$A$11,IF($C$7,8,0),1,1) -> 37042800 | D193: =OFFSET(InputPriceData!C$15,CalculationsAndCharts!$A193+$A$11,IF($C$7,8,0),1,1) -> 1170.07 | E193: =OFFSET(InputPriceData!D$15,CalculationsAndCharts!$A193+$A$11,IF($C$7,8,0),1,1) -> 1173.4 | F193: =OFFSET(InputPriceData!E$15,CalculationsAndCharts!$A193+$A$11,IF($C$7,8,0),1,1) -> 1165.04 | G193: =OFFSET(InputPriceData!F$15,CalculationsAndCharts!$A193+$A$11,IF($C$7,8,0),1,1) -> 1173.32 | H193: 1152.063265 | I193: 1134.713012 | J193: 17.35025376 | K193: 1132.260026 | L193: 1136.037342 | M193: -3.777316429 | N193: 13.57293733 | O193: 0 | R193: -0.3324993193 | S193: 1.527260867 | T193: 1.194761548 | V193: 1152.063265 | W193: 1134.713012 | X193: 1132.260026 | Y193: 1136.037342 | Z193: 17.35025376 | AA193: -3.777316429 | AB193: 13.57293733 | AC193: 1.527260867 | AD193: -0.3324993193 | AE193: 1.194761548 | AO193: 37042800
A194: 162 | B194: =OFFSET(InputPriceData!B$15,CalculationsAndCharts!$A194+$A$11,0,1,1) -> 2014-11-06 | C194: =OFFSET(InputPriceData!G$15,CalculationsAndCharts!$A194+$A$11,IF($C$7,8,0),1,1) -> 36697700 | D194: =OFFSET(InputPriceData!C$15,CalculationsAndCharts!$A194+$A$11,IF($C$7,8,0),1,1) -> 1166.02 | E194: =OFFSET(InputPriceData!D$15,CalculationsAndCharts!$A194+$A$11,IF($C$7,8,0),1,1) -> 1171.9 | F194: =OFFSET(InputPriceData!E$15,CalculationsAndCharts!$A194+$A$11,IF($C$7,8,0),1,1) -> 1163.54 | G194: =OFFSET(InputPriceData!F$15,CalculationsAndCharts!$A194+$A$11,IF($C$7,8,0),1,1) -> 1171.86 | H194: 1148.198404 | I194: 1131.624452 | J194: 16.57395198 | K194: 1130.868162 | L194: 1135.459316 | M194: -4.591154264 | N194: 11.98279772 | O194: 0 | R194: -0.4043433523 | S194: 1.459669382 | T194: 1.055326029 | V194: 1148.198404 | W194: 1131.624452 | X194: 1130.868162 | Y194: 1135.459316 | Z194: 16.57395198 | AA194: -4.591154264 | AB194: 11.98279772 | AC194: 1.459669382 | AD194: -0.4043433523 | AE194: 1.055326029 | AO194: 36697700
A195: 163 | B195: =OFFSET(InputPriceData!B$15,CalculationsAndCharts!$A195+$A$11,0,1,1) -> 2014-11-05 | C195: =OFFSET(InputPriceData!G$15,CalculationsAndCharts!$A195+$A$11,IF($C$7,8,0),1,1) -> 37665900 | D195: =OFFSET(InputPriceData!C$15,CalculationsAndCharts!$A195+$A$11,IF($C$7,8,0),1,1) -> 1171.23 | E195: =OFFSET(InputPriceData!D$15,CalculationsAndCharts!$A195+$A$11,IF($C$7,8,0),1,1) -> 1172.03 | F195: =OFFSET(InputPriceData!E$15,CalculationsAndCharts!$A195+$A$11,IF($C$7,8,0),1,1) -> 1163.68 | G195: =OFFSET(InputPriceData!F$15,CalculationsAndCharts!$A195+$A$11,IF($C$7,8,0),1,1) -> 1167.07 | H195: 1143.896296 | I195: 1128.405609 | J195: 15.4906875 | K195: 1129.478608 | L195: 1134.894965 | M195: -5.416356408 | N195: 10.07433109 | O195: 0 | R195: -0.4772561846 | S195: 1.364944597 | T195: 0.8876884124 | V195: 1143.896296 | W195: 1128.405609 | X195: 1129.478608 | Y195: 1134.894965 | Z195: 15.4906875 | AA195: -5.416356408 | AB195: 10.07433109 | AC195: 1.364944597 | AD195: -0.4772561846 | AE195: 0.8876884124 | AP195: 37665900
A196: 164 | B196: =OFFSET(InputPriceData!B$15,CalculationsAndCharts!$A196+$A$11,0,1,1) -> 2014-11-04 | C196: =OFFSET(InputPriceData!G$15,CalculationsAndCharts!$A196+$A$11,IF($C$7,8,0),1,1) -> 39562600 | D196: =OFFSET(InputPriceData!C$15,CalculationsAndCharts!$A196+$A$11,IF($C$7,8,0),1,1) -> 1166.73 | E196: =OFFSET(InputPriceData!D$15,CalculationsAndCharts!$A196+$A$11,IF($C$7,8,0),1,1) -> 1170.87 | F196: =OFFSET(InputPriceData!E$15,CalculationsAndCharts!$A196+$A$11,IF($C$7,8,0),1,1) -> 1160.89 | G196: =OFFSET(InputPriceData!F$15,CalculationsAndCharts!$A196+$A$11,IF($C$7,8,0),1,1) -> 1165.42 | H196: 1139.682895 | I196: 1125.312457 | J196: 14.37043811 | K196: 1128.204324 | L196: 1134.396127 | M196: -6.191803117 | N196: 8.178634993 | O196: 0 | R196: -0.5458237181 | S196: 1.266791888 | T196: 0.7209681697 | V196: 1139.682895 | W196: 1125.312457 | X196: 1128.204324 | Y196: 1134.396127 | Z196: 14.37043811 | AA196: -6.191803117 | AB196: 8.178634993 | AC196: 1.266791888 | AD196: -0.5458237181 | AE196: 0.7209681697 | AP196: 39562600
A197: 165 | B197: =OFFSET(InputPriceData!B$15,CalculationsAndCharts!$A197+$A$11,0,1,1) -> 2014-11-03 | C197: =OFFSET(InputPriceData!G$15,CalculationsAndCharts!$A197+$A$11,IF($C$7,8,0),1,1) -> 35554400 | D197: =OFFSET(InputPriceData!C$15,CalculationsAndCharts!$A197+$A$11,IF($C$7,8,0),1,1) -> 1174.5 | E197: =OFFSET(InputPriceData!D$15,CalculationsAndCharts!$A197+$A$11,IF($C$7,8,0),1,1) -> 1178.4 | F197: =OFFSET(InputPriceData!E$15,CalculationsAndCharts!$A197+$A$11,IF($C$7,8,0),1,1) -> 1166.79 | G197: =OFFSET(InputPriceData!F$15,CalculationsAndCharts!$A197+$A$11,IF($C$7,8,0),1,1) -> 1170.2 | H197: 1135.003422 | I197: 1122.103854 | J197: 12.89956797 | K197: 1126.942775 | L197: 1133.915137 | M197: -6.972361184 | N197: 5.927206787 | O197: 0 | R197: -0.614892681 | S197: 1.137613174 | T197: 0.5227204925 | V197: 1135.003422 | W197: 1122.103854 | X197: 1126.942775 | Y197: 1133.915137 | Z197: 12.89956797 | AA197: -6.972361184 | AB197: 5.927206787 | AC197: 1.137613174 | AD197: -0.614892681 | AE197: 0.5227204925 | AP197: 35554400
A198: 166 | B198: =OFFSET(InputPriceData!B$15,CalculationsAndCharts!$A198+$A$11,0,1,1) -> 2014-10-31 | C198: =OFFSET(InputPriceData!G$15,CalculationsAndCharts!$A198+$A$11,IF($C$7,8,0),1,1) -> 42922900 | D198: =OFFSET(InputPriceData!C$15,CalculationsAndCharts!$A198+$A$11,IF($C$7,8,0),1,1) -> 1169.17 | E198: =OFFSET(InputPriceData!D$15,CalculationsAndCharts!$A198+$A$11,IF($C$7,8,0),1,1) -> 1174.33 | F198: =OFFSET(InputPriceData!E$15,CalculationsAndCharts!$A198+$A$11,IF($C$7,8,0),1,1) -> 1166.66 | G198: =OFFSET(InputPriceData!F$15,CalculationsAndCharts!$A198+$A$11,IF($C$7,8,0),1,1) -> 1173.51 | H198: 1128.604044 | I198: 1118.256162 | J198: 10.34788182 | K198: 1125.476429 | L198: 1133.352581 | M198: -7.876151758 | N198: 2.471730062 | O198: 0 | R198: -0.6949427648 | S198: 0.91303289 | T198: 0.2180901252 | V198: 1128.604044 | W198: 1118.256162 | X198: 1125.476429 | Y198: 1133.352581 | Z198: 10.34788182 | AA198: -7.876151758 | AB198: 2.471730062 | AC198: 0.91303289 | AD198: -0.6949427648 | AE198: 0.2180901252 | AO198: 42922900
A199: 167 | B199: =OFFSET(InputPriceData!B$15,CalculationsAndCharts!$A199+$A$11,0,1,1) -> 2014-10-30 | C199: =OFFSET(InputPriceData!G$15,CalculationsAndCharts!$A199+$A$11,IF($C$7,8,0),1,1) -> 35861500 | D199: =OFFSET(InputPriceData!C$15,CalculationsAndCharts!$A199+$A$11,IF($C$7,8,0),1,1) -> 1142.45 | E199: =OFFSET(InputPriceData!D$15,CalculationsAndCharts!$A199+$A$11,IF($C$7,8,0),1,1) -> 1159.15 | F199: =OFFSET(InputPriceData!E$15,CalculationsAndCharts!$A199+$A$11,IF($C$7,8,0),1,1) -> 1140.51 | G199: =OFFSET(InputPriceData!F$15,CalculationsAndCharts!$A199+$A$11,IF($C$7,8,0),1,1) -> 1155.77 | H199: 1120.439325 | I199: 1113.835855 | J199: 6.603469582 | K199: 1123.848172 | L199: 1132.729985 | M199: -8.881812759 | N199: -2.278343177 | O199: 0 | R199: -0.7841067931 | S199: 0.582969434 | T199: -0.2011373591 | V199: 1120.439325 | W199: 1113.835855 | X199: 1123.848172 | Y199: 1132.729985 | Z199: 6.603469582 | AA199: -8.881812759 | AB199: -2.278343177 | AC199: 0.582969434 | AD199: -0.7841067931 | AE199: -0.2011373591 | AO199: 35861500
A200: 168 | B200: =OFFSET(InputPriceData!B$15,CalculationsAndCharts!$A200+$A$11,0,1,1) -> 2014-10-29 | C200: =OFFSET(InputPriceData!G$15,CalculationsAndCharts!$A200+$A$11,IF($C$7,8,0),1,1) -> 37403500 | D200: =OFFSET(InputPriceData!C$15,CalculationsAndCharts!$A200+$A$11,IF($C$7,8,0),1,1) -> 1149.46 | E200: =OFFSET(InputPriceData!D$15,CalculationsAndCharts!$A200+$A$11,IF($C$7,8,0),1,1) -> 1153.41 | F200: =OFFSET(InputPriceData!E$15,CalculationsAndCharts!$A200+$A$11,IF($C$7,8,0),1,1) -> 1138.32 | G200: =OFFSET(InputPriceData!F$15,CalculationsAndCharts!$A200+$A$11,IF($C$7,8,0),1,1) -> 1146.37 | H200: 1114.015566 | I200: 1110.481124 | J200: 3.534442039 | K200: 1122.766076 | L200: 1132.372775 | M200: -9.606699082 | N200: -6.072257043 | O200: 0 | R200: -0.8483689551 | S200: 0.3121270765 | T200: -0.5362418786 | V200: 1114.015566 | W200: 1110.481124 | X200: 1122.766076 | Y200: 1132.372775 | Z200: 3.534442039 | AA200: -9.606699082 | AB200: -6.072257043 | AC200: 0.3121270765 | AD200: -0.8483689551 | AE200: -0.5362418786 | AP200: 37403500
A201: 169 | B201: =OFFSET(InputPriceData!B$15,CalculationsAndCharts!$A201+$A$11,0,1,1) -> 2014-10-28 | C201: =OFFSET(InputPriceData!G$15,CalculationsAndCharts!$A201+$A$11,IF($C$7,8,0),1,1) -> 36532600 | D201: =OFFSET(InputPriceData!C$15,CalculationsAndCharts!$A201+$A$11,IF($C$7,8,0),1,1) -> 1121.8 | E201: =OFFSET(InputPriceData!D$15,CalculationsAndCharts!$A201+$A$11,IF($C$7,8,0),1,1) -> 1149.46 | F201: =OFFSET(InputPriceData!E$15,CalculationsAndCharts!$A201+$A$11,IF($C$7,8,0),1,1) -> 1121.34 | G201: =OFFSET(InputPriceData!F$15,CalculationsAndCharts!$A201+$A$11,IF($C$7,8,0),1,1) -> 1149.45 | H201: 1108.132941 | I201: 1107.610014 | J201: 0.5229277275 | K201: 1121.965943 | L201: 1132.155764 | M201: -10.18982085 | N201: -9.666893127 | O201: 0 | R201: -0.900037007 | S201: 0.04618867333 | T201: -0.8538483337 | V201: 1108.132941 | W201: 1107.610014 | X201: 1121.965943 | Y201: 1132.155764 | Z201: 0.5229277275 | AA201: -10.18982085 | AB201: -9.666893127 | AC201: 0.04618867333 | AD201: -0.900037007 | AE201: -0.8538483337 | AO201: 36532600
A202: 170 | B202: =OFFSET(InputPriceData!B$15,CalculationsAndCharts!$A202+$A$11,0,1,1) -> 2014-10-27 | C202: =OFFSET(InputPriceData!G$15,CalculationsAndCharts!$A202+$A$11,IF($C$7,8,0),1,1) -> 35388600 | D202: =OFFSET(InputPriceData!C$15,CalculationsAndCharts!$A202+$A$11,IF($C$7,8,0),1,1) -> 1113.56 | E202: =OFFSET(InputPriceData!D$15,CalculationsAndCharts!$A202+$A$11,IF($C$7,8,0),1,1) -> 1117.71 | F202: =OFFSET(InputPriceData!E$15,CalculationsAndCharts!$A202+$A$11,IF($C$7,8,0),1,1) -> 1104.05 | G202: =OFFSET(InputPriceData!F$15,CalculationsAndCharts!$A202+$A$11,IF($C$7,8,0),1,1) -> 1117.48 | H202: 1100.620749 | I202: 1104.262815 | J202: -3.642065851 | K202: 1121.03428 | L202: 1131.887636 | M202: -10.85335611 | N202: -14.49542196 | O202: 0 | R202: -0.9588722199 | S202: -0.3217692052 | T202: -1.280641425 | V202: 1100.620749 | W202: 1104.262815 | X202: 1121.03428 | Y202: 1131.887636 | Z202: -3.642065851 | AA202: -10.85335611 | AB202: -14.49542196 | AC202: -0.3217692052 | AD202: -0.9588722199 | AE202: -1.280641425 | AO202: 35388600
A203: 171 | B203: =OFFSET(InputPriceData!B$15,CalculationsAndCharts!$A203+$A$11,0,1,1) -> 2014-10-24 | C203: =OFFSET(InputPriceData!G$15,CalculationsAndCharts!$A203+$A$11,IF($C$7,8,0),1,1) -> 30783800 | D203: =OFFSET(InputPriceData!C$15,CalculationsAndCharts!$A203+$A$11,IF($C$7,8,0),1,1) -> 1117.95 | E203: =OFFSET(InputPriceData!D$15,CalculationsAndCharts!$A203+$A$11,IF($C$7,8,0),1,1) -> 1119.13 | F203: =OFFSET(InputPriceData!E$15,CalculationsAndCharts!$A203+$A$11,IF($C$7,8,0),1,1) -> 1113.05 | G203: =OFFSET(InputPriceData!F$15,CalculationsAndCharts!$A203+$A$11,IF($C$7,8,0),1,1) -> 1118.82 | H203: 1097.55543 | I203: 1103.20544 | J203: -5.650009425 | K203: 1121.154764 | L203: 1132.111011 | M203: -10.95624624 | N203: -16.60625566 | O203: 0 | R203: -0.9677713698 | S203: -0.4990684988 | T203: -1.466839869 | V203: 1097.55543 | W203: 1103.20544 | X203: 1121.154764 | Y203: 1132.111011 | Z203: -5.650009425 | AA203: -10.95624624 | AB203: -16.60625566 | AC203: -0.4990684988 | AD203: -0.9677713698 | AE203: -1.466839869 | AO203: 30783800
A204: 172 | B204: =OFFSET(InputPriceData!B$15,CalculationsAndCharts!$A204+$A$11,0,1,1) -> 2014-10-23 | C204: =OFFSET(InputPriceData!G$15,CalculationsAndCharts!$A204+$A$11,IF($C$7,8,0),1,1) -> 37892500 | D204: =OFFSET(InputPriceData!C$15,CalculationsAndCharts!$A204+$A$11,IF($C$7,8,0),1,1) -> 1105.45 | E204: =OFFSET(InputPriceData!D$15,CalculationsAndCharts!$A204+$A$11,IF($C$7,8,0),1,1) -> 1122.42 | F204: =OFFSET(InputPriceData!E$15,CalculationsAndCharts!$A204+$A$11,IF($C$7,8,0),1,1) -> 1105.45 | G204: =OFFSET(InputPriceData!F$15,CalculationsAndCharts!$A204+$A$11,IF($C$7,8,0),1,1) -> 1116.49 | H204: 1093.689145 | I204: 1101.956275 | J204: -8.267129995 | K204: 1121.233909 | L204: 1132.317073 | M204: -11.08316386 | N204: -19.35029385 | O204: 0 | R204: -0.9788039168 | S204: -0.7301073342 | T204: -1.708911251 | V204: 1093.689145 | W204: 1101.956275 | X204: 1121.233909 | Y204: 1132.317073 | Z204: -8.267129995 | AA204: -11.08316386 | AB204: -19.35029385 | AC204: -0.7301073342 | AD204: -0.9788039168 | AE204: -1.708911251 | AO204: 37892500
... 2046 more rows

Sheet Follow
A1: Stocks and Indexes I wish to follow
A3: To ease following a stock, enter a Yahoo Finance acceptable symbol in column "A" anywhere below cell "A9".
A4: Thereafter you may doubleclick the cell containing a symbol of interest to initiate data retrieval and charting for that symbol.
A7: Symbol
A8: To | B8: Description | C8: Last Trade as of most recent check
A9: Follow | C9: Date | D9: Time | E9: Open | F9: High | G9: Low | H9: Close | I9: Volume | J9: Change
A10: A | B10: Agilent Technolog (A) -NYSE (Daily) | C10: 2015-02-02 | D10: 16:03:00 | E10: 37.9 | F10: 38.76 | G10: 37.71 | H10: 38.69 | I10: 2508493 | J10: 0.92
A11: AAL | B11: American Airlines Group Inc. (AAL) -NasdaqGS (Daily) | C11: 2017-12-07 | D11: 16:00:00 | E11: 49.529999 | F11: 50.920502 | G11: 49.299999 | H11: 50.880001 | I11: 3046954 | J11: 1.27
A12: ADM | B12: Archer-Daniels-Midland Company (ADM) -NYQ (Daily) | C12: 2016-03-07 | D12: 13:18:00 | E12: 37.17 | F12: 37.29 | G12: 36.85 | H12: 37.09 | I12: 2069198 | J12: -0.56
A13: AMC | B13: AMC Entertainment Holdings, Inc. (AMC) -NYSE (Daily) | C13: 2017-12-07 | D13: 16:02:00 | E13: 14.15 | F13: 14.5 | G13: 14.05 | H13: 14.35 | I13: 1931228 | J13: 0.1
A14: BSX | B14: Boston Scientific Corporation C (BSX) -NYQ (Daily) | C14: 2015-03-13 | D14: 16:01:00 | E14: 16.84 | F14: 16.91 | G14: 16.44 | H14: 16.61 | I14: 7262460 | J14: -0.28
A15: CASY | B15: Casey's General Stores, Inc. (CASY) -NasdaqGS (Daily) | C15: 2017-12-07 | D15: 16:00:00 | E15: 124.379997 | F15: 125.349998 | G15: 123.099998 | H15: 123.669998 | I15: 437041 | J15: -0.900002
A16: CSCO | B16: Cisco Systems, In (CSCO) -NasdaqNM (Daily) | C16: 2015-02-19 | D16: 16:00:00 | E16: 29.32 | F16: 29.39 | G16: 29.13 | H16: 29.31 | I16: 21469012 | J16: -0.18
A17: CVS | B17: CVS Health Corpor (CVS) -NYSE (Daily) | C17: 2015-02-02 | D17: 16:01:00 | E17: 98.34 | F17: 99.22 | G17: 97.06 | H17: 99.11 | I17: 4416094 | J17: 0.95
A18: DIS | B18: Walt Disney Compa (DIS) -NYSE (Daily) | C18: 2015-02-26 | D18: 16:00:00 | E18: 105.5 | F18: 105.71 | G18: 104.14 | H18: 104.56 | I18: 5044969 | J18: -1.01
A19: EMC | B19: EMC Corporation C (EMC) -NYSE (Daily) | C19: 2015-02-19 | D19: 16:00:00 | E19: 28.26 | F19: 28.83 | G19: 28.19 | H19: 28.72 | I19: 11049079 | J19: 0.52
A20: F | B20: Ford Motor Company (F) -NYSE (Daily) | C20: 2017-10-13 | D20: 16:01:00 | E20: 12.06 | F20: 12.17 | G20: 11.87 | H20: 12.05 | I20: 44563400 | J20: -0.07
A21: FAS | B21: Direxion Daily Financial Bull 3X ETF (FAS) -NYSEArca (Daily) | C21: 2017-10-13 | D21: 16:00:00 | E21: 58.099998 | F21: 58.939999 | G21: 57.43 | H21: 58.450001 | I21: 1709300 | J21: 0.07
A22: GSK | B22: GlaxoSmithKline P (GSK) -NYSE (Daily) | C22: 2015-02-02 | D22: 16:01:00 | E22: 44.11 | F22: 44.12 | G22: 43.71 | H22: 43.96 | I22: 3654466 | J22: -0.04
A23: GDX | B23: VanEck Vectors Gold Miners ETF (GDX) -PCX (Daily) | C23: 2017-02-10 | D23: 20:00:00 | E23: 24.67 | F23: 25.36 | G23: 24.6 | H23: 25.29 | I23: 65396107 | J23: 0.38
A24: HSY | B24: The Hershey Compa (HSY) -NYSE (Daily) | C24: 2015-02-19 | D24: 16:02:00 | E24: 106.97 | F24: 107.31 | G24: 105.42 | H24: 105.95 | I24: 1448321 | J24: -1
A25: HTLD | B25: Heartland Express (HTLD) -NasdaqNM (Daily) | C25: 2015-02-02 | D25: 16:00:00 | E25: 25.68 | F25: 25.81 | G25: 25.36 | H25: 25.62 | I25: 542510 | J25: -0.07
A26: IBM | B26: International Bus (IBM) -NYSE (Daily) | C26: 2015-02-02 | D26: 16:01:00 | E26: 154 | F26: 154.66 | G26: 151.51 | H26: 154.66 | I26: 4712247 | J26: 1.35
A27: INTC | B27: Intel Corporation (INTC) -NasdaqNM (Daily) | C27: 2015-02-19 | D27: 16:00:00 | E27: 34.25 | F27: 34.42 | G27: 34.05 | H27: 34.21 | I27: 11017541 | J27: -0.055
A28: JAH | B28: Jarden Corporation Common Stock (JAH) -NYQ (Daily) | C28: 2016-01-08 | D28: 16:02:00 | E28: 53.82 | F28: 53.88 | G28: 52.65 | H28: 52.73 | I28: 4519480 | J28: -0.81
A29: JNJ | B29: Johnson & Johnson Common Stock (JNJ) -NYQ (Daily) | C29: 2016-01-08 | D29: 11:37:00 | E29: 99.88 | F29: 99.94 | G29: 98.87 | H29: 98.88 | I29: 2448879 | J29: -0.34
A30: KO | B30: Coca-Cola Company (The) Common (KO) -NYQ (Daily) | C30: 2015-08-10 | D30: 16:00:00 | E30: 41.89 | F30: 41.99 | G30: 41.58 | H30: 41.68 | I30: 9501875 | J30: -0.09
A31: LHO | B31: LaSalle Hotel Pro (LHO) -NYSE (Daily) | C31: 2015-02-02 | D31: 16:06:00 | E31: 40.51 | F31: 40.74 | G31: 39.46 | H31: 40.26 | I31: 1034675 | J31: -0.2
A32: LINE | B32: Linn Energy, LLC (LINE) -NasdaqNM (Daily) | C32: 2015-02-02 | D32: 16:00:00 | E32: 10.4 | F32: 10.78 | G32: 10.25 | H32: 10.77 | I32: 3766537 | J32: 0.51
A33: LO | B33: Lorillard, Inc Co (LO) -NYSE (Daily) | C33: 2015-02-02 | D33: 16:03:00 | E33: 65.71 | F33: 66.29 | G33: 65.43 | H33: 66.29 | I33: 1563618 | J33: 0.68
A34: MCD | B34: McDonald's Corporation Common S (MCD) -NYQ (Daily) | C34: 2016-04-07 | D34: 16:10:00 | E34: 127.37 | F34: 128.52 | G34: 127.02 | H34: 128.14 | I34: 4720711 | J34: 0.62
A35: MDT | B35: Medtronic plc. Or (MDT) -NYSE (Daily) | C35: 2015-02-19 | D35: 16:01:00 | E35: 78.59 | F35: 78.59 | G35: 77.85 | H35: 78.13 | I35: 6900528 | J35: -0.37
A36: MGM | B36: MGM Resorts Inter (MGM) -NYSE (Daily) | C36: 2015-02-02 | D36: 16:00:00 | E36: 19.44 | F36: 19.75 | G36: 19.12 | H36: 19.74 | I36: 7570281 | J36: 0.26
A37: MO | B37: Altria Group, Inc (MO) -NYSE (Daily) | C37: 2015-02-02 | D37: 16:01:00 | E37: 53.25 | F37: 53.84 | G37: 52.98 | H37: 53.8 | I37: 9183582 | J37: 0.7
A38: MSFT | B38: Microsoft Corpora (MSFT) -NasdaqNM (Daily) | C38: 2015-02-20 | D38: 16:00:00 | E38: 43.51 | F38: 43.88 | G38: 43.29 | H38: 43.855 | I38: 29721132 | J38: 0.355
A39: NUGT | B39: Direxion Daily Gold Miners Inde (NUGT) -PCX (Daily) | C39: 2016-04-13 | D39: 14:18:00 | E39: 81.48 | F39: 84.97 | G39: 79.59 | H39: 80.5352 | I39: 4380827 | J39: -5.6148
A40: NVS | B40: Novartis AG Common Stock (NVS) -NYQ (Daily) | C40: 2016-01-08 | D40: 11:38:00 | E40: 83.38 | F40: 83.5 | G40: 82.37 | H40: 82.42 | I40: 979446 | J40: -1.52
A41: NVDA | B41: NVIDIA Corporation (NVDA) -NasdaqGS (Daily) | C41: 2017-12-05 | D41: 16:00:00 | E41: 182.399994 | F41: 192.699997 | G41: 180.580002 | H41: 187.740005 | I41: 24484326 | J41: 1.080001
A42: PRU | B42: Prudential Financ (PRU) -NYSE (Daily) | C42: 2015-02-23 | D42: 12:22:00 | E42: 80.25 | F42: 80.4499 | G42: 79.8 | H42: 80.12 | I42: 1604052 | J42: -0.69
A43: PSEC | B43: Prospect Capital Corporation (PSEC) -NMS (Daily) | C43: 2016-04-07 | D43: 16:00:00 | E43: 7.18 | F43: 7.25 | G43: 7.15 | H43: 7.21 | I43: 1116195 | J43: 0.02
A44: RAI | B44: Reynolds American (RAI) -NYSE (Daily) | C44: 2015-02-02 | D44: 16:03:00 | E44: 68.12 | F44: 69.06 | G44: 67.4346 | H44: 69.05 | I44: 1822013 | J44: 1.1
A45: RPM | B45: RPM International Inc. Common S (RPM) -NYQ (Daily) | C45: 2016-04-13 | D45: 12:43:00 | E45: 49.9 | F45: 50.21 | G45: 49.71 | H45: 49.97 | I45: 408337 | J45: 0.19 | K45: Owns the Rust-Oleum brand
A46: RSP | B46: Guggenheim S&P 500 Equal Weight (RSP) -PCX (Daily) | C46: 2016-01-08 | D46: 11:33:00 | E46: 73.24 | F46: 73.47 | G46: 72.41 | H46: 72.41 | I46: 754279 | J46: -0.48
A47: SONC | B47: Sonic Corp. (SONC) -NMS (Daily) | C47: 2017-02-08 | D47: 16:00:00 | E47: 25.15 | F47: 25.44 | G47: 24.91 | H47: 25.35 | I47: 397007 | J47: 0.18
A48: SPR | B48: Spirit Aerosystems Holdings, In (SPR) -NYQ (Daily) | C48: 2017-02-08 | D48: 16:02:00 | E48: 56.31 | F48: 56.53 | G48: 55.13 | H48: 56.41 | I48: 849196 | J48: 0.06
A49: SWKS | B49: Skyworks Solution (SWKS) -NasdaqNM (Daily) | C49: 2015-02-02 | D49: 16:00:00 | E49: 83.07 | F49: 83.73 | G49: 80.15 | H49: 82.02 | I49: 4119001 | J49: -1.03
A50: TOL | B50: Toll Brothers Inc (TOL) -NYSE (Daily) | C50: 2015-02-23 | D50: 12:23:00 | E50: 37.56 | F50: 37.77 | G50: 37.1 | H50: 37.36 | I50: 1521944 | J50: -0.29
A51: UNP | B51: Union Pacific Cor (UNP) -NYSE (Daily) | C51: 2015-02-02 | D51: 16:10:00 | E51: 118.13 | F51: 119.06 | G51: 116.7 | H51: 119.01 | I51: 3259594 | J51: 1.8
A52: VZ | B52: Verizon Communica (VZ) -NYSE (Daily) | C52: 2015-02-23 | D52: 12:22:00 | E52: 48.94 | F52: 49 | G52: 48.54 | H52: 48.825 | I52: 4204644 | J52: -0.145
A53: WBA | B53: (WBA) -NasdaqNM (Daily) | C53: 2015-02-02 | D53: 16:00:00 | E53: 73.06 | F53: 74.98 | G53: 73 | H53: 74.89 | I53: 4247395 | J53: 1.14
A54: WMT | B54: Wal-Mart Stores, Inc. (WMT) -NYSE (Daily) | C54: 2017-12-07 | D54: 16:00:00 | E54: 97.059998 | F54: 97.580002 | G54: 96.650002 | H54: 96.779999 | I54: 7502463 | J54: -0.5
A56: ^NDX | B56: NASDAQ-100 (^NDX) -NIM (Daily) | C56: 2015-08-10 | D56: 17:15:00 | E56: 4558.68 | F56: 4583.63 | G56: 4554.63 | H56: 4573.11 | I56: 0 | J56: 53.03
A57: ^DJI | B57: Dow Jones Industrial Average (^DJI) -DJI (Daily) | C57: 2017-10-13 | D57: 16:55:00 | E57: 22876.42969 | F57: 22905.33008 | G57: 22855.92969 | H57: 22871.7207 | I57: 259560000 | J57: 30.710937
A58: SPY | B58: SPDR S&P 500 (SPY) -PCX (Daily) | C58: 2016-05-05 | D58: 16:00:00 | E58: 205.56 | F58: 205.98 | G58: 204.47 | H58: 204.97 | I58: 67619222 | J58: -0.04
A59: ^GSPC | B59: S&P 500 (^GSPC) -SNP (Daily) | C59: 2017-12-07 | D59: 14:51:00 | E59: 2628.379883 | F59: 2640.98999 | G59: 2626.530029 | H59: 2635.469971 | I59: 1206602355 | J59: 6.199951
A60: ^RUT | B60: Russell 2000 (^RUT) -Chicago Options (Daily) | C60: 2017-12-07 | D60: 16:30:00 | E60: 1508.930054 | F60: 1523.959961 | G60: 1508.150024 | H60: 1520.469971 | I60: 32924000 | J60: 11.589966
A61: ^VIX | B61: VOLATILITY S&P 500 (^VIX) -WCB (Daily) | C61: 2015-12-04 | D61: 16:14:00 | E61: 17.43 | F61: 17.65 | G61: 14.69 | H61: 14.81 | I61: 0 | J61: -3.3
A62: ^NYA | B62: NYSE COMPOSITE (DJ) (^NYA) -NYSE (Daily) | C62: 2017-10-13 | D62: 17:38:00 | E62: 12360.87012 | F62: 12377.88965 | G62: 12350.03027 | H62: 12352.01953 | I62: 3149440000 | J62: 13.279297
A64: ACAD | B64: ACADIA Pharmaceut (ACAD) -NasdaqNM (Daily) | C64: 2014-07-21 | D64: 16:00:00 | E64: 20.13 | F64: 20.55 | G64: 19.8101 | H64: 20.31 | I64: 691016
A65: CLDX | B65: Celldex Therapeut (CLDX) -NasdaqNM (Daily) | C65: 2015-02-02 | D65: 16:00:00 | E65: 21.47 | F65: 21.69 | G65: 20.11 | H65: 21.02 | I65: 1570418 | J65: -0.4
A66: ICPT | B66: Intercept Pharmac (ICPT) -NasdaqNM (Daily) | C66: 2014-07-21 | D66: 16:00:00 | E66: 215.97 | F66: 218.43 | G66: 213.05 | H66: 218.14 | I66: 191276
A67: INO | B67: Inovio Pharmaceut (INO) -AMEX (Daily) | C67: 2014-07-21 | D67: 16:00:00 | E67: 10.3 | F67: 11.08 | G67: 10.1 | H67: 11.01 | I67: 1800796
A68: JCP | B68: J. C. Penney Company, Inc. (JCP) -NYSE (Daily) | C68: 2017-12-07 | D68: 16:01:00 | E68: 3.34 | F68: 3.4 | G68: 3.25 | H68: 3.27 | I68: 14485464 | J68: -0.07
A69: LCI | B69: Lannett Co Inc Co (LCI) -NYSE (Daily) | C69: 2014-07-21 | D69: 16:02:00 | E69: 38.09 | F69: 38.803 | G69: 36.5101 | H69: 37.76 | I69: 611367
A70: NPSP | B70: NPS Pharmaceutica (NPSP) -NasdaqNM (Daily) | C70: 2014-07-21 | D70: 15:59:00 | E70: 28.75 | F70: 29.43 | G70: 28.31 | H70: 29.29 | I70: 1126758
A71: PBYI | B71: Puma Biotechnolog (PBYI) -NYSE (Daily) | C71: 2014-07-21 | D71: 16:02:00 | E71: 58.27 | F71: 59.46 | G71: 57.39 | H71: 58.98 | I71: 348030
